 Batch Number,Vendor Name,Invoice Number, Line,Line Amount,Account Description,Issue Date ,Total Amount Paid,Location Description
120914D,HEALTH MANAGEMENT LIMITED=====,0000118989,1,"5,400.00",THIRD PARTY REPORTS,02/10/14,"5,400.00",HR CENTRALLY HELD BUDGETS
260914G,ENTEL UK LTD==================,0000141757,1,859.00,RADIO,02/10/14,859.00,I&CT OPERATIONAL SUPPORT
260914G,ENTEL UK LTD==================,0000141805,1,434.00,RADIO,02/10/14,434.00,I&CT OPERATIONAL SUPPORT
290914G,CLARITY INFORMATION SOLUTIONS=,01127,1,556.00,CONSULTANTS,02/10/14,638.00,NATL OPERATIONAL GUIDANCE PROJ
290914G,CLARITY INFORMATION SOLUTIONS=,01127,2,82.00,CONSULTANTS,02/10/14,,NATL OPERATIONAL GUIDANCE PROJ
160914E,*SPRUE SAFETY PRODUCTS LTD====,1065219,1,"3,090.00",FIRE DETECTORS,02/10/14,"3,090.00",NORTH EAST AREA TEAM
800053254,*JAMES HUNTER (OUTFITTERS) LTD,107824,1,231.56,CLOTHING,02/10/14,293.35,EALING FS
800053254,*JAMES HUNTER (OUTFITTERS) LTD,107824,2,61.79,CLOTHING,02/10/14,,EALING FS
800053255,*JAMES HUNTER (OUTFITTERS) LTD,107825,1,231.56,CLOTHING,02/10/14,293.35,EALING FS
800053255,*JAMES HUNTER (OUTFITTERS) LTD,107825,2,61.79,CLOTHING,02/10/14,,EALING FS
800053257,*JAMES HUNTER (OUTFITTERS) LTD,107827,1,293.13,CLOTHING,02/10/14,293.13,SOHO FS
800053258,*JAMES HUNTER (OUTFITTERS) LTD,107828,1,293.13,CLOTHING,02/10/14,293.13,EDMONTON FIRE STATION
800053264,*JAMES HUNTER (OUTFITTERS) LTD,107834,1,318.85,CLOTHING,02/10/14,391.72,OPERATIONAL TACTICS
800053264,*JAMES HUNTER (OUTFITTERS) LTD,107834,2,72.87,CLOTHING,02/10/14,,OPERATIONAL TACTICS
800053266,*JAMES HUNTER (OUTFITTERS) LTD,107836,1,289.84,CLOTHING,02/10/14,289.84,WIMBLEDON FIRE STATION
800053267,*JAMES HUNTER (OUTFITTERS) LTD,107837,1,362.23,CLOTHING,02/10/14,362.23,OPERATIONAL TACTICS
250914C,ROYAL COLLEGE OF MUSIC========,11043798,1,370.00,PRESS OFFICE,02/10/14,370.00,COMMS MARKETING
290914G,ACL ELECTRICAL LIMITED,11250,1,"8,612.00",STRATEGIC (NON CYCLICAL),02/10/14,"8,612.00",TWICKENHAM FS
260914G,VISTA LANDSCAPE MANAGEMENT LTD,120115,1,687.50,GROUNDS MAINTENANCE,02/10/14,"1,512.50",ERITH FS
260914G,VISTA LANDSCAPE MANAGEMENT LTD,120115,2,225.00,GROUNDS MAINTENANCE,02/10/14,,ERITH FS
260914G,VISTA LANDSCAPE MANAGEMENT LTD,120115,3,600.00,GROUNDS MAINTENANCE,02/10/14,,ERITH FS
290914G,AAI SECURITY SYSTEMS==========,132698,1,990.00,STRATEGIC (CYCLICAL),02/10/14,990.00,PREMISES HOLDING A/C HQ
800052893,REDFERN TRAVEL LTD,1348531,1,259.20,PUBLIC TRANSPORT,02/10/14,259.20,BUSINESS CONTINUITY
800052872,REDFERN TRAVEL LTD,1348562,1,"3,530.40",PUBLIC TRANSPORT,02/10/14,"3,530.40",BUSINESS CONTINUITY
800052878,REDFERN TRAVEL LTD,1348565,1,252.20,PUBLIC TRANSPORT,02/10/14,252.20,BUSINESS CONTINUITY
800052890,REDFERN TRAVEL LTD,1348672,1,252.20,PUBLIC TRANSPORT,02/10/14,252.20,BUSINESS CONTINUITY
800052870,REDFERN TRAVEL LTD,1348680,1,682.70,PUBLIC TRANSPORT,02/10/14,682.70,BUSINESS CONTINUITY
800052879,REDFERN TRAVEL LTD,1348690,1,381.95,PUBLIC TRANSPORT,02/10/14,381.95,BUSINESS CONTINUITY
800052895,REDFERN TRAVEL LTD,1348715,1,793.90,PUBLIC TRANSPORT,02/10/14,793.90,BUSINESS CONTINUITY
800052894,REDFERN TRAVEL LTD,1348729,1,557.70,PUBLIC TRANSPORT,02/10/14,557.70,BUSINESS CONTINUITY
800052873,REDFERN TRAVEL LTD,1348732,1,557.70,PUBLIC TRANSPORT,02/10/14,557.70,BUSINESS CONTINUITY
800052892,REDFERN TRAVEL LTD,1348858,1,287.20,PUBLIC TRANSPORT,02/10/14,287.20,BUSINESS CONTINUITY
800052859,REDFERN TRAVEL LTD,1349981,1,470.97,OVERSEAS TRAVEL,02/10/14,470.97,CHALLENGE TEAM
800052886,REDFERN TRAVEL LTD,1351592,1,291.40,PUBLIC TRANSPORT,02/10/14,291.40,ENFORCEMENT - NORTH WEST
800052875,REDFERN TRAVEL LTD,1351597,1,292.25,PUBLIC TRANSPORT,02/10/14,292.25,ENFORCEMENT - NORTH WEST
800053036,REDFERN TRAVEL LTD,1356035,1,268.82,PUBLIC TRANSPORT,02/10/14,268.82,NATL OPERATIONAL GUIDANCE PROJ
800052915,REDFERN TRAVEL LTD,1356428,1,310.54,PUBLIC TRANSPORT,02/10/14,310.54,NATL OPERATIONAL GUIDANCE PROJ
800053125,*NPS (SHOES) LTD,13584,1,41.10,CLOTHING,02/10/14,"2,846.25",POPLAR FS
800053125,*NPS (SHOES) LTD,13584,2,41.10,CLOTHING,02/10/14,,FSR - POLICY
800053125,*NPS (SHOES) LTD,13584,3,41.10,CLOTHING,02/10/14,,FSR - POLICY
800053125,*NPS (SHOES) LTD,13584,4,41.10,CLOTHING,02/10/14,,ENFORCEMENT - SOUTH EAST
800053125,*NPS (SHOES) LTD,13584,5,41.10,CLOTHING,02/10/14,,LEYTONSTONE FS
800053125,*NPS (SHOES) LTD,13584,6,30.05,CLOTHING,02/10/14,,EAST HAM FIRE STATION
800053125,*NPS (SHOES) LTD,13584,7,30.05,CLOTHING,02/10/14,,DAGENHAM FIRE STATION
800053125,*NPS (SHOES) LTD,13584,8,30.05,CLOTHING,02/10/14,,ENFORCEMENT - SOUTH WEST
800053125,*NPS (SHOES) LTD,13584,9,30.05,CLOTHING,02/10/14,,PROTECTIVE EQUIPMENT GROUP
800053125,*NPS (SHOES) LTD,13584,10,30.05,CLOTHING,02/10/14,,LAMBETH FS
800053125,*NPS (SHOES) LTD,13584,11,30.05,CLOTHING,02/10/14,,BARKING FIRE STATION
800053125,*NPS (SHOES) LTD,13584,12,30.05,CLOTHING,02/10/14,,EDMONTON FIRE STATION
800053125,*NPS (SHOES) LTD,13584,13,30.05,CLOTHING,02/10/14,,LAMBETH FS
800053125,*NPS (SHOES) LTD,13584,14,30.05,CLOTHING,02/10/14,,STRATFORD FIRE STATION
800053125,*NPS (SHOES) LTD,13584,15,30.05,CLOTHING,02/10/14,,HORNSEY FIRE STATION
800053125,*NPS (SHOES) LTD,13584,16,30.05,CLOTHING,02/10/14,,PADDINGTON FS
800053125,*NPS (SHOES) LTD,13584,17,30.05,CLOTHING,02/10/14,,KENTISH TOWN FS
800053125,*NPS (SHOES) LTD,13584,18,30.05,CLOTHING,02/10/14,,CFS - TOWER HAMLETS
800053125,*NPS (SHOES) LTD,13584,19,30.05,CLOTHING,02/10/14,,DAGENHAM FIRE STATION
800053125,*NPS (SHOES) LTD,13584,20,30.05,CLOTHING,02/10/14,,PLUMSTEAD FS
800053125,*NPS (SHOES) LTD,13584,21,30.05,CLOTHING,02/10/14,,SOUTHGATE FIRE STATION
800053125,*NPS (SHOES) LTD,13584,22,30.05,CLOTHING,02/10/14,,ENFORCEMENT - SOUTH WEST
800053125,*NPS (SHOES) LTD,13584,23,30.05,CLOTHING,02/10/14,,DAGENHAM FIRE STATION
800053125,*NPS (SHOES) LTD,13584,24,30.05,CLOTHING,02/10/14,,DAGENHAM FIRE STATION
800053125,*NPS (SHOES) LTD,13584,25,30.05,CLOTHING,02/10/14,,ENFORCEMENT - SOUTH EAST
800053125,*NPS (SHOES) LTD,13584,26,30.05,CLOTHING,02/10/14,,WIMBLEDON FIRE STATION
800053125,*NPS (SHOES) LTD,13584,27,30.05,CLOTHING,02/10/14,,ENFORCEMENT - SOUTH EAST
800053125,*NPS (SHOES) LTD,13584,28,30.05,CLOTHING,02/10/14,,KENTISH TOWN FS
800053125,*NPS (SHOES) LTD,13584,29,30.05,CLOTHING,02/10/14,,PADDINGTON FS
800053125,*NPS (SHOES) LTD,13584,30,29.45,CLOTHING,02/10/14,,KENTISH TOWN FS
800053125,*NPS (SHOES) LTD,13584,31,29.45,CLOTHING,02/10/14,,HORNSEY FIRE STATION
800053125,*NPS (SHOES) LTD,13584,32,29.45,CLOTHING,02/10/14,,BIGGIN HILL FS
800053125,*NPS (SHOES) LTD,13584,33,29.45,CLOTHING,02/10/14,,CHINGFORD FS
800053125,*NPS (SHOES) LTD,13584,34,29.45,CLOTHING,02/10/14,,HAYES FS
800053125,*NPS (SHOES) LTD,13584,35,29.45,CLOTHING,02/10/14,,NEW MALDEN FS
800053125,*NPS (SHOES) LTD,13584,36,29.45,CLOTHING,02/10/14,,HOLLOWAY FIRE STATION
800053125,*NPS (SHOES) LTD,13584,37,29.45,CLOTHING,02/10/14,,HAYES FS
800053125,*NPS (SHOES) LTD,13584,38,29.45,CLOTHING,02/10/14,,NEW CROSS FS
800053125,*NPS (SHOES) LTD,13584,39,29.45,CLOTHING,02/10/14,,LEE GREEN FS
800053125,*NPS (SHOES) LTD,13584,40,29.45,CLOTHING,02/10/14,,HORNSEY FIRE STATION
800053125,*NPS (SHOES) LTD,13584,41,29.45,CLOTHING,02/10/14,,ENFIELD FIRE STATION
800053125,*NPS (SHOES) LTD,13584,42,29.45,CLOTHING,02/10/14,,CHISWICK FS
800053125,*NPS (SHOES) LTD,13584,43,29.45,CLOTHING,02/10/14,,CHISWICK FS
800053125,*NPS (SHOES) LTD,13584,44,41.10,CLOTHING,02/10/14,,CLAPHAM FS
800053125,*NPS (SHOES) LTD,13584,45,30.05,CLOTHING,02/10/14,,BECKENHAM FS
800053125,*NPS (SHOES) LTD,13584,46,30.05,CLOTHING,02/10/14,,HILLINGDON FS
800053125,*NPS (SHOES) LTD,13584,47,30.05,CLOTHING,02/10/14,,HESTON FS
800053125,*NPS (SHOES) LTD,13584,48,29.45,CLOTHING,02/10/14,,BARKING FIRE STATION
800053125,*NPS (SHOES) LTD,13584,49,29.45,CLOTHING,02/10/14,,BARKING FIRE STATION
800053125,*NPS (SHOES) LTD,13584,50,29.45,CLOTHING,02/10/14,,EAST GREENWICH FS
800053125,*NPS (SHOES) LTD,13584,51,29.45,CLOTHING,02/10/14,,EAST HAM FIRE STATION
800053125,*NPS (SHOES) LTD,13584,52,29.45,CLOTHING,02/10/14,,HILLINGDON FS
800053125,*NPS (SHOES) LTD,13584,53,29.45,CLOTHING,02/10/14,,TOOTING FIRE STATION
800053125,*NPS (SHOES) LTD,13584,54,29.45,CLOTHING,02/10/14,,MILLWALL FS
800053125,*NPS (SHOES) LTD,13584,55,29.45,CLOTHING,02/10/14,,HOMERTON FIRE STATION
800053125,*NPS (SHOES) LTD,13584,56,29.45,CLOTHING,02/10/14,,HILLINGDON FS
800053125,*NPS (SHOES) LTD,13584,57,29.45,CLOTHING,02/10/14,,HESTON FS
800053125,*NPS (SHOES) LTD,13584,58,29.45,CLOTHING,02/10/14,,FIRE ENGINEERING
800053125,*NPS (SHOES) LTD,13584,59,29.45,CLOTHING,02/10/14,,ENFORCEMENT - SOUTH EAST
800053125,*NPS (SHOES) LTD,13584,60,29.45,CLOTHING,02/10/14,,WILLESDEN FS
800053125,*NPS (SHOES) LTD,13584,61,29.45,CLOTHING,02/10/14,,ERITH FS
800053125,*NPS (SHOES) LTD,13584,62,29.45,CLOTHING,02/10/14,,TOOTING FIRE STATION
800053125,*NPS (SHOES) LTD,13584,63,29.45,CLOTHING,02/10/14,,KINGSTON FS
800053125,*NPS (SHOES) LTD,13584,64,29.45,CLOTHING,02/10/14,,WEMBLEY FS
800053125,*NPS (SHOES) LTD,13584,65,29.45,CLOTHING,02/10/14,,PADDINGTON FS
800053125,*NPS (SHOES) LTD,13584,66,29.45,CLOTHING,02/10/14,,WENNINGTON FIRE STATION
800053125,*NPS (SHOES) LTD,13584,67,41.10,CLOTHING,02/10/14,,ENFORCEMENT - SOUTH EAST
800053125,*NPS (SHOES) LTD,13584,68,41.10,CLOTHING,02/10/14,,SPECIAL OPERATIONAL GROUP
800053125,*NPS (SHOES) LTD,13584,69,41.10,CLOTHING,02/10/14,,HR TRNG ASURNCE & BUS RELTNSHP
800053125,*NPS (SHOES) LTD,13584,70,41.10,CLOTHING,02/10/14,,NORTH EAST AREA TEAM
800053125,*NPS (SHOES) LTD,13584,71,41.10,CLOTHING,02/10/14,,TWICKENHAM FS
800053125,*NPS (SHOES) LTD,13584,72,41.10,CLOTHING,02/10/14,,WENNINGTON FIRE STATION
800053125,*NPS (SHOES) LTD,13584,73,41.10,CLOTHING,02/10/14,,TWICKENHAM FS
800053125,*NPS (SHOES) LTD,13584,74,30.05,CLOTHING,02/10/14,,FOREST HILL FS
800053125,*NPS (SHOES) LTD,13584,75,30.05,CLOTHING,02/10/14,,ORPINGTON FS
800053125,*NPS (SHOES) LTD,13584,76,30.05,CLOTHING,02/10/14,,ERITH FS
800053125,*NPS (SHOES) LTD,13584,77,30.05,CLOTHING,02/10/14,,WANDSWORTH FIRE STATION
800053125,*NPS (SHOES) LTD,13584,78,30.05,CLOTHING,02/10/14,,POPLAR FS
800053125,*NPS (SHOES) LTD,13584,79,30.05,CLOTHING,02/10/14,,EALING FS
800053125,*NPS (SHOES) LTD,13584,80,30.05,CLOTHING,02/10/14,,EALING FS
800053125,*NPS (SHOES) LTD,13584,81,30.05,CLOTHING,02/10/14,,SCHOOLS TEAM
800053125,*NPS (SHOES) LTD,13584,82,29.45,CLOTHING,02/10/14,,ERITH FS
800053125,*NPS (SHOES) LTD,13584,83,29.45,CLOTHING,02/10/14,,ORPINGTON FS
800053125,*NPS (SHOES) LTD,13584,84,29.45,CLOTHING,02/10/14,,WILLESDEN FS
800053125,*NPS (SHOES) LTD,13584,85,29.45,CLOTHING,02/10/14,,HENDON FS
800053125,*NPS (SHOES) LTD,13584,86,29.45,CLOTHING,02/10/14,,ERITH FS
800053125,*NPS (SHOES) LTD,13584,87,29.45,CLOTHING,02/10/14,,EDMONTON FIRE STATION
800053125,*NPS (SHOES) LTD,13584,88,29.45,CLOTHING,02/10/14,,WIMBLEDON FIRE STATION
800053125,*NPS (SHOES) LTD,13584,89,41.10,CLOTHING,02/10/14,,SOUTHGATE FIRE STATION
800053125,*NPS (SHOES) LTD,13584,90,41.10,CLOTHING,02/10/14,,SOUTHGATE FIRE STATION
800052923,REDFERN TRAVEL LTD,1359431,1,477.90,PUBLIC TRANSPORT,02/10/14,477.90,SPECIAL OPERATIONAL GROUP
800052922,REDFERN TRAVEL LTD,1359551,1,652.80,PUBLIC TRANSPORT,02/10/14,652.80,SPECIAL OPERATIONAL GROUP
800052932,REDFERN TRAVEL LTD,1359603,1,436.20,PUBLIC TRANSPORT,02/10/14,436.20,FIRE ENGINEERING
800053126,*NPS (SHOES) LTD,13623,1,29.45,CLOTHING,02/10/14,"2,403.20",SCHOOLS TEAM
800053126,*NPS (SHOES) LTD,13623,2,29.45,CLOTHING,02/10/14,,BROMLEY FS
800053126,*NPS (SHOES) LTD,13623,3,29.45,CLOTHING,02/10/14,,BATTERSEA FIRE STATION
800053126,*NPS (SHOES) LTD,13623,4,29.45,CLOTHING,02/10/14,,EALING FS
800053126,*NPS (SHOES) LTD,13623,5,35.00,CLOTHING,02/10/14,,EALING FS
800053126,*NPS (SHOES) LTD,13623,6,30.05,CLOTHING,02/10/14,,BEXLEY FS
800053126,*NPS (SHOES) LTD,13623,7,30.05,CLOTHING,02/10/14,,LEWISHAM FS
800053126,*NPS (SHOES) LTD,13623,8,30.05,CLOTHING,02/10/14,,LAMBETH RIVER FS
800053126,*NPS (SHOES) LTD,13623,9,30.05,CLOTHING,02/10/14,,PADDINGTON FS
800053126,*NPS (SHOES) LTD,13623,10,30.05,CLOTHING,02/10/14,,WOODFORE FIRE STATION
800053126,*NPS (SHOES) LTD,13623,11,30.05,CLOTHING,02/10/14,,BARKING FIRE STATION
800053126,*NPS (SHOES) LTD,13623,12,30.05,CLOTHING,02/10/14,,NORTH KENSINGTON FS
800053126,*NPS (SHOES) LTD,13623,13,30.05,CLOTHING,02/10/14,,FINCHLEY FS
800053126,*NPS (SHOES) LTD,13623,14,30.05,CLOTHING,02/10/14,,FOREST HILL FS
800053126,*NPS (SHOES) LTD,13623,15,30.05,CLOTHING,02/10/14,,HOMERTON FIRE STATION
800053126,*NPS (SHOES) LTD,13623,16,29.45,CLOTHING,02/10/14,,HAROLD HILL FIRE STATION
800053126,*NPS (SHOES) LTD,13623,17,29.45,CLOTHING,02/10/14,,BARKING FIRE STATION
800053126,*NPS (SHOES) LTD,13623,18,29.45,CLOTHING,02/10/14,,WOODSIDE FS
800053126,*NPS (SHOES) LTD,13623,19,29.45,CLOTHING,02/10/14,,ILFORD FIRE STATION
800053126,*NPS (SHOES) LTD,13623,20,29.45,CLOTHING,02/10/14,,BARKING FIRE STATION
800053126,*NPS (SHOES) LTD,13623,21,29.45,CLOTHING,02/10/14,,EAST HAM FIRE STATION
800053126,*NPS (SHOES) LTD,13623,22,29.45,CLOTHING,02/10/14,,FINCHLEY FS
800053126,*NPS (SHOES) LTD,13623,23,29.45,CLOTHING,02/10/14,,WALTHAMSTOW FS
800053126,*NPS (SHOES) LTD,13623,24,29.45,CLOTHING,02/10/14,,LEYTONSTONE FS
800053126,*NPS (SHOES) LTD,13623,25,29.45,CLOTHING,02/10/14,,FOREST HILL FS
800053126,*NPS (SHOES) LTD,13623,26,29.45,CLOTHING,02/10/14,,KINGSTON FS
800053126,*NPS (SHOES) LTD,13623,27,29.45,CLOTHING,02/10/14,,BARKING FIRE STATION
800053126,*NPS (SHOES) LTD,13623,28,29.45,CLOTHING,02/10/14,,PADDINGTON FS
800053126,*NPS (SHOES) LTD,13623,29,29.45,CLOTHING,02/10/14,,PADDINGTON FS
800053126,*NPS (SHOES) LTD,13623,30,29.45,CLOTHING,02/10/14,,ENFORCEMENT - NORTH EAST
800053126,*NPS (SHOES) LTD,13623,31,29.45,CLOTHING,02/10/14,,PLUMSTEAD FS
800053126,*NPS (SHOES) LTD,13623,32,29.45,CLOTHING,02/10/14,,HOMERTON FIRE STATION
800053126,*NPS (SHOES) LTD,13623,33,29.45,CLOTHING,02/10/14,,FLEET ENGINEERING
800053126,*NPS (SHOES) LTD,13623,34,29.45,CLOTHING,02/10/14,,BARKING FIRE STATION
800053126,*NPS (SHOES) LTD,13623,35,29.45,CLOTHING,02/10/14,,HOLLOWAY FIRE STATION
800053126,*NPS (SHOES) LTD,13623,36,29.45,CLOTHING,02/10/14,,PADDINGTON FS
800053126,*NPS (SHOES) LTD,13623,37,29.45,CLOTHING,02/10/14,,KINGSTON FS
800053126,*NPS (SHOES) LTD,13623,38,29.45,CLOTHING,02/10/14,,ROMFORD FIRE STATION
800053126,*NPS (SHOES) LTD,13623,39,29.45,CLOTHING,02/10/14,,CHISWICK FS
800053126,*NPS (SHOES) LTD,13623,40,28.45,CLOTHING,02/10/14,,WOODSIDE FS
800053126,*NPS (SHOES) LTD,13623,41,30.05,CLOTHING,02/10/14,,PURLEY FS
800053126,*NPS (SHOES) LTD,13623,42,30.05,CLOTHING,02/10/14,,HAYES FS
800053126,*NPS (SHOES) LTD,13623,43,30.05,CLOTHING,02/10/14,,SOUTHALL FS
800053126,*NPS (SHOES) LTD,13623,44,29.45,CLOTHING,02/10/14,,LEE GREEN FS
800053126,*NPS (SHOES) LTD,13623,45,29.45,CLOTHING,02/10/14,,HAYES FS
800053126,*NPS (SHOES) LTD,13623,46,29.45,CLOTHING,02/10/14,,PECKHAM FS
800053126,*NPS (SHOES) LTD,13623,47,29.45,CLOTHING,02/10/14,,HAYES FS
800053126,*NPS (SHOES) LTD,13623,48,29.45,CLOTHING,02/10/14,,LAMBETH FS
800053126,*NPS (SHOES) LTD,13623,49,29.45,CLOTHING,02/10/14,,LAMBETH FS
800053126,*NPS (SHOES) LTD,13623,50,29.45,CLOTHING,02/10/14,,ENFIELD FIRE STATION
800053126,*NPS (SHOES) LTD,13623,51,29.45,CLOTHING,02/10/14,,BECKENHAM FS
800053126,*NPS (SHOES) LTD,13623,52,29.45,CLOTHING,02/10/14,,BETHNAL GREEN FS
800053126,*NPS (SHOES) LTD,13623,53,29.45,CLOTHING,02/10/14,,TOTTENHAM FIRE STATION
800053126,*NPS (SHOES) LTD,13623,54,29.45,CLOTHING,02/10/14,,BETHNAL GREEN FS
800053126,*NPS (SHOES) LTD,13623,55,29.45,CLOTHING,02/10/14,,ENFORCEMENT - NORTH EAST
800053126,*NPS (SHOES) LTD,13623,56,29.45,CLOTHING,02/10/14,,STANMORE FS
800053126,*NPS (SHOES) LTD,13623,57,30.05,CLOTHING,02/10/14,,TOTTENHAM FIRE STATION
800053126,*NPS (SHOES) LTD,13623,58,30.05,CLOTHING,02/10/14,,ENFORCEMENT - NORTH EAST
800053126,*NPS (SHOES) LTD,13623,59,30.05,CLOTHING,02/10/14,,SUTTON FS
800053126,*NPS (SHOES) LTD,13623,60,30.05,CLOTHING,02/10/14,,POPLAR FS
800053126,*NPS (SHOES) LTD,13623,61,30.05,CLOTHING,02/10/14,,HENDON FS
800053126,*NPS (SHOES) LTD,13623,62,30.05,CLOTHING,02/10/14,,HOLLOWAY FIRE STATION
800053126,*NPS (SHOES) LTD,13623,63,30.05,CLOTHING,02/10/14,,TOTTENHAM FIRE STATION
800053126,*NPS (SHOES) LTD,13623,64,30.05,CLOTHING,02/10/14,,CHELSEA FS
800053126,*NPS (SHOES) LTD,13623,65,30.05,CLOTHING,02/10/14,,BROMLEY FS
800053126,*NPS (SHOES) LTD,13623,66,29.45,CLOTHING,02/10/14,,CFS - NEWHAM
800053126,*NPS (SHOES) LTD,13623,67,29.45,CLOTHING,02/10/14,,DEPTFORD FS
800053126,*NPS (SHOES) LTD,13623,68,29.45,CLOTHING,02/10/14,,HARROW FS
800053126,*NPS (SHOES) LTD,13623,69,29.45,CLOTHING,02/10/14,,HAMMERSMITH FS
800053126,*NPS (SHOES) LTD,13623,70,29.45,CLOTHING,02/10/14,,SPECIAL OPERATIONAL GROUP
800053126,*NPS (SHOES) LTD,13623,71,29.45,CLOTHING,02/10/14,,FINCHLEY FS
800053126,*NPS (SHOES) LTD,13623,72,29.45,CLOTHING,02/10/14,,EAST GREENWICH FS
800053126,*NPS (SHOES) LTD,13623,73,29.45,CLOTHING,02/10/14,,EALING FS
800053126,*NPS (SHOES) LTD,13623,74,29.45,CLOTHING,02/10/14,,POPLAR FS
800053126,*NPS (SHOES) LTD,13623,75,29.45,CLOTHING,02/10/14,,STOKE NEWINGTON FIRE STATION
800053126,*NPS (SHOES) LTD,13623,76,29.45,CLOTHING,02/10/14,,HARROW FS
800053126,*NPS (SHOES) LTD,13623,77,29.45,CLOTHING,02/10/14,,HAMMERSMITH FS
800053126,*NPS (SHOES) LTD,13623,78,29.45,CLOTHING,02/10/14,,LAMBETH FS
800053126,*NPS (SHOES) LTD,13623,79,29.45,CLOTHING,02/10/14,,HAMMERSMITH FS
800053126,*NPS (SHOES) LTD,13623,80,29.45,CLOTHING,02/10/14,,HESTON FS
800053126,*NPS (SHOES) LTD,13623,81,29.45,CLOTHING,02/10/14,,RICHMOND FS
110914C,GREATER LONDON AUTHORITY======,1800004273,1,"10,000.00",CONSULTANTS,02/10/14,"10,000.00",COMMS PUBLIC AFFAIRS
290914G,B NOKES CONTRACTS LTD,2375,1,"1,271.25",TACTICAL DAY TO DAY,02/10/14,"1,271.25",PREMISES HOLDING A/C STC
290914G,AUTOGLASS LIMITED=============,23898988,1,984.09,WINDSCREEN & TYRE CHARGES,02/10/14,984.09,LEASE CARS ADMINISTRATION
290914G,AUTOGLASS LIMITED=============,24093015,1,689.36,WINDSCREEN & TYRE CHARGES,02/10/14,689.36,LEASE CARS ADMINISTRATION
800053311,ADECCO UK LIMITED=============,26923280,1,"1,131.20",FRS STAFF AGENCY,02/10/14,"1,131.20",TSS MANAGEMENT
800053325,ADECCO UK LIMITED=============,26923285,1,781.14,FRS STAFF AGENCY,02/10/14,781.14,LEGAL SERVICES
800053316,ADECCO UK LIMITED=============,26923288,1,"1,466.50",FRS STAFF AGENCY,02/10/14,"1,466.50",LEGAL SERVICES
260914G,STORM TECHNOLOGIES============,290646,1,634.27,ACQUISITIONS,02/10/14,"1,226.46",I&CT CONTRACT & ASSET MANGMNT
260914G,STORM TECHNOLOGIES============,290646,2,592.19,ACQUISITIONS,02/10/14,,I&CT CONTRACT & ASSET MANGMNT
260914C,DANS LUXURY TRAVEL LTD========,35148,1,590.00,CONTRACT HIRE,02/10/14,590.00,CFS - HARINGEY
140823,DANS LUXURY TRAVEL LTD========,35588,1,525.00,MILEAGE CHARGES,02/10/14,525.00,LEASE CARS ADMINISTRATION
290914G,R J HOLLAND LTD===============,4957,1,820.00,STRATEGIC (NON CYCLICAL),02/10/14,820.00,HARROW FS
250914C,FLEXERA SOFTWARE LIMITED======,5015171,1,819.00,MAINTENANCE & SUPPORT,02/10/14,"2,457.00",I&CT SYSTEMS & INTEGRATION
250914C,FLEXERA SOFTWARE LIMITED======,5015171,2,819.00,MAINTENANCE & SUPPORT,02/10/14,,I&CT SYSTEMS & INTEGRATION
250914C,FLEXERA SOFTWARE LIMITED======,5015171,3,819.00,MAINTENANCE & SUPPORT,02/10/14,,I&CT SYSTEMS & INTEGRATION
140813,BRITISH GAS BUSINESS==========,6890008141,1,406.12,ELECTRICITY,02/10/14,"11,934.17",ACTON FS
140813,BRITISH GAS BUSINESS==========,6890008141,2,330.90,ELECTRICITY,02/10/14,,ADDINGTON FS
140813,BRITISH GAS BUSINESS==========,6890008141,3,512.20,ELECTRICITY,02/10/14,,BARKING FIRE STATION
140813,BRITISH GAS BUSINESS==========,6890008141,4,554.89,ELECTRICITY,02/10/14,,BARKING FIRE STATION
140813,BRITISH GAS BUSINESS==========,6890008141,5,398.86,ELECTRICITY,02/10/14,,BARNET FS
140813,BRITISH GAS BUSINESS==========,6890008141,6,434.78,ELECTRICITY,02/10/14,,BATTERSEA FIRE STATION
140813,BRITISH GAS BUSINESS==========,6890008141,7,486.77,ELECTRICITY,02/10/14,,BECKENHAM FS
140813,BRITISH GAS BUSINESS==========,6890008141,8,132.79,ELECTRICITY,02/10/14,,BELSIZE FS
140813,BRITISH GAS BUSINESS==========,6890008141,9,402.75,ELECTRICITY,02/10/14,,BETHNAL GREEN FS
140813,BRITISH GAS BUSINESS==========,6890008141,10,551.68,ELECTRICITY,02/10/14,,BEXLEY FS
140813,BRITISH GAS BUSINESS==========,6890008141,11,247.90,ELECTRICITY,02/10/14,,BIGGIN HILL FS
140813,BRITISH GAS BUSINESS==========,6890008141,12,172.24,ELECTRICITY,02/10/14,,BOW FS
140813,BRITISH GAS BUSINESS==========,6890008141,13,389.83,ELECTRICITY,02/10/14,,BRIXTON FS
140813,BRITISH GAS BUSINESS==========,6890008141,14,629.44,ELECTRICITY,02/10/14,,BROMLEY FS
140813,BRITISH GAS BUSINESS==========,6890008141,15,476.76,ELECTRICITY,02/10/14,,CHELSEA FS
140813,BRITISH GAS BUSINESS==========,6890008141,16,348.33,ELECTRICITY,02/10/14,,CHINGFORD FS
140813,BRITISH GAS BUSINESS==========,6890008141,17,137.57,ELECTRICITY,02/10/14,,CHISWICK FS
140813,BRITISH GAS BUSINESS==========,6890008141,18,206.65,ELECTRICITY,02/10/14,,CLAPHAM FS
140813,BRITISH GAS BUSINESS==========,6890008141,19,61.04,ELECTRICITY,02/10/14,,CLAPHAM FS
140813,BRITISH GAS BUSINESS==========,6890008141,20,31.85,ELECTRICITY,02/10/14,,CLAPHAM FS
140813,BRITISH GAS BUSINESS==========,6890008141,21,57.44,ELECTRICITY,02/10/14,,CLAPHAM FS
140813,BRITISH GAS BUSINESS==========,6890008141,22,162.53,ELECTRICITY,02/10/14,,CLERKENWELL FIRE STATION
140813,BRITISH GAS BUSINESS==========,6890008141,23,22.67,ELECTRICITY,02/10/14,,CLERKENWELL FIRE STATION
140813,BRITISH GAS BUSINESS==========,6890008141,24,13.21,ELECTRICITY,02/10/14,,CLERKENWELL FIRE STATION
140813,BRITISH GAS BUSINESS==========,6890008141,25,16.83,ELECTRICITY,02/10/14,,CLERKENWELL FIRE STATION
140813,BRITISH GAS BUSINESS==========,6890008141,26,545.27,ELECTRICITY,02/10/14,,CROYDON FS
140813,BRITISH GAS BUSINESS==========,6890008141,27,823.99,ELECTRICITY,02/10/14,,CROYDON FS
140813,BRITISH GAS BUSINESS==========,6890008141,28,743.94,ELECTRICITY,02/10/14,,DAGENHAM FIRE STATION
140813,BRITISH GAS BUSINESS==========,6890008141,29,377.59,ELECTRICITY,02/10/14,,DEPTFORD FS
140813,BRITISH GAS BUSINESS==========,6890008141,30,319.95,ELECTRICITY,02/10/14,,DOCKHEAD FS
140813,BRITISH GAS BUSINESS==========,6890008141,31,60.88,ELECTRICITY,02/10/14,,DOWNHAM FS
140813,BRITISH GAS BUSINESS==========,6890008141,32,355.21,ELECTRICITY,02/10/14,,EALING FS
140813,BRITISH GAS BUSINESS==========,6890008141,33,349.53,ELECTRICITY,02/10/14,,EAST GREENWICH FS
140813,BRITISH GAS BUSINESS==========,6890008141,34,713.52,ELECTRICITY,02/10/14,,EAST HAM FIRE STATION
140813,BRITISH GAS BUSINESS==========,6890008141,35,458.26,ELECTRICITY,02/10/14,,EDMONTON FIRE STATION
140815,BRITISH GAS BUSINESS==========,6890008143,1,174.11,ELECTRICITY,02/10/14,"13,313.19",KINGSLAND FIRE STATION
140815,BRITISH GAS BUSINESS==========,6890008143,2,164.87,ELECTRICITY,02/10/14,,KINGSTON FS
140815,BRITISH GAS BUSINESS==========,6890008143,3,56.60,ELECTRICITY,02/10/14,,KNIGHTSBRIDGE FS
140815,BRITISH GAS BUSINESS==========,6890008143,4,29.07,ELECTRICITY,02/10/14,,KNIGHTSBRIDGE FS
140815,BRITISH GAS BUSINESS==========,6890008143,5,189.87,ELECTRICITY,02/10/14,,KNIGHTSBRIDGE FS
140815,BRITISH GAS BUSINESS==========,6890008143,6,241.29,ELECTRICITY,02/10/14,,LAMBETH RIVER FS
140815,BRITISH GAS BUSINESS==========,6890008143,7,38.52,ELECTRICITY,02/10/14,,LEE GREEN FS
140815,BRITISH GAS BUSINESS==========,6890008143,8,357.38,ELECTRICITY,02/10/14,,LEE GREEN FS
140815,BRITISH GAS BUSINESS==========,6890008143,9,908.30,ELECTRICITY,02/10/14,,LEWISHAM FS
140815,BRITISH GAS BUSINESS==========,6890008143,10,639.87,ELECTRICITY,02/10/14,,LEYTON FS
140815,BRITISH GAS BUSINESS==========,6890008143,11,426.11,ELECTRICITY,02/10/14,,LEYTONSTONE FS
140815,BRITISH GAS BUSINESS==========,6890008143,12,220.31,ELECTRICITY,02/10/14,,MILL HILL FS
140815,BRITISH GAS BUSINESS==========,6890008143,13,"1,619.40",ELECTRICITY,02/10/14,,MILLWALL FS
140815,BRITISH GAS BUSINESS==========,6890008143,14,285.19,ELECTRICITY,02/10/14,,MITCHAM FIRE STATION
140815,BRITISH GAS BUSINESS==========,6890008143,15,688.89,ELECTRICITY,02/10/14,,NEW CROSS FS
140815,BRITISH GAS BUSINESS==========,6890008143,16,264.23,ELECTRICITY,02/10/14,,PREMISES HOLDING A/C HQ
140815,BRITISH GAS BUSINESS==========,6890008143,17,160.56,ELECTRICITY,02/10/14,,NEW MALDEN FS
140815,BRITISH GAS BUSINESS==========,6890008143,18,300.01,ELECTRICITY,02/10/14,,NORBURY FS
140815,BRITISH GAS BUSINESS==========,6890008143,19,534.36,ELECTRICITY,02/10/14,,NORTH KENSINGTON FS
140815,BRITISH GAS BUSINESS==========,6890008143,20,312.43,ELECTRICITY,02/10/14,,NORTHOLT FS
140815,BRITISH GAS BUSINESS==========,6890008143,21,390.79,ELECTRICITY,02/10/14,,ORPINGTON FS
140815,BRITISH GAS BUSINESS==========,6890008143,22,"1,005.87",ELECTRICITY,02/10/14,,PADDINGTON FS
140815,BRITISH GAS BUSINESS==========,6890008143,23,383.76,ELECTRICITY,02/10/14,,PARK ROYAL FS
140815,BRITISH GAS BUSINESS==========,6890008143,24,433.58,ELECTRICITY,02/10/14,,PECKHAM FS
140815,BRITISH GAS BUSINESS==========,6890008143,25,316.45,ELECTRICITY,02/10/14,,PLUMSTEAD FS
140815,BRITISH GAS BUSINESS==========,6890008143,26,690.69,ELECTRICITY,02/10/14,,POPLAR FS
140815,BRITISH GAS BUSINESS==========,6890008143,27,330.39,ELECTRICITY,02/10/14,,PURLEY FS
140815,BRITISH GAS BUSINESS==========,6890008143,28,327.78,ELECTRICITY,02/10/14,,ROMFORD FIRE STATION
140815,BRITISH GAS BUSINESS==========,6890008143,29,279.00,ELECTRICITY,02/10/14,,RUISLIP FS
140815,BRITISH GAS BUSINESS==========,6890008143,30,394.72,ELECTRICITY,02/10/14,,SHADWELL FS
140815,BRITISH GAS BUSINESS==========,6890008143,31,579.26,ELECTRICITY,02/10/14,,PREMISES HOLDING A/C HQ
140815,BRITISH GAS BUSINESS==========,6890008143,32,454.82,ELECTRICITY,02/10/14,,SHOREDITCH FIRE STATION
140815,BRITISH GAS BUSINESS==========,6890008143,33,33.61,ELECTRICITY,02/10/14,,SHOREDITCH FIRE STATION
140815,BRITISH GAS BUSINESS==========,6890008143,34,30.00,ELECTRICITY,02/10/14,,SHOREDITCH FIRE STATION
140815,BRITISH GAS BUSINESS==========,6890008143,35,24.53,ELECTRICITY,02/10/14,,SHOREDITCH FIRE STATION
140815,BRITISH GAS BUSINESS==========,6890008143,36,26.57,ELECTRICITY,02/10/14,,SHOREDITCH FIRE STATION
140816,BRITISH GAS BUSINESS==========,6890008144,1,574.33,ELECTRICITY,02/10/14,"14,602.74",SIDCUP FS
140816,BRITISH GAS BUSINESS==========,6890008144,2,198.87,ELECTRICITY,02/10/14,,SILVERTOWN FIRE STATION
140816,BRITISH GAS BUSINESS==========,6890008144,3,720.73,ELECTRICITY,02/10/14,,SOHO FS
140816,BRITISH GAS BUSINESS==========,6890008144,4,341.15,ELECTRICITY,02/10/14,,SOUTHALL FS
140816,BRITISH GAS BUSINESS==========,6890008144,5,239.65,ELECTRICITY,02/10/14,,SOUTHALL FS
140816,BRITISH GAS BUSINESS==========,6890008144,6,136.28,ELECTRICITY,02/10/14,,SOUTHGATE FIRE STATION
140816,BRITISH GAS BUSINESS==========,6890008144,7,287.80,ELECTRICITY,02/10/14,,PREMISES HOLDING A/C HQ
140816,BRITISH GAS BUSINESS==========,6890008144,8,172.00,ELECTRICITY,02/10/14,,STANMORE FS
140816,BRITISH GAS BUSINESS==========,6890008144,9,448.95,ELECTRICITY,02/10/14,,STOKE NEWINGTON FIRE STATION
140816,BRITISH GAS BUSINESS==========,6890008144,10,"2,688.30",ELECTRICITY,02/10/14,,STRATFORD FIRE STATION
140816,BRITISH GAS BUSINESS==========,6890008144,11,690.12,ELECTRICITY,02/10/14,,STRATFORD FIRE STATION
140816,BRITISH GAS BUSINESS==========,6890008144,12,241.84,ELECTRICITY,02/10/14,,SURBITON FS
140816,BRITISH GAS BUSINESS==========,6890008144,13,24.50,ELECTRICITY,02/10/14,,SURBITON FS
140816,BRITISH GAS BUSINESS==========,6890008144,14,140.31,ELECTRICITY,02/10/14,,SUTTON FS
140816,BRITISH GAS BUSINESS==========,6890008144,15,595.71,ELECTRICITY,02/10/14,,TOOTING FIRE STATION
140816,BRITISH GAS BUSINESS==========,6890008144,16,484.31,ELECTRICITY,02/10/14,,TOTTENHAM FIRE STATION
140816,BRITISH GAS BUSINESS==========,6890008144,17,408.58,ELECTRICITY,02/10/14,,TWICKENHAM FS
140816,BRITISH GAS BUSINESS==========,6890008144,18,445.08,ELECTRICITY,02/10/14,,WEST NORWOOD FS
140816,BRITISH GAS BUSINESS==========,6890008144,19,692.63,ELECTRICITY,02/10/14,,WALTHAMSTOW FS
140816,BRITISH GAS BUSINESS==========,6890008144,20,438.56,ELECTRICITY,02/10/14,,WANDSWORTH FIRE STATION
140816,BRITISH GAS BUSINESS==========,6890008144,21,"1,250.46",ELECTRICITY,02/10/14,,WEMBLEY FS
140816,BRITISH GAS BUSINESS==========,6890008144,22,334.28,ELECTRICITY,02/10/14,,WENNINGTON FIRE STATION
140816,BRITISH GAS BUSINESS==========,6890008144,23,338.78,ELECTRICITY,02/10/14,,WEST HAMPSTEAD FS
140816,BRITISH GAS BUSINESS==========,6890008144,24,484.53,ELECTRICITY,02/10/14,,WEST NORWOOD FS
140816,BRITISH GAS BUSINESS==========,6890008144,25,19.24,ELECTRICITY,02/10/14,,WESTMINSTER FS
140816,BRITISH GAS BUSINESS==========,6890008144,26,16.74,ELECTRICITY,02/10/14,,WESTMINSTER FS
140816,BRITISH GAS BUSINESS==========,6890008144,27,14.60,ELECTRICITY,02/10/14,,WESTMINSTER FS
140816,BRITISH GAS BUSINESS==========,6890008144,28,292.32,ELECTRICITY,02/10/14,,WESTMINSTER FS
140816,BRITISH GAS BUSINESS==========,6890008144,29,436.34,ELECTRICITY,02/10/14,,WHITECHAPEL FS
140816,BRITISH GAS BUSINESS==========,6890008144,30,250.62,ELECTRICITY,02/10/14,,WILLESDEN FS
140816,BRITISH GAS BUSINESS==========,6890008144,31,360.19,ELECTRICITY,02/10/14,,WIMBLEDON FIRE STATION
140816,BRITISH GAS BUSINESS==========,6890008144,32,325.41,ELECTRICITY,02/10/14,,WOODFORE FIRE STATION
140816,BRITISH GAS BUSINESS==========,6890008144,33,401.62,ELECTRICITY,02/10/14,,WOODSIDE FS
140816,BRITISH GAS BUSINESS==========,6890008144,34,13.86,ELECTRICITY,02/10/14,,WOOLWICH FS
140816,BRITISH GAS BUSINESS==========,6890008144,35,94.05,ELECTRICITY,02/10/14,,WOOLWICH FS
140823,DEFENCE BUSINESS SERVICES,7377680,1,"33,967.60",HIRE OF FACILITIES,02/10/14,"33,967.60",BUSINESS CONTINUITY
250914C,G4S FIRE & SECURITY SYSTEMS UK,876190,1,508.21,PREMISES SECURITY,02/10/14,508.21,CROYDON FS
180914C,DRAEGER SAFETY UK LIMITED=====,90456736,1,166.65,PROTECTIVE EQUIPT - PARTS,02/10/14,"2,619.55",
180914C,DRAEGER SAFETY UK LIMITED=====,90456736,2,36.90,PROTECTIVE EQUIPT - PARTS,02/10/14,,
180914C,DRAEGER SAFETY UK LIMITED=====,90456736,3,876.00,PROTECTIVE EQUIPT - PARTS,02/10/14,,
180914C,DRAEGER SAFETY UK LIMITED=====,90456736,4,132.00,PROTECTIVE EQUIPT - PARTS,02/10/14,,
180914C,DRAEGER SAFETY UK LIMITED=====,90456736,5,212.40,PROTECTIVE EQUIPT - PARTS,02/10/14,,
180914C,DRAEGER SAFETY UK LIMITED=====,90456736,6,380.20,PROTECTIVE EQUIPT - PARTS,02/10/14,,
180914C,DRAEGER SAFETY UK LIMITED=====,90456736,7,815.40,PROTECTIVE EQUIPT - PARTS,02/10/14,,
240914G,DRAEGER SAFETY UK LIMITED=====,90456949,1,396.55,PROTECTIVE EQUIPT - PARTS,02/10/14,396.55,
220914D,DRAEGER SAFETY UK LIMITED=====,90457110,1,"3,892.20",PROTECTIVE EQUIPT - PARTS,02/10/14,"3,892.20",
160914E,CAPITA SECURE INFO SOLUTIONS,93879550,1,225.00,RADIO,02/10/14,675.00,ORPINGTON FS
160914E,CAPITA SECURE INFO SOLUTIONS,93879550,2,225.00,RADIO,02/10/14,,DOWGATE FIRE STATION
160914E,CAPITA SECURE INFO SOLUTIONS,93879550,3,225.00,RADIO,02/10/14,,KINGSTON FS
150914C,CAPITA SECURE INFO SOLUTIONS,93879623,1,"53,214.26",CAMS CONTRACT,02/10/14,"53,214.26",C & M SERVICE TEAM
150914C,CAPITA SECURE INFO SOLUTIONS,93879821,1,"13,682.62",CAMS CONTRACT,02/10/14,"13,682.62",C & M SERVICE TEAM
290914G,E&S B DAVIS LTD,DAV/52001,1,360.00,OPERATIONAL EQUIP-PURCHASE,02/10/14,360.00,BETHNAL GREEN FS
290914G,E&S B DAVIS LTD,DAV/52344,1,360.00,OPERATIONAL EQUIP-PURCHASE,02/10/14,360.00,ISLINGTON FIRE STATION
800053454,ALLSTAR BUSINESS SOLUTIONS LTD,E2003533977,1,808.40,FUEL,02/10/14,"20,061.85",CENTRAL DEPARTMENT ACCOUNT
800053454,ALLSTAR BUSINESS SOLUTIONS LTD,E2003533977,2,727.70,FUEL,02/10/14,,EDMONTON FIRE STATION
800053454,ALLSTAR BUSINESS SOLUTIONS LTD,E2003533977,3,534.87,FUEL,02/10/14,,CORPORATE PROCUREMENT SERVICES
800053454,ALLSTAR BUSINESS SOLUTIONS LTD,E2003533977,4,501.01,FUEL,02/10/14,,WEMBLEY FS
800053454,ALLSTAR BUSINESS SOLUTIONS LTD,E2003533977,5,480.49,FUEL,02/10/14,,TOTTENHAM FIRE STATION
800053454,ALLSTAR BUSINESS SOLUTIONS LTD,E2003533977,6,406.31,FUEL,02/10/14,,PADDINGTON FS
800053454,ALLSTAR BUSINESS SOLUTIONS LTD,E2003533977,7,397.55,FUEL,02/10/14,,HENDON FS
800053454,ALLSTAR BUSINESS SOLUTIONS LTD,E2003533977,8,392.80,FUEL,02/10/14,,DAGENHAM FIRE STATION
800053454,ALLSTAR BUSINESS SOLUTIONS LTD,E2003533977,9,369.46,FUEL,02/10/14,,PLUMSTEAD FS
800053454,ALLSTAR BUSINESS SOLUTIONS LTD,E2003533977,10,354.40,FUEL,02/10/14,,LAMBETH FS
800053454,ALLSTAR BUSINESS SOLUTIONS LTD,E2003533977,11,345.36,FUEL,02/10/14,,FIRE INVESTIGATION UNIT
800053454,ALLSTAR BUSINESS SOLUTIONS LTD,E2003533977,12,339.28,FUEL,02/10/14,,ENFIELD FIRE STATION
800053454,ALLSTAR BUSINESS SOLUTIONS LTD,E2003533977,13,328.61,FUEL,02/10/14,,HOMERTON FIRE STATION
800053454,ALLSTAR BUSINESS SOLUTIONS LTD,E2003533977,14,326.16,FUEL,02/10/14,,WENNINGTON FIRE STATION
800053454,ALLSTAR BUSINESS SOLUTIONS LTD,E2003533977,15,325.60,FUEL,02/10/14,,HILLINGDON FS
800053454,ALLSTAR BUSINESS SOLUTIONS LTD,E2003533977,16,314.48,FUEL,02/10/14,,WEST NORWOOD FS
800053454,ALLSTAR BUSINESS SOLUTIONS LTD,E2003533977,17,305.19,FUEL,02/10/14,,BROMLEY FS
800053454,ALLSTAR BUSINESS SOLUTIONS LTD,E2003533977,18,304.71,FUEL,02/10/14,,HORNSEY FIRE STATION
800053454,ALLSTAR BUSINESS SOLUTIONS LTD,E2003533977,19,303.86,FUEL,02/10/14,,HESTON FS
800053454,ALLSTAR BUSINESS SOLUTIONS LTD,E2003533977,20,303.26,FUEL,02/10/14,,WEST HAMPSTEAD FS
800053454,ALLSTAR BUSINESS SOLUTIONS LTD,E2003533977,21,301.34,FUEL,02/10/14,,CLAPHAM FS
800053454,ALLSTAR BUSINESS SOLUTIONS LTD,E2003533977,22,292.18,FUEL,02/10/14,,EAST HAM FIRE STATION
800053454,ALLSTAR BUSINESS SOLUTIONS LTD,E2003533977,23,290.74,FUEL,02/10/14,,NORTH KENSINGTON FS
800053454,ALLSTAR BUSINESS SOLUTIONS LTD,E2003533977,24,280.26,FUEL,02/10/14,,GREENWICH FS
800053454,ALLSTAR BUSINESS SOLUTIONS LTD,E2003533977,25,279.83,FUEL,02/10/14,,NORBURY FS
800053454,ALLSTAR BUSINESS SOLUTIONS LTD,E2003533977,26,274.92,FUEL,02/10/14,,WIMBLEDON FIRE STATION
800053454,ALLSTAR BUSINESS SOLUTIONS LTD,E2003533977,27,270.46,FUEL,02/10/14,,EAST GREENWICH FS
800053454,ALLSTAR BUSINESS SOLUTIONS LTD,E2003533977,28,269.81,FUEL,02/10/14,,CHELSEA FS
800053454,ALLSTAR BUSINESS SOLUTIONS LTD,E2003533977,29,267.62,FUEL,02/10/14,,ISLINGTON FIRE STATION
800053454,ALLSTAR BUSINESS SOLUTIONS LTD,E2003533977,30,261.45,FUEL,02/10/14,,BARKING FIRE STATION
800053454,ALLSTAR BUSINESS SOLUTIONS LTD,E2003533977,31,250.90,FUEL,02/10/14,,ORPINGTON FS
800053454,ALLSTAR BUSINESS SOLUTIONS LTD,E2003533977,32,244.95,FUEL,02/10/14,,BRIXTON FS
800053454,ALLSTAR BUSINESS SOLUTIONS LTD,E2003533977,33,230.22,FUEL,02/10/14,,HOLLOWAY FIRE STATION
800053454,ALLSTAR BUSINESS SOLUTIONS LTD,E2003533977,34,213.49,FUEL,02/10/14,,TOOTING FIRE STATION
800053454,ALLSTAR BUSINESS SOLUTIONS LTD,E2003533977,35,209.85,FUEL,02/10/14,,EUSTON FS
800053454,ALLSTAR BUSINESS SOLUTIONS LTD,E2003533977,36,209.47,FUEL,02/10/14,,SOUTHALL FS
800053454,ALLSTAR BUSINESS SOLUTIONS LTD,E2003533977,37,208.00,FUEL,02/10/14,,STOKE NEWINGTON FIRE STATION
800053454,ALLSTAR BUSINESS SOLUTIONS LTD,E2003533977,38,206.72,FUEL,02/10/14,,WOODSIDE FS
800053454,ALLSTAR BUSINESS SOLUTIONS LTD,E2003533977,39,202.40,FUEL,02/10/14,,BEXLEY FS
800053454,ALLSTAR BUSINESS SOLUTIONS LTD,E2003533977,40,194.41,FUEL,02/10/14,,PARK ROYAL FS
800053454,ALLSTAR BUSINESS SOLUTIONS LTD,E2003533977,41,190.63,FUEL,02/10/14,,NEW MALDEN FS
800053454,ALLSTAR BUSINESS SOLUTIONS LTD,E2003533977,42,187.77,FUEL,02/10/14,,WALTHAMSTOW FS
800053454,ALLSTAR BUSINESS SOLUTIONS LTD,E2003533977,43,185.84,FUEL,02/10/14,,HARROW FS
800053454,ALLSTAR BUSINESS SOLUTIONS LTD,E2003533977,44,183.03,FUEL,02/10/14,,SURBITON FS
800053454,ALLSTAR BUSINESS SOLUTIONS LTD,E2003533977,45,179.33,FUEL,02/10/14,,DEPTFORD FS
800053454,ALLSTAR BUSINESS SOLUTIONS LTD,E2003533977,46,174.64,FUEL,02/10/14,,SOUTHGATE FIRE STATION
800053454,ALLSTAR BUSINESS SOLUTIONS LTD,E2003533977,47,174.41,FUEL,02/10/14,,LEYTON FS
800053454,ALLSTAR BUSINESS SOLUTIONS LTD,E2003533977,48,168.58,FUEL,02/10/14,,SHOREDITCH FIRE STATION
800053454,ALLSTAR BUSINESS SOLUTIONS LTD,E2003533977,49,168.47,FUEL,02/10/14,,HEATHROW FS
800053454,ALLSTAR BUSINESS SOLUTIONS LTD,E2003533977,50,163.53,FUEL,02/10/14,,CHISWICK FS
800053454,ALLSTAR BUSINESS SOLUTIONS LTD,E2003533977,51,163.44,FUEL,02/10/14,,MITCHAM FIRE STATION
800053454,ALLSTAR BUSINESS SOLUTIONS LTD,E2003533977,52,154.27,FUEL,02/10/14,,OLD KENT ROAD FS
800053454,ALLSTAR BUSINESS SOLUTIONS LTD,E2003533977,53,153.83,FUEL,02/10/14,,ACTON FS
800053454,ALLSTAR BUSINESS SOLUTIONS LTD,E2003533977,54,152.93,FUEL,02/10/14,,LEYTONSTONE FS
800053454,ALLSTAR BUSINESS SOLUTIONS LTD,E2003533977,55,152.39,FUEL,02/10/14,,SOUTH EAST AREA
800053454,ALLSTAR BUSINESS SOLUTIONS LTD,E2003533977,56,151.34,FUEL,02/10/14,,PECKHAM FS
800053454,ALLSTAR BUSINESS SOLUTIONS LTD,E2003533977,57,149.69,FUEL,02/10/14,,WHITECHAPEL FS
800053454,ALLSTAR BUSINESS SOLUTIONS LTD,E2003533977,58,147.87,FUEL,02/10/14,,HORNCHURCH FIRE STATION
800053454,ALLSTAR BUSINESS SOLUTIONS LTD,E2003533977,59,139.07,FUEL,02/10/14,,DOWGATE FIRE STATION
800053454,ALLSTAR BUSINESS SOLUTIONS LTD,E2003533977,60,138.80,FUEL,02/10/14,,COMMAND UNIT - ISLINGTON
800053454,ALLSTAR BUSINESS SOLUTIONS LTD,E2003533977,61,137.34,FUEL,02/10/14,,BECKENHAM FS
800053454,ALLSTAR BUSINESS SOLUTIONS LTD,E2003533977,62,136.89,FUEL,02/10/14,,SHADWELL FS
800053454,ALLSTAR BUSINESS SOLUTIONS LTD,E2003533977,63,136.83,FUEL,02/10/14,,BARNET FS
800053454,ALLSTAR BUSINESS SOLUTIONS LTD,E2003533977,64,131.35,FUEL,02/10/14,,MILL HILL FS
800053454,ALLSTAR BUSINESS SOLUTIONS LTD,E2003533977,65,127.50,FUEL,02/10/14,,MILLWALL FS
800053454,ALLSTAR BUSINESS SOLUTIONS LTD,E2003533977,66,127.35,FUEL,02/10/14,,COMMAND UNIT - BARKING
800053454,ALLSTAR BUSINESS SOLUTIONS LTD,E2003533977,67,122.24,FUEL,02/10/14,,SOUTH EAST AREA TEAM
800053454,ALLSTAR BUSINESS SOLUTIONS LTD,E2003533977,68,121.30,FUEL,02/10/14,,COMMAND UNIT - EDMONTON
800053454,ALLSTAR BUSINESS SOLUTIONS LTD,E2003533977,69,119.39,FUEL,02/10/14,,ELTHAM FS
800053454,ALLSTAR BUSINESS SOLUTIONS LTD,E2003533977,70,117.33,FUEL,02/10/14,,FULHAM FS
800053454,ALLSTAR BUSINESS SOLUTIONS LTD,E2003533977,71,115.13,FUEL,02/10/14,,WANDSWORTH FIRE STATION
800053454,ALLSTAR BUSINESS SOLUTIONS LTD,E2003533977,72,115.07,FUEL,02/10/14,,RICHMOND FS
800053454,ALLSTAR BUSINESS SOLUTIONS LTD,E2003533977,73,113.26,FUEL,02/10/14,,COMMAND UNIT - FULHAM
800053454,ALLSTAR BUSINESS SOLUTIONS LTD,E2003533977,74,112.14,FUEL,02/10/14,,DOCKHEAD FS
800053454,ALLSTAR BUSINESS SOLUTIONS LTD,E2003533977,75,109.58,FUEL,02/10/14,,COMMAND UNIT - RICHMOND
800053454,ALLSTAR BUSINESS SOLUTIONS LTD,E2003533977,76,106.53,FUEL,02/10/14,,LIFE EXTERNAL CONTRIBUTIONS
800053454,ALLSTAR BUSINESS SOLUTIONS LTD,E2003533977,77,100.86,FUEL,02/10/14,,NEW CROSS FS
800053454,ALLSTAR BUSINESS SOLUTIONS LTD,E2003533977,78,99.45,FUEL,02/10/14,,ADDINGTON FS
800053454,ALLSTAR BUSINESS SOLUTIONS LTD,E2003533977,79,98.89,FUEL,02/10/14,,SPECIAL OPERATIONAL GROUP
800053454,ALLSTAR BUSINESS SOLUTIONS LTD,E2003533977,80,92.73,FUEL,02/10/14,,COMMAND UNIT - LEWISHAM
800053454,ALLSTAR BUSINESS SOLUTIONS LTD,E2003533977,81,91.94,FUEL,02/10/14,,BATTERSEA FIRE STATION
800053454,ALLSTAR BUSINESS SOLUTIONS LTD,E2003533977,82,89.70,FUEL,02/10/14,,COMMAND UNIT - WOODSIDE
800053454,ALLSTAR BUSINESS SOLUTIONS LTD,E2003533977,83,89.08,FUEL,02/10/14,,COMMAND UNIT - WEMBLEY
800053454,ALLSTAR BUSINESS SOLUTIONS LTD,E2003533977,84,83.93,FUEL,02/10/14,,WOODFORE FIRE STATION
800053454,ALLSTAR BUSINESS SOLUTIONS LTD,E2003533977,85,83.03,FUEL,02/10/14,,LEE GREEN FS
800053454,ALLSTAR BUSINESS SOLUTIONS LTD,E2003533977,86,82.43,FUEL,02/10/14,,PLAISTOW FIRE STATION
800053454,ALLSTAR BUSINESS SOLUTIONS LTD,E2003533977,87,81.75,FUEL,02/10/14,,HAROLD HILL FIRE STATION
800053454,ALLSTAR BUSINESS SOLUTIONS LTD,E2003533977,88,80.73,FUEL,02/10/14,,WALLINGTON FS
800053454,ALLSTAR BUSINESS SOLUTIONS LTD,E2003533977,89,69.78,FUEL,02/10/14,,INCIDENT MANAGEMENT
800053454,ALLSTAR BUSINESS SOLUTIONS LTD,E2003533977,90,65.04,FUEL,02/10/14,,PURLEY FS
800053454,ALLSTAR BUSINESS SOLUTIONS LTD,E2003533977,91,63.95,FUEL,02/10/14,,BUSINESS CONTINUITY
800053454,ALLSTAR BUSINESS SOLUTIONS LTD,E2003533977,92,63.27,FUEL,02/10/14,,BIGGIN HILL FS
800053454,ALLSTAR BUSINESS SOLUTIONS LTD,E2003533977,93,61.08,FUEL,02/10/14,,NORTH WEST AREA TEAM
800053454,ALLSTAR BUSINESS SOLUTIONS LTD,E2003533977,94,53.53,FUEL,02/10/14,,OPERATIONAL TACTICS
800053454,ALLSTAR BUSINESS SOLUTIONS LTD,E2003533977,95,48.75,FUEL,02/10/14,,CBRN RRT
800053454,ALLSTAR BUSINESS SOLUTIONS LTD,E2003533977,96,48.33,FUEL,02/10/14,,SOHO FS
800053454,ALLSTAR BUSINESS SOLUTIONS LTD,E2003533977,97,47.05,FUEL,02/10/14,,FLEET ENGINEERING
800053454,ALLSTAR BUSINESS SOLUTIONS LTD,E2003533977,98,44.33,FUEL,02/10/14,,I&CT OPERATIONAL SUPPORT
800053454,ALLSTAR BUSINESS SOLUTIONS LTD,E2003533977,99,28.61,FUEL,02/10/14,,PROTECTIVE EQUIPMENT GROUP
800053454,ALLSTAR BUSINESS SOLUTIONS LTD,E2003533977,100,25.01,FUEL,02/10/14,,WATER OFFICE
800053454,ALLSTAR BUSINESS SOLUTIONS LTD,E2003533977,101,10.99,FUEL,02/10/14,,BUSINESS CONTINUITY
220914D,BABCOCK CIVIL INFRASTRUCTURE,II5000662,1,"2,119.90",STRATEGIC (NON CYCLICAL),02/10/14,"2,119.90",MERTON CONTROL CENTRE
250914C,CARDINUS LTD==================,INV-52635-2NTQVY,1,500.00,MAINTENANCE & SUPPORT,02/10/14,500.00,I&CT COMMUNICATIONS
140823,LEX AUTOLEASE,IRIN361219,1,"2,781.35",LEASE CAR CHARGES,02/10/14,"4,952.16",LEASE CARS ADMINISTRATION
140823,LEX AUTOLEASE,IRIN361219,2,"2,170.81",P/PAYMTS-CAR LEASG-RENTAL,02/10/14,,
140823,LEX AUTOLEASE,IRIN361219,3,-443.39,VAT CAR LEASING,02/10/14,,
140823,LEX AUTOLEASE,IRIN361219,4,443.39,LEASE CAR CHARGES,02/10/14,,LEASE CARS ADMINISTRATION
140823,LEX AUTOLEASE,IRIN362172,1,"2,523.08",LEASE CAR CHARGES,02/10/14,"4,581.72",LEASE CARS ADMINISTRATION
140823,LEX AUTOLEASE,IRIN362172,2,"2,058.64",P/PAYMTS-CAR LEASG-RENTAL,02/10/14,,
140823,LEX AUTOLEASE,IRIN362172,3,-406.36,VAT CAR LEASING,02/10/14,,
140823,LEX AUTOLEASE,IRIN362172,4,406.36,LEASE CAR CHARGES,02/10/14,,LEASE CARS ADMINISTRATION
260914C,EDM GROUP LIMITED,SI15176,1,"6,950.00",PROF FEES-MISCELLANEOUS,02/10/14,"9,975.00",
260914C,EDM GROUP LIMITED,SI15176,2,"3,025.00",PROF FEES-MISCELLANEOUS,02/10/14,,
170914D,SABRE SAFETY LTD,SUKIN13261,1,477.72,PROTECTIVE EQUIPT - PARTS,02/10/14,490.22,
170914D,SABRE SAFETY LTD,SUKIN13261,2,12.50,REPAIR & MAINTENANCE,02/10/14,,PROTECTIVE EQUIPMENT GROUP
250914C,BRITISH TELECOM===============,VP71178070M2601,1,"3,351.41",CALL CHARGES,02/10/14,"96,573.14",I&CT CENTRALLY HELD BUDGETS
250914C,BRITISH TELECOM===============,VP71178070M2601,2,"93,221.73",TELECOMMUNICATIONS,02/10/14,,I&CT COMMUNICATIONS
170914D,HEALTH MANAGEMENT LIMITED=====,0000119165,1,452.39,OHS CONTRACT,06/10/14,452.39,HR CENTRALLY HELD BUDGETS
250914C,ADAM PHONES LTD===============,01068612,1,496.00,CELLULAR TELEPHONES,06/10/14,517.86,I&CT CONTRACT & ASSET MANGMNT
250914C,ADAM PHONES LTD===============,01068612,2,21.86,CELLULAR TELEPHONES,06/10/14,,I&CT CONTRACT & ASSET MANGMNT
290914G,HEALTH & SAFETY LABORATORY====,038432,1,"2,100.00",PROFESSIONAL DEVELOPMENT,06/10/14,"2,100.00",HEALTH & SAFETY
140825,THAMES WATER UTILITIES LTD====,04255-21115I,1,258.00,WATER & SEWERAGE RATES,06/10/14,258.00,HAINAULT FIRE STATION
140825,THAMES WATER UTILITIES LTD====,08336-60263/,1,996.53,WATER & SEWERAGE RATES,06/10/14,996.53,SOUTHGATE FIRE STATION
300914G,TACTICAL HAZMAT LTD,1030,1,340.00,PROFESSIONAL DEVELOPMENT,06/10/14,340.00,HAZMAT POLICY
800053517,AZTEC COMPUTING LTD===========,10454,1,"7,000.00",MAINTENANCE & SUPPORT,06/10/14,"7,000.00",I&CT BUSINESS ENGAGEMENT
800053518,AZTEC COMPUTING LTD===========,10455,1,"7,000.00",MAINTENANCE & SUPPORT,06/10/14,"7,000.00",I&CT BUSINESS ENGAGEMENT
800053519,AZTEC COMPUTING LTD===========,10456,1,"2,800.00",TELECOMMUNICATIONS,06/10/14,"2,800.00",HR CENTRALLY HELD BUDGETS
800053520,AZTEC COMPUTING LTD===========,10457,1,"11,375.00",MAINTENANCE & SUPPORT,06/10/14,"11,375.00",I&CT BUSINESS ENGAGEMENT
011014G,*SPRUE SAFETY PRODUCTS LTD====,1062963/9012204,1,988.80,FIRE DETECTORS,06/10/14,988.80,CFS - ISLINGTON
250914C,*SPRUE SAFETY PRODUCTS LTD====,1065539,1,"1,483.20",FIRE DETECTORS,06/10/14,"1,483.20",CFS - ISLINGTON
250914C,*SPRUE SAFETY PRODUCTS LTD====,1065558,1,494.40,FIRE DETECTORS,06/10/14,494.40,CFS - CITY
250914C,*SPRUE SAFETY PRODUCTS LTD====,1065561,1,988.80,FIRE DETECTORS,06/10/14,988.80,CFS - NEWHAM
250914C,*SPRUE SAFETY PRODUCTS LTD====,1065565,1,"3,708.00",FIRE DETECTORS,06/10/14,"3,708.00",CFS - REDBRIDGE
250914C,*SPRUE SAFETY PRODUCTS LTD====,1065569,1,"1,483.20",FIRE DETECTORS,06/10/14,"1,483.20",CFS - HAVERING
250914C,*SPRUE SAFETY PRODUCTS LTD====,1065572,1,741.60,FIRE DETECTORS,06/10/14,741.60,CFS - REDBRIDGE
250914C,*SPRUE SAFETY PRODUCTS LTD====,1065573,1,741.60,FIRE DETECTORS,06/10/14,741.60,CFS - WALTHAM FOREST
250914C,*SPRUE SAFETY PRODUCTS LTD====,1065574,1,"1,483.20",FIRE DETECTORS,06/10/14,"1,483.20",CFS - HACKNEY
250914C,*SPRUE SAFETY PRODUCTS LTD====,1065576,1,"1,236.00",FIRE DETECTORS,06/10/14,"1,730.40",CFS - HACKNEY
250914C,*SPRUE SAFETY PRODUCTS LTD====,1065576,2,494.40,FIRE DETECTORS,06/10/14,,CFS - HACKNEY
250914C,*SPRUE SAFETY PRODUCTS LTD====,1065588,1,494.40,FIRE DETECTORS,06/10/14,494.40,CFS - TOWER HAMLETS
260914C,*SPRUE SAFETY PRODUCTS LTD====,1065686,1,800.00,FIRE DETECTORS,06/10/14,800.00,NORTH WEST AREA TEAM
260914C,*SPRUE SAFETY PRODUCTS LTD====,1065687,1,440.00,FIRE DETECTORS,06/10/14,440.00,NORTH WEST AREA TEAM
800053271,*JAMES HUNTER (OUTFITTERS) LTD,107841,1,59.82,CLOTHING,06/10/14,283.98,HENDON FS
800053271,*JAMES HUNTER (OUTFITTERS) LTD,107841,2,224.16,CLOTHING,06/10/14,,HENDON FS
011014G,RUTH LEE LTD==================,12568,1,547.90,PROTECTIVE EQUIPT - PARTS,06/10/14,547.90,
290914G,HAGEMEYER UK LTD==============,131850043,1,"1,108.90",FIRE DETECTORS,06/10/14,"1,108.90",NORTH WEST AREA TEAM
140825,THAMES WATER UTILITIES LTD====,16766-58344^,1,499.71,WATER & SEWERAGE RATES,06/10/14,499.71,ORPINGTON FS
011014G,CRISPIN HUGHES================,2253,1,632.40,GENERAL,06/10/14,632.40,HR EMPLOYMENT RELATIONS
011014G,CRISPIN HUGHES================,2260,1,424.82,GENERAL,06/10/14,424.82,HR EMPLOYMENT RELATIONS
140824,MISS BO-EUN JUNG==============,233892,1,"1,120.00",PROFESSIONAL FEES ENFORCEMENT,06/10/14,"1,120.00",CENTRALLY HELD BUDGETS
300914G,MACE LIMITED,26915/0914347.1,1,896.53,PROF FEES-MISCELLANEOUS,06/10/14,"2,079.59",
300914G,MACE LIMITED,26915/0914347.1,2,953.88,PROF FEES-MISCELLANEOUS,06/10/14,,
300914G,MACE LIMITED,26915/0914347.1,3,229.18,PROF FEES-MISCELLANEOUS,06/10/14,,
011014G,SUNDERLAND CITY COUNCIL,2808006444,1,269.95,FIRE AUTHORITIES,06/10/14,269.95,NATL OPERATIONAL GUIDANCE PROJ
300914G,CARPETS & FLOOR COVERS DIRECT=,3126,1,"1,078.00",FIXTURES & FITTINGS,06/10/14,"1,078.00",CHISWICK FS
140825,THAMES WATER UTILITIES LTD====,42153-20857J,1,457.89,WATER & SEWERAGE RATES,06/10/14,457.89,NEW MALDEN FS
180914C,GLOBAL TO LOCAL LTD,437/20/AF198,1,150.00,CONSULTANTS,06/10/14,"2,189.47",FIRED-UP (EU FUNDED )PROJECT
180914C,GLOBAL TO LOCAL LTD,437/20/AF198,2,"1,750.00",CONSULTANTS,06/10/14,,FIRED-UP (EU FUNDED )PROJECT
180914C,GLOBAL TO LOCAL LTD,437/20/AF198,3,289.47,CONSULTANTS,06/10/14,,FIRED-UP (EU FUNDED )PROJECT
140825,THAMES WATER UTILITIES LTD====,45803-10009I,1,519.28,WATER & SEWERAGE RATES,06/10/14,519.28,RICHMOND FS
140825,THAMES WATER UTILITIES LTD====,47190-45186I,1,"2,399.21",WATER & SEWERAGE RATES,06/10/14,"2,399.21",DOWNHAM FS
800053184,*GREENHAM TRADING LTD=========,5656265,1,3.10,HYGIENE,06/10/14,384.06,SUTTON FS
800053184,*GREENHAM TRADING LTD=========,5656265,2,11.80,HYGIENE,06/10/14,,SUTTON FS
800053184,*GREENHAM TRADING LTD=========,5656265,3,184.58,HYGIENE,06/10/14,,SUTTON FS
800053184,*GREENHAM TRADING LTD=========,5656265,4,184.58,HYGIENE,06/10/14,,SUTTON FS
140825,ESSEX & SUFFOLK WATER PLC=====,602518200017P,1,520.95,WATER & SEWERAGE RATES,06/10/14,520.95,HORNCHURCH FIRE STATION
140825,AFFINITY WATER,6309942-1J,1,"1,575.23",WATER & SEWERAGE RATES,06/10/14,"1,575.23",SOUTHALL FS
230914D,MAYORS OFF FOR POLICING&CRIME,6800098283,1,"204,198.00",GLA GROUP SHARED SERVICES,06/10/14,"204,198.00",FN FINANCE ADMINISTRATION
300914G,MERLIN ELECTRICAL SERVICES LTD,7071,1,180.00,STRATEGIC (NON CYCLICAL),06/10/14,450.00,TWICKENHAM FS
300914G,MERLIN ELECTRICAL SERVICES LTD,7071,2,270.00,STRATEGIC (NON CYCLICAL),06/10/14,,WOOLWICH FS
011014G,*SP SERVICES,741053,1,1.20,HYGIENE,06/10/14,329.06,BUSINESS CONTINUITY
011014G,*SP SERVICES,741053,2,82.88,HYGIENE,06/10/14,,BUSINESS CONTINUITY
011014G,*SP SERVICES,741053,3,17.22,HYGIENE,06/10/14,,BUSINESS CONTINUITY
011014G,*SP SERVICES,741053,4,16.08,HYGIENE,06/10/14,,BUSINESS CONTINUITY
011014G,*SP SERVICES,741053,5,2.72,HYGIENE,06/10/14,,BUSINESS CONTINUITY
011014G,*SP SERVICES,741053,6,2.06,HYGIENE,06/10/14,,BUSINESS CONTINUITY
011014G,*SP SERVICES,741053,7,1.04,HYGIENE,06/10/14,,BUSINESS CONTINUITY
011014G,*SP SERVICES,741053,8,33.60,HYGIENE,06/10/14,,BUSINESS CONTINUITY
011014G,*SP SERVICES,741053,9,0.90,HYGIENE,06/10/14,,BUSINESS CONTINUITY
011014G,*SP SERVICES,741053,10,4.20,HYGIENE,06/10/14,,BUSINESS CONTINUITY
011014G,*SP SERVICES,741053,11,9.90,HYGIENE,06/10/14,,BUSINESS CONTINUITY
011014G,*SP SERVICES,741053,12,33.92,HYGIENE,06/10/14,,BUSINESS CONTINUITY
011014G,*SP SERVICES,741053,13,2.00,HYGIENE,06/10/14,,BUSINESS CONTINUITY
011014G,*SP SERVICES,741053,14,0.68,HYGIENE,06/10/14,,BUSINESS CONTINUITY
011014G,*SP SERVICES,741053,15,0.82,HYGIENE,06/10/14,,BUSINESS CONTINUITY
011014G,*SP SERVICES,741053,16,0.90,HYGIENE,06/10/14,,BUSINESS CONTINUITY
011014G,*SP SERVICES,741053,17,52.00,HYGIENE,06/10/14,,BUSINESS CONTINUITY
011014G,*SP SERVICES,741053,18,1.60,HYGIENE,06/10/14,,BUSINESS CONTINUITY
011014G,*SP SERVICES,741053,19,1.96,HYGIENE,06/10/14,,BUSINESS CONTINUITY
011014G,*SP SERVICES,741053,20,11.12,HYGIENE,06/10/14,,BUSINESS CONTINUITY
011014G,*SP SERVICES,741053,21,0.40,HYGIENE,06/10/14,,BUSINESS CONTINUITY
011014G,*SP SERVICES,741053,22,0.40,HYGIENE,06/10/14,,BUSINESS CONTINUITY
011014G,*SP SERVICES,741053,23,0.40,HYGIENE,06/10/14,,BUSINESS CONTINUITY
011014G,*SP SERVICES,741053,24,0.40,HYGIENE,06/10/14,,BUSINESS CONTINUITY
011014G,*SP SERVICES,741053,25,1.40,HYGIENE,06/10/14,,BUSINESS CONTINUITY
011014G,*SP SERVICES,741053,26,1.86,HYGIENE,06/10/14,,BUSINESS CONTINUITY
011014G,*SP SERVICES,741053,27,1.40,HYGIENE,06/10/14,,BUSINESS CONTINUITY
011014G,*SP SERVICES,741053,28,10.36,HYGIENE,06/10/14,,BUSINESS CONTINUITY
011014G,*SP SERVICES,741053,29,10.36,HYGIENE,06/10/14,,BUSINESS CONTINUITY
011014G,*SP SERVICES,741053,30,10.36,HYGIENE,06/10/14,,BUSINESS CONTINUITY
011014G,*SP SERVICES,741053,31,10.36,HYGIENE,06/10/14,,BUSINESS CONTINUITY
011014G,*SP SERVICES,741053,32,3.50,HYGIENE,06/10/14,,BUSINESS CONTINUITY
011014G,*SP SERVICES,741053,33,1.06,HYGIENE,06/10/14,,BUSINESS CONTINUITY
140825,THAMES WATER UTILITIES LTD====,81115-15030H,1,572.14,WATER & SEWERAGE RATES,06/10/14,572.14,PREMISES HOLDING A/C STC
140825,THAMES WATER UTILITIES LTD====,82043-30850I,1,564.17,WATER & SEWERAGE RATES,06/10/14,564.17,KINGSTON FS
140825,LONDON PENSIONS FUND AUTHORITY,8254,1,"85,502.57",LOCAL GOVT PENSION SCHEME PAYM,06/10/14,"85,502.57",CENTRALLY HELD BUDGETS
140825,THAMES WATER UTILITIES LTD====,8641142518Z,1,794.77,WATER & SEWERAGE RATES,06/10/14,794.77,WIMBLEDON FIRE STATION
220914D,DRAEGER SAFETY UK LIMITED=====,90457174,1,325.18,STATIONERY CONSUMABLES,06/10/14,325.18,PROTECTIVE EQUIPMENT GROUP
011014G,NORTHUMBRIAN WATER LTD========,913290963,1,369.00,HYDRANTS,06/10/14,369.00,WATER OFFICE
011014G,NORTHUMBRIAN WATER LTD========,913291978,1,307.30,CURRENT HYDRANT COSTS,06/10/14,307.30,WATER OFFICE
011014G,NORTHUMBRIAN WATER LTD========,913292001,1,973.50,CURRENT HYDRANT COSTS,06/10/14,973.50,WATER OFFICE
011014G,NORTHUMBRIAN WATER LTD========,913292095,1,441.50,CURRENT HYDRANT COSTS,06/10/14,441.50,WATER OFFICE
140825,THAMES WATER UTILITIES LTD====,95992-95181I,1,353.91,WATER & SEWERAGE RATES,06/10/14,353.91,DEPTFORD FS
300914G,ARCHITECTURAL DECORATORS LTD==,AD22589,1,"1,872.00",STRATEGIC (NON CYCLICAL),06/10/14,"1,872.00",WHITECHAPEL FS
011014G,THAMES WATER UTILITIES LTD====,CBA1408839,1,"1,185.00",CURRENT HYDRANT COSTS,06/10/14,"1,185.00",WATER OFFICE
011014G,THAMES WATER UTILITIES LTD====,CBA1408845,1,"1,185.00",CURRENT HYDRANT COSTS,06/10/14,"1,185.00",WATER OFFICE
011014G,THAMES WATER UTILITIES LTD====,CBA1408850,1,"1,800.00",CURRENT HYDRANT COSTS,06/10/14,"1,800.00",WATER OFFICE
011014G,THAMES WATER UTILITIES LTD====,CBA1408854,1,"1,185.00",CURRENT HYDRANT COSTS,06/10/14,"1,185.00",WATER OFFICE
011014G,THAMES WATER UTILITIES LTD====,CBA1408859,1,"1,185.00",CURRENT HYDRANT COSTS,06/10/14,"1,185.00",WATER OFFICE
011014G,THAMES WATER UTILITIES LTD====,CBA1408862,1,307.00,CURRENT HYDRANT COSTS,06/10/14,307.00,WATER OFFICE
011014G,THAMES WATER UTILITIES LTD====,CBA1408864,1,"1,185.00",CURRENT HYDRANT COSTS,06/10/14,"1,185.00",WATER OFFICE
011014G,THAMES WATER UTILITIES LTD====,CBA1408948,1,"1,185.00",CURRENT HYDRANT COSTS,06/10/14,"1,185.00",WATER OFFICE
011014G,THAMES WATER UTILITIES LTD====,CBA1408952,1,"1,185.00",CURRENT HYDRANT COSTS,06/10/14,"1,185.00",WATER OFFICE
011014G,THAMES WATER UTILITIES LTD====,CBA1408955,1,280.00,CURRENT HYDRANT COSTS,06/10/14,280.00,WATER OFFICE
011014G,THAMES WATER UTILITIES LTD====,CBA1408957,1,307.00,CURRENT HYDRANT COSTS,06/10/14,307.00,WATER OFFICE
011014G,THAMES WATER UTILITIES LTD====,CBA1408958,1,"1,185.00",CURRENT HYDRANT COSTS,06/10/14,"1,185.00",WATER OFFICE
300914G,KIER BUILDING SERV ENGINEERS==,F00050702,1,"3,740.80",STRATEGIC (CYCLICAL),06/10/14,"3,740.80",UNION STREET HQ HOLDING A/C
300914G,HALL FUELS,I07023519,1,"2,542.32",FUEL,06/10/14,"2,542.32",STRATFORD FIRE STATION
190914C,NLA MEDIA ACCESS LIMITED,Q349527,1,"5,351.56",BOOKS & JOURNALS,06/10/14,"5,351.56",COMMS MEDIA & INTERNAL COMMS
260914C,GROUND CONTROL UMITED,SIN41082,1,82.01,GROUNDS MAINTENANCE,06/10/14,790.05,BARKING FIRE STATION
260914C,GROUND CONTROL UMITED,SIN41082,2,13.34,GROUNDS MAINTENANCE,06/10/14,,BETHNAL GREEN FS
260914C,GROUND CONTROL UMITED,SIN41082,3,50.78,GROUNDS MAINTENANCE,06/10/14,,CHINGFORD FS
260914C,GROUND CONTROL UMITED,SIN41082,4,35.49,GROUNDS MAINTENANCE,06/10/14,,DAGENHAM FIRE STATION
260914C,GROUND CONTROL UMITED,SIN41082,5,14.68,GROUNDS MAINTENANCE,06/10/14,,EAST HAM FIRE STATION
260914C,GROUND CONTROL UMITED,SIN41082,6,14.68,GROUNDS MAINTENANCE,06/10/14,,EDMONTON FIRE STATION
260914C,GROUND CONTROL UMITED,SIN41082,7,42.42,GROUNDS MAINTENANCE,06/10/14,,ENFIELD FIRE STATION
260914C,GROUND CONTROL UMITED,SIN41082,8,42.42,GROUNDS MAINTENANCE,06/10/14,,HAINAULT FIRE STATION
260914C,GROUND CONTROL UMITED,SIN41082,9,13.34,GROUNDS MAINTENANCE,06/10/14,,HOLLOWAY FIRE STATION
260914C,GROUND CONTROL UMITED,SIN41082,10,13.34,GROUNDS MAINTENANCE,06/10/14,,HOMERTON FIRE STATION
260914C,GROUND CONTROL UMITED,SIN41082,11,46.43,GROUNDS MAINTENANCE,06/10/14,,HORNCHURCH FIRE STATION
260914C,GROUND CONTROL UMITED,SIN41082,12,42.42,GROUNDS MAINTENANCE,06/10/14,,HORNSEY FIRE STATION
260914C,GROUND CONTROL UMITED,SIN41082,13,13.34,GROUNDS MAINTENANCE,06/10/14,,ILFORD FIRE STATION
260914C,GROUND CONTROL UMITED,SIN41082,14,13.34,GROUNDS MAINTENANCE,06/10/14,,ISLINGTON FIRE STATION
260914C,GROUND CONTROL UMITED,SIN41082,15,13.34,GROUNDS MAINTENANCE,06/10/14,,LEYTON FS
260914C,GROUND CONTROL UMITED,SIN41082,16,13.34,GROUNDS MAINTENANCE,06/10/14,,LEYTONSTONE FS
260914C,GROUND CONTROL UMITED,SIN41082,17,13.34,GROUNDS MAINTENANCE,06/10/14,,MILLWALL FS
260914C,GROUND CONTROL UMITED,SIN41082,18,66.44,GROUNDS MAINTENANCE,06/10/14,,ROMFORD FIRE STATION
260914C,GROUND CONTROL UMITED,SIN41082,19,13.34,GROUNDS MAINTENANCE,06/10/14,,SHADWELL FS
260914C,GROUND CONTROL UMITED,SIN41082,20,13.34,GROUNDS MAINTENANCE,06/10/14,,SHOREDITCH FIRE STATION
260914C,GROUND CONTROL UMITED,SIN41082,21,35.49,GROUNDS MAINTENANCE,06/10/14,,SOUTHGATE FIRE STATION
260914C,GROUND CONTROL UMITED,SIN41082,22,13.34,GROUNDS MAINTENANCE,06/10/14,,STOKE NEWINGTON FIRE STATION
260914C,GROUND CONTROL UMITED,SIN41082,23,35.49,GROUNDS MAINTENANCE,06/10/14,,STRATFORD FIRE STATION
260914C,GROUND CONTROL UMITED,SIN41082,24,39.49,GROUNDS MAINTENANCE,06/10/14,,TOTTENHAM FIRE STATION
260914C,GROUND CONTROL UMITED,SIN41082,25,39.49,GROUNDS MAINTENANCE,06/10/14,,WENNINGTON FIRE STATION
260914C,GROUND CONTROL UMITED,SIN41082,26,13.34,GROUNDS MAINTENANCE,06/10/14,,WHITECHAPEL FS
260914C,GROUND CONTROL UMITED,SIN41082,27,13.34,GROUNDS MAINTENANCE,06/10/14,,WOODFORE FIRE STATION
260914C,GROUND CONTROL UMITED,SIN41082,28,13.34,GROUNDS MAINTENANCE,06/10/14,,HAROLD HILL FIRE STATION
260914C,GROUND CONTROL UMITED,SIN41082,29,6.67,GROUNDS MAINTENANCE,06/10/14,,DOWGATE FIRE STATION
260914C,GROUND CONTROL UMITED,SIN41082,30,8.89,GROUNDS MAINTENANCE,06/10/14,,WALTHAMSTOW FS
800053237,*XMA LTD,W202594,1,110.40,STATIONERY CONSUMABLES,06/10/14,699.20,UNION STREET HQ HOLDING A/C
800053237,*XMA LTD,W202594,2,110.40,STATIONERY CONSUMABLES,06/10/14,,UNION STREET HQ HOLDING A/C
800053237,*XMA LTD,W202594,3,110.40,STATIONERY CONSUMABLES,06/10/14,,UNION STREET HQ HOLDING A/C
800053237,*XMA LTD,W202594,4,110.40,STATIONERY CONSUMABLES,06/10/14,,UNION STREET HQ HOLDING A/C
800053237,*XMA LTD,W202594,5,110.40,STATIONERY CONSUMABLES,06/10/14,,UNION STREET HQ HOLDING A/C
800053237,*XMA LTD,W202594,6,110.40,STATIONERY CONSUMABLES,06/10/14,,UNION STREET HQ HOLDING A/C
800053237,*XMA LTD,W202594,7,36.80,STATIONERY CONSUMABLES,06/10/14,,UNION STREET HQ HOLDING A/C
011014G,SPEAKERS TRUST,WEB/004074,1,901.25,GENERAL,06/10/14,901.25,LIFE LFB FUNDED PROJECTS
140829,INFORMATION COMMISSIONER======,Z7122455B,1,500.00,CONSULTANTS,08/10/14,500.00,INFORMATION MNGT & PERFORMANCE
061014G,USEL==========================,0000021369,1,"8,616.25",PROTECTIVE EQUIPMENT,09/10/14,"9,141.25",PROTECTIVE EQUIPMENT GROUP
061014G,USEL==========================,0000021369,2,525.00,PROTECTIVE EQUIPMENT,09/10/14,,PROTECTIVE EQUIPMENT GROUP
061014G,MOOLANDS LTD,00000800,1,914.00,STRATEGIC (NON CYCLICAL),09/10/14,914.00,TOTTENHAM FIRE STATION
061014G,MOOLANDS LTD,00001128,1,"6,579.84",STRATEGIC (NON CYCLICAL),09/10/14,"6,579.84",BELSIZE FS
061014G,MOOLANDS LTD,00001129,1,"2,995.00",STRATEGIC (NON CYCLICAL),09/10/14,"2,995.00",KNIGHTSBRIDGE FS
061014G,MOOLANDS LTD,00001134,1,500.00,TACTICAL DAY TO DAY,09/10/14,500.00,TOTTENHAM FIRE STATION
140827,OGILVIE FLEET LTD=============,00303067,1,343.76,LEASE CAR CHARGES,09/10/14,343.76,LEASE CARS ADMINISTRATION
140827,OGILVIE FLEET LTD=============,00303067,2,-29.71,VAT CAR LEASING,09/10/14,,
140827,OGILVIE FLEET LTD=============,00303067,3,29.71,LEASE CAR CHARGES,09/10/14,,LEASE CARS ADMINISTRATION
140827,OGILVIE FLEET LTD=============,00303068,1,465.13,LEASE CAR CHARGES,09/10/14,465.13,LEASE CARS ADMINISTRATION
140827,OGILVIE FLEET LTD=============,00303068,2,-42.77,VAT CAR LEASING,09/10/14,,
140827,OGILVIE FLEET LTD=============,00303068,3,42.77,LEASE CAR CHARGES,09/10/14,,LEASE CARS ADMINISTRATION
140827,OGILVIE FLEET LTD=============,00303069,1,380.56,LEASE CAR CHARGES,09/10/14,380.56,LEASE CARS ADMINISTRATION
140827,OGILVIE FLEET LTD=============,00303069,2,-33.42,VAT CAR LEASING,09/10/14,,
140827,OGILVIE FLEET LTD=============,00303069,3,33.42,LEASE CAR CHARGES,09/10/14,,LEASE CARS ADMINISTRATION
140827,OGILVIE FLEET LTD=============,00303988,1,"2,355.27",LEASE CAR CHARGES,09/10/14,"5,546.28",LEASE CARS ADMINISTRATION
140827,OGILVIE FLEET LTD=============,00303988,2,"3,191.01",P/PAYMTS-CAR LEASG-RENTAL,09/10/14,,
140827,OGILVIE FLEET LTD=============,00303988,3,-494.88,VAT CAR LEASING,09/10/14,,
140827,OGILVIE FLEET LTD=============,00303988,4,494.88,LEASE CAR CHARGES,09/10/14,,LEASE CARS ADMINISTRATION
140827,OGILVIE FLEET LTD=============,00303989,1,"2,422.90",LEASE CAR CHARGES,09/10/14,"5,024.76",LEASE CARS ADMINISTRATION
140827,OGILVIE FLEET LTD=============,00303989,2,"2,601.86",P/PAYMTS-CAR LEASG-RENTAL,09/10/14,,
140827,OGILVIE FLEET LTD=============,00303989,3,-459.91,VAT CAR LEASING,09/10/14,,
140827,OGILVIE FLEET LTD=============,00303989,4,459.91,LEASE CAR CHARGES,09/10/14,,LEASE CARS ADMINISTRATION
031014G,*PREMIER VANGUARD LTD,00706174,1,133.00,STATIONERY CONSUMABLES,09/10/14,492.32,ERITH FS
031014G,*PREMIER VANGUARD LTD,00706174,2,53.20,STATIONERY CONSUMABLES,09/10/14,,DEPTFORD FS
031014G,*PREMIER VANGUARD LTD,00706174,3,53.20,STATIONERY CONSUMABLES,09/10/14,,NEW CROSS FS
031014G,*PREMIER VANGUARD LTD,00706174,4,53.20,STATIONERY CONSUMABLES,09/10/14,,WEST NORWOOD FS
031014G,*PREMIER VANGUARD LTD,00706174,5,33.36,STATIONERY CONSUMABLES,09/10/14,,EAST HAM FIRE STATION
031014G,*PREMIER VANGUARD LTD,00706174,6,133.00,STATIONERY CONSUMABLES,09/10/14,,WILLESDEN FS
031014G,*PREMIER VANGUARD LTD,00706174,7,33.36,STATIONERY CONSUMABLES,09/10/14,,SOHO FS
031014G,*PREMIER VANGUARD LTD,00708282,1,79.80,STATIONERY CONSUMABLES,09/10/14,251.60,PLUMSTEAD FS
031014G,*PREMIER VANGUARD LTD,00708282,2,46.00,STATIONERY CONSUMABLES,09/10/14,,BIGGIN HILL FS
031014G,*PREMIER VANGUARD LTD,00708282,3,46.00,STATIONERY CONSUMABLES,09/10/14,,BIGGIN HILL FS
031014G,*PREMIER VANGUARD LTD,00708282,4,53.20,STATIONERY CONSUMABLES,09/10/14,,STANMORE FS
031014G,*PREMIER VANGUARD LTD,00708282,5,26.60,STATIONERY CONSUMABLES,09/10/14,,NORTH KENSINGTON FS
800053247,*JAMES HUNTER (OUTFITTERS) LTD,107817,1,293.13,CLOTHING,09/10/14,293.13,PLAISTOW FIRE STATION
800053262,*JAMES HUNTER (OUTFITTERS) LTD,107832,1,293.13,CLOTHING,09/10/14,293.13,EDMONTON FIRE STATION
800053263,*JAMES HUNTER (OUTFITTERS) LTD,107833,1,282.83,CLOTHING,09/10/14,282.83,HILLINGDON FS
800053265,*JAMES HUNTER (OUTFITTERS) LTD,107835,1,325.42,CLOTHING,09/10/14,548.77,ENFORCEMENT - NORTH EAST
800053265,*JAMES HUNTER (OUTFITTERS) LTD,107835,2,223.35,CLOTHING,09/10/14,,ENFORCEMENT - NORTH EAST
800053269,*JAMES HUNTER (OUTFITTERS) LTD,107839,1,312.89,CLOTHING,09/10/14,312.89,TSS MANAGEMENT
061014G,BT GLOBAL SERVICES============,1131509,1,541.66,TELECOMMUNICATIONS,09/10/14,541.66,I&CT COMMUNICATIONS
061014G,RUTH LEE LTD==================,12579,1,420.80,OPERATIONAL EQUIP-PURCHASE,09/10/14,420.80,BETHNAL GREEN FS
140827,AFFINITY WATER,1327382-2R,1,288.38,WATER & SEWERAGE RATES,09/10/14,288.38,FINCHLEY FS
061014G,KIER BUILDING SERV ENGINEERS==,14021085,1,"16,460.05",STRATEGIC (CYCLICAL),09/10/14,"16,460.05",ACCOM BUDGET HOLDING A/C
061014G,DRON & WRIGHT=================,17264,1,485.00,PROFESSIONAL SERVICES,09/10/14,625.00,ENERGY & COMPLIANCE
061014G,DRON & WRIGHT=================,17264,2,140.00,PROF FEES-MISCELLANEOUS,09/10/14,,
061014G,COMMUNITIES & LOCAL GOVERNMENT,1800020508,1,"123,093.55",RADIO,09/10/14,"131,117.65",I&CT COMMUNICATIONS
061014G,COMMUNITIES & LOCAL GOVERNMENT,1800020508,2,"8,024.10",RADIO,09/10/14,,I&CT COMMUNICATIONS
031014G,MODERN MINDSET LTD,2014328,1,750.00,ACQUISITIONS,09/10/14,750.00,I&CT GOVERNANCE - SECURITY
061014G,GRADIENT CONSULTANTS LLP======,2129,1,48.75,PROF FEES-MISCELLANEOUS,09/10/14,"6,712.50",
061014G,GRADIENT CONSULTANTS LLP======,2129,2,97.50,PROF FEES-MISCELLANEOUS,09/10/14,,
061014G,GRADIENT CONSULTANTS LLP======,2129,3,575.00,PROF FEES-MISCELLANEOUS,09/10/14,,
061014G,GRADIENT CONSULTANTS LLP======,2129,4,575.00,PROF FEES-MISCELLANEOUS,09/10/14,,
061014G,GRADIENT CONSULTANTS LLP======,2129,5,300.00,PROF FEES-MISCELLANEOUS,09/10/14,,
061014G,GRADIENT CONSULTANTS LLP======,2129,6,290.00,PROF FEES-MISCELLANEOUS,09/10/14,,
061014G,GRADIENT CONSULTANTS LLP======,2129,7,290.00,PROF FEES-MISCELLANEOUS,09/10/14,,
061014G,GRADIENT CONSULTANTS LLP======,2129,8,290.00,PROF FEES-MISCELLANEOUS,09/10/14,,
061014G,GRADIENT CONSULTANTS LLP======,2129,9,290.00,PROF FEES-MISCELLANEOUS,09/10/14,,
061014G,GRADIENT CONSULTANTS LLP======,2129,10,290.00,PROF FEES-MISCELLANEOUS,09/10/14,,
061014G,GRADIENT CONSULTANTS LLP======,2129,11,290.00,PROF FEES-MISCELLANEOUS,09/10/14,,
061014G,GRADIENT CONSULTANTS LLP======,2129,12,290.00,PROF FEES-MISCELLANEOUS,09/10/14,,
061014G,GRADIENT CONSULTANTS LLP======,2129,13,290.00,PROF FEES-MISCELLANEOUS,09/10/14,,
061014G,GRADIENT CONSULTANTS LLP======,2129,14,290.00,PROF FEES-MISCELLANEOUS,09/10/14,,
061014G,GRADIENT CONSULTANTS LLP======,2129,15,290.00,PROF FEES-MISCELLANEOUS,09/10/14,,
061014G,GRADIENT CONSULTANTS LLP======,2129,16,300.00,PROF FEES-MISCELLANEOUS,09/10/14,,
061014G,GRADIENT CONSULTANTS LLP======,2129,17,146.25,PROF FEES-MISCELLANEOUS,09/10/14,,
061014G,GRADIENT CONSULTANTS LLP======,2129,18,290.00,PROF FEES-MISCELLANEOUS,09/10/14,,
061014G,GRADIENT CONSULTANTS LLP======,2129,19,290.00,PROF FEES-MISCELLANEOUS,09/10/14,,
061014G,GRADIENT CONSULTANTS LLP======,2129,20,545.00,PROF FEES-MISCELLANEOUS,09/10/14,,
061014G,GRADIENT CONSULTANTS LLP======,2129,21,290.00,PROF FEES-MISCELLANEOUS,09/10/14,,
061014G,GRADIENT CONSULTANTS LLP======,2129,22,300.00,PROF FEES-MISCELLANEOUS,09/10/14,,
061014G,GRADIENT CONSULTANTS LLP======,2129,23,55.00,PROF FEES-MISCELLANEOUS,09/10/14,,
061014G,GRADIENT CONSULTANTS LLP======,2142,1,208.81,ASBESTOS,09/10/14,"1,147.58",LAMBETH FS
061014G,GRADIENT CONSULTANTS LLP======,2142,2,52.09,ASBESTOS,09/10/14,,BARNET FS
061014G,GRADIENT CONSULTANTS LLP======,2142,3,104.41,ASBESTOS,09/10/14,,CROYDON FS
061014G,GRADIENT CONSULTANTS LLP======,2142,4,52.09,ASBESTOS,09/10/14,,DOWGATE FIRE STATION
061014G,GRADIENT CONSULTANTS LLP======,2142,5,52.09,ASBESTOS,09/10/14,,DOWNHAM FS
061014G,GRADIENT CONSULTANTS LLP======,2142,6,52.09,ASBESTOS,09/10/14,,HORNCHURCH FIRE STATION
061014G,GRADIENT CONSULTANTS LLP======,2142,7,52.09,ASBESTOS,09/10/14,,ISLINGTON FIRE STATION
061014G,GRADIENT CONSULTANTS LLP======,2142,8,104.41,ASBESTOS,09/10/14,,LAMBETH FS
061014G,GRADIENT CONSULTANTS LLP======,2142,9,52.09,ASBESTOS,09/10/14,,LAMBETH RIVER FS
061014G,GRADIENT CONSULTANTS LLP======,2142,10,52.09,ASBESTOS,09/10/14,,LEYTON FS
061014G,GRADIENT CONSULTANTS LLP======,2142,11,52.09,ASBESTOS,09/10/14,,PECKHAM FS
061014G,GRADIENT CONSULTANTS LLP======,2142,12,104.41,ASBESTOS,09/10/14,,SIDCUP FS
061014G,GRADIENT CONSULTANTS LLP======,2142,13,104.41,ASBESTOS,09/10/14,,UNION STREET HQ HOLDING A/C
061014G,GRADIENT CONSULTANTS LLP======,2142,14,104.41,ASBESTOS,09/10/14,,WIMBLEDON FIRE STATION
021014G,FUTURE SAFETY LTD=============,2148,1,"1,160.00",OPERATIONAL EQUIP-PURCHASE,09/10/14,"3,970.00",INTER OPERABILITY MCR
021014G,FUTURE SAFETY LTD=============,2148,2,"1,160.00",OPERATIONAL EQUIP-PURCHASE,09/10/14,,INTER OPERABILITY MCR
021014G,FUTURE SAFETY LTD=============,2148,3,590.00,OPERATIONAL EQUIP-PURCHASE,09/10/14,,INTER OPERABILITY MCR
021014G,FUTURE SAFETY LTD=============,2148,4,580.00,OPERATIONAL EQUIP-PURCHASE,09/10/14,,INTER OPERABILITY MCR
021014G,FUTURE SAFETY LTD=============,2148,5,480.00,OPERATIONAL EQUIP-PURCHASE,09/10/14,,INTER OPERABILITY MCR
250914C,CRISPIN HUGHES================,2259,1,369.00,PRESS OFFICE,09/10/14,369.00,COMMS MARKETING
061014G,ASBESTOS FIRST================,23433/S5738,1,562.50,ASBESTOS,09/10/14,562.50,PARK ROYAL FS
061014G,B NOKES CONTRACTS LTD,2400,1,"1,121.50",STRATEGIC (NON CYCLICAL),09/10/14,"1,121.50",POPLAR FS
061014G,B NOKES CONTRACTS LTD,2402,1,592.00,DEVELOPMENT  EXPENSES-CONTRACT,09/10/14,592.00,
061014G,B NOKES CONTRACTS LTD,2403,1,"3,197.00",DEVELOPMENT  EXPENSES-CONTRACT,09/10/14,"3,197.00",
061014G,B NOKES CONTRACTS LTD,2404,1,959.50,STRATEGIC (NON CYCLICAL),09/10/14,959.50,BARKING FIRE STATION
061014G,BRISTOL UNIFORMS LTD==========,3113562,1,100.64,CLOTHING,09/10/14,301.92,LIFE LFB FUNDED PROJECTS
061014G,BRISTOL UNIFORMS LTD==========,3113562,2,100.64,CLOTHING,09/10/14,,LIFE LFB FUNDED PROJECTS
061014G,BRISTOL UNIFORMS LTD==========,3113562,3,100.64,CLOTHING,09/10/14,,LIFE LFB FUNDED PROJECTS
021014G,CARPETS & FLOOR COVERS DIRECT=,3117,1,"2,013.16",FIXTURES & FITTINGS,09/10/14,"2,013.16",CROYDON FS
031014G,HUNTERS CONTRACTS LIMITED,347480,1,334.30,OFFICE FURNITURE,09/10/14,334.30,BROMLEY FS
300914G,AUDIT COMMISSION==============,4045904,1,"1,000.00",EXTERNAL AUDIT,09/10/14,"1,000.00",FN FINANCE ADMINISTRATION
031014G,FOCUS & VISION TECHNOLOGY LTD,42404,1,828.70,MEDICAL EXPENSES CONTRACT,09/10/14,828.70,HR CENTRALLY HELD BUDGETS
031014G,EVENING STANDARD COMPANY LTD==,59615582,1,722.00,ADVERTISING,09/10/14,722.00,DEMOCRATIC SERVICES
021014G,CONTRACT CATERING CONSULTANTS=,6267,1,500.00,CONSULTANTS,09/10/14,500.00,ENERGY & COMPLIANCE
061014G,MERLIN ELECTRICAL SERVICES LTD,7205,1,"2,485.58",STRATEGIC (NON CYCLICAL),09/10/14,"2,485.58",SURBITON FS
061014G,*SP SERVICES,743852,1,265.90,OPERATIONAL EQUIP-PURCHASE,09/10/14,265.90,CHALLENGE TEAM
031014G,NEXUS PROPERTY SERVICES,80248,1,"2,922.13",GENERAL,09/10/14,"2,922.13",INFORMATION MNGT & PERFORMANCE
300914G,DRAEGER SAFETY UK LIMITED=====,90457575,1,254.60,PROTECTIVE EQUIPT - PARTS,09/10/14,254.60,
021014G,BRISTOL UNIFORMS LTD==========,BC-08-14-S1306,1,348.32,CLOTHING,09/10/14,348.32,CENTRAL DEPARTMENT ACCOUNT
021014G,THAMES WATER UTILITIES LTD====,CBA1408941,1,477.00,CURRENT HYDRANT COSTS,09/10/14,477.00,WATER OFFICE
021014G,THAMES WATER UTILITIES LTD====,CBA1408947,1,"1,185.00",CURRENT HYDRANT COSTS,09/10/14,"1,185.00",WATER OFFICE
021014G,THAMES WATER UTILITIES LTD====,CBA1408954,1,477.00,CURRENT HYDRANT COSTS,09/10/14,477.00,WATER OFFICE
031014G,E&S B DAVIS LTD,DAV/52351,1,540.00,OPERATIONAL EQUIP-PURCHASE,09/10/14,540.00,WOODFORE FIRE STATION
800053582,ALLSTAR BUSINESS SOLUTIONS LTD,E2003572035,1,808.90,FUEL,09/10/14,"18,404.67",CENTRAL DEPARTMENT ACCOUNT
800053582,ALLSTAR BUSINESS SOLUTIONS LTD,E2003572035,2,548.93,FUEL,09/10/14,,CORPORATE PROCUREMENT SERVICES
800053582,ALLSTAR BUSINESS SOLUTIONS LTD,E2003572035,3,527.21,FUEL,09/10/14,,PADDINGTON FS
800053582,ALLSTAR BUSINESS SOLUTIONS LTD,E2003572035,4,451.66,FUEL,09/10/14,,HESTON FS
800053582,ALLSTAR BUSINESS SOLUTIONS LTD,E2003572035,5,425.90,FUEL,09/10/14,,STOKE NEWINGTON FIRE STATION
800053582,ALLSTAR BUSINESS SOLUTIONS LTD,E2003572035,6,424.15,FUEL,09/10/14,,WALTHAMSTOW FS
800053582,ALLSTAR BUSINESS SOLUTIONS LTD,E2003572035,7,416.97,FUEL,09/10/14,,WEST HAMPSTEAD FS
800053582,ALLSTAR BUSINESS SOLUTIONS LTD,E2003572035,8,402.98,FUEL,09/10/14,,DAGENHAM FIRE STATION
800053582,ALLSTAR BUSINESS SOLUTIONS LTD,E2003572035,9,391.58,FUEL,09/10/14,,WEMBLEY FS
800053582,ALLSTAR BUSINESS SOLUTIONS LTD,E2003572035,10,364.21,FUEL,09/10/14,,EDMONTON FIRE STATION
800053582,ALLSTAR BUSINESS SOLUTIONS LTD,E2003572035,11,363.07,FUEL,09/10/14,,TOTTENHAM FIRE STATION
800053582,ALLSTAR BUSINESS SOLUTIONS LTD,E2003572035,12,316.17,FUEL,09/10/14,,LAMBETH FS
800053582,ALLSTAR BUSINESS SOLUTIONS LTD,E2003572035,13,306.26,FUEL,09/10/14,,NORBURY FS
800053582,ALLSTAR BUSINESS SOLUTIONS LTD,E2003572035,14,305.43,FUEL,09/10/14,,EAST HAM FIRE STATION
800053582,ALLSTAR BUSINESS SOLUTIONS LTD,E2003572035,15,298.25,FUEL,09/10/14,,ENFIELD FIRE STATION
800053582,ALLSTAR BUSINESS SOLUTIONS LTD,E2003572035,16,296.78,FUEL,09/10/14,,SOUTHALL FS
800053582,ALLSTAR BUSINESS SOLUTIONS LTD,E2003572035,17,295.50,FUEL,09/10/14,,BEXLEY FS
800053582,ALLSTAR BUSINESS SOLUTIONS LTD,E2003572035,18,295.09,FUEL,09/10/14,,ORPINGTON FS
800053582,ALLSTAR BUSINESS SOLUTIONS LTD,E2003572035,19,290.10,FUEL,09/10/14,,EUSTON FS
800053582,ALLSTAR BUSINESS SOLUTIONS LTD,E2003572035,20,273.87,FUEL,09/10/14,,NORTH KENSINGTON FS
800053582,ALLSTAR BUSINESS SOLUTIONS LTD,E2003572035,21,272.43,FUEL,09/10/14,,BARKING FIRE STATION
800053582,ALLSTAR BUSINESS SOLUTIONS LTD,E2003572035,22,271.59,FUEL,09/10/14,,HOMERTON FIRE STATION
800053582,ALLSTAR BUSINESS SOLUTIONS LTD,E2003572035,23,263.74,FUEL,09/10/14,,HORNSEY FIRE STATION
800053582,ALLSTAR BUSINESS SOLUTIONS LTD,E2003572035,24,253.72,FUEL,09/10/14,,HEATHROW FS
800053582,ALLSTAR BUSINESS SOLUTIONS LTD,E2003572035,25,251.77,FUEL,09/10/14,,ISLINGTON FIRE STATION
800053582,ALLSTAR BUSINESS SOLUTIONS LTD,E2003572035,26,250.54,FUEL,09/10/14,,HILLINGDON FS
800053582,ALLSTAR BUSINESS SOLUTIONS LTD,E2003572035,27,250.17,FUEL,09/10/14,,WATER OFFICE
800053582,ALLSTAR BUSINESS SOLUTIONS LTD,E2003572035,28,245.73,FUEL,09/10/14,,FIRE INVESTIGATION UNIT
800053582,ALLSTAR BUSINESS SOLUTIONS LTD,E2003572035,29,235.47,FUEL,09/10/14,,WIMBLEDON FIRE STATION
800053582,ALLSTAR BUSINESS SOLUTIONS LTD,E2003572035,30,228.41,FUEL,09/10/14,,PLUMSTEAD FS
800053582,ALLSTAR BUSINESS SOLUTIONS LTD,E2003572035,31,222.95,FUEL,09/10/14,,SOUTH EAST AREA TEAM
800053582,ALLSTAR BUSINESS SOLUTIONS LTD,E2003572035,32,214.99,FUEL,09/10/14,,TOOTING FIRE STATION
800053582,ALLSTAR BUSINESS SOLUTIONS LTD,E2003572035,33,214.75,FUEL,09/10/14,,CLAPHAM FS
800053582,ALLSTAR BUSINESS SOLUTIONS LTD,E2003572035,34,208.51,FUEL,09/10/14,,BROMLEY FS
800053582,ALLSTAR BUSINESS SOLUTIONS LTD,E2003572035,35,206.56,FUEL,09/10/14,,BRIXTON FS
800053582,ALLSTAR BUSINESS SOLUTIONS LTD,E2003572035,36,206.46,FUEL,09/10/14,,HENDON FS
800053582,ALLSTAR BUSINESS SOLUTIONS LTD,E2003572035,37,205.27,FUEL,09/10/14,,EAST GREENWICH FS
800053582,ALLSTAR BUSINESS SOLUTIONS LTD,E2003572035,38,203.82,FUEL,09/10/14,,SURBITON FS
800053582,ALLSTAR BUSINESS SOLUTIONS LTD,E2003572035,39,203.32,FUEL,09/10/14,,CHELSEA FS
800053582,ALLSTAR BUSINESS SOLUTIONS LTD,E2003572035,40,202.23,FUEL,09/10/14,,WEST NORWOOD FS
800053582,ALLSTAR BUSINESS SOLUTIONS LTD,E2003572035,41,195.29,FUEL,09/10/14,,WOODFORE FIRE STATION
800053582,ALLSTAR BUSINESS SOLUTIONS LTD,E2003572035,42,194.12,FUEL,09/10/14,,OLD KENT ROAD FS
800053582,ALLSTAR BUSINESS SOLUTIONS LTD,E2003572035,43,184.07,FUEL,09/10/14,,SHOREDITCH FIRE STATION
800053582,ALLSTAR BUSINESS SOLUTIONS LTD,E2003572035,44,176.70,FUEL,09/10/14,,DOWGATE FIRE STATION
800053582,ALLSTAR BUSINESS SOLUTIONS LTD,E2003572035,45,174.94,FUEL,09/10/14,,HARROW FS
800053582,ALLSTAR BUSINESS SOLUTIONS LTD,E2003572035,46,169.00,FUEL,09/10/14,,SOUTHGATE FIRE STATION
800053582,ALLSTAR BUSINESS SOLUTIONS LTD,E2003572035,47,168.29,FUEL,09/10/14,,GREENWICH FS
800053582,ALLSTAR BUSINESS SOLUTIONS LTD,E2003572035,48,166.37,FUEL,09/10/14,,ELTHAM FS
800053582,ALLSTAR BUSINESS SOLUTIONS LTD,E2003572035,49,164.74,FUEL,09/10/14,,ADDINGTON FS
800053582,ALLSTAR BUSINESS SOLUTIONS LTD,E2003572035,50,153.82,FUEL,09/10/14,,BECKENHAM FS
800053582,ALLSTAR BUSINESS SOLUTIONS LTD,E2003572035,51,149.18,FUEL,09/10/14,,HOLLOWAY FIRE STATION
800053582,ALLSTAR BUSINESS SOLUTIONS LTD,E2003572035,52,144.83,FUEL,09/10/14,,WENNINGTON FIRE STATION
800053582,ALLSTAR BUSINESS SOLUTIONS LTD,E2003572035,53,144.03,FUEL,09/10/14,,MITCHAM FIRE STATION
800053582,ALLSTAR BUSINESS SOLUTIONS LTD,E2003572035,54,141.64,FUEL,09/10/14,,I&CT OPERATIONAL SUPPORT
800053582,ALLSTAR BUSINESS SOLUTIONS LTD,E2003572035,55,136.10,FUEL,09/10/14,,PECKHAM FS
800053582,ALLSTAR BUSINESS SOLUTIONS LTD,E2003572035,56,132.53,FUEL,09/10/14,,DEPTFORD FS
800053582,ALLSTAR BUSINESS SOLUTIONS LTD,E2003572035,57,130.46,FUEL,09/10/14,,ACTON FS
800053582,ALLSTAR BUSINESS SOLUTIONS LTD,E2003572035,58,129.73,FUEL,09/10/14,,PLAISTOW FIRE STATION
800053582,ALLSTAR BUSINESS SOLUTIONS LTD,E2003572035,59,125.52,FUEL,09/10/14,,MILL HILL FS
800053582,ALLSTAR BUSINESS SOLUTIONS LTD,E2003572035,60,125.46,FUEL,09/10/14,,WALLINGTON FS
800053582,ALLSTAR BUSINESS SOLUTIONS LTD,E2003572035,61,125.00,FUEL,09/10/14,,HORNCHURCH FIRE STATION
800053582,ALLSTAR BUSINESS SOLUTIONS LTD,E2003572035,62,121.67,FUEL,09/10/14,,PARK ROYAL FS
800053582,ALLSTAR BUSINESS SOLUTIONS LTD,E2003572035,63,121.22,FUEL,09/10/14,,COMMAND UNIT - RICHMOND
800053582,ALLSTAR BUSINESS SOLUTIONS LTD,E2003572035,64,121.05,FUEL,09/10/14,,WHITECHAPEL FS
800053582,ALLSTAR BUSINESS SOLUTIONS LTD,E2003572035,65,117.20,FUEL,09/10/14,,BARNET FS
800053582,ALLSTAR BUSINESS SOLUTIONS LTD,E2003572035,66,114.80,FUEL,09/10/14,,PURLEY FS
800053582,ALLSTAR BUSINESS SOLUTIONS LTD,E2003572035,67,113.46,FUEL,09/10/14,,COMMAND UNIT - BARKING
800053582,ALLSTAR BUSINESS SOLUTIONS LTD,E2003572035,68,107.69,FUEL,09/10/14,,COMMAND UNIT - WEMBLEY
800053582,ALLSTAR BUSINESS SOLUTIONS LTD,E2003572035,69,107.65,FUEL,09/10/14,,HAROLD HILL FIRE STATION
800053582,ALLSTAR BUSINESS SOLUTIONS LTD,E2003572035,70,106.47,FUEL,09/10/14,,NEW CROSS FS
800053582,ALLSTAR BUSINESS SOLUTIONS LTD,E2003572035,71,106.39,FUEL,09/10/14,,RICHMOND FS
800053582,ALLSTAR BUSINESS SOLUTIONS LTD,E2003572035,72,105.12,FUEL,09/10/14,,FULHAM FS
800053582,ALLSTAR BUSINESS SOLUTIONS LTD,E2003572035,73,104.52,FUEL,09/10/14,,LEYTONSTONE FS
800053582,ALLSTAR BUSINESS SOLUTIONS LTD,E2003572035,74,100.32,FUEL,09/10/14,,SHADWELL FS
800053582,ALLSTAR BUSINESS SOLUTIONS LTD,E2003572035,75,92.43,FUEL,09/10/14,,DOCKHEAD FS
800053582,ALLSTAR BUSINESS SOLUTIONS LTD,E2003572035,76,91.59,FUEL,09/10/14,,WOODSIDE FS
800053582,ALLSTAR BUSINESS SOLUTIONS LTD,E2003572035,77,86.68,FUEL,09/10/14,,NEW MALDEN FS
800053582,ALLSTAR BUSINESS SOLUTIONS LTD,E2003572035,78,83.38,FUEL,09/10/14,,COMMAND UNIT - EDMONTON
800053582,ALLSTAR BUSINESS SOLUTIONS LTD,E2003572035,79,74.86,FUEL,09/10/14,,NORTH EAST AREA
800053582,ALLSTAR BUSINESS SOLUTIONS LTD,E2003572035,80,74.21,FUEL,09/10/14,,COMMAND UNIT - LEWISHAM
800053582,ALLSTAR BUSINESS SOLUTIONS LTD,E2003572035,81,72.28,FUEL,09/10/14,,LEWISHAM FS
800053582,ALLSTAR BUSINESS SOLUTIONS LTD,E2003572035,82,71.56,FUEL,09/10/14,,BUSINESS CONTINUITY
800053582,ALLSTAR BUSINESS SOLUTIONS LTD,E2003572035,83,70.86,FUEL,09/10/14,,BUSINESS CONTINUITY
800053582,ALLSTAR BUSINESS SOLUTIONS LTD,E2003572035,84,68.33,FUEL,09/10/14,,SOUTH EAST AREA
800053582,ALLSTAR BUSINESS SOLUTIONS LTD,E2003572035,85,61.63,FUEL,09/10/14,,CHISWICK FS
800053582,ALLSTAR BUSINESS SOLUTIONS LTD,E2003572035,86,57.27,FUEL,09/10/14,,CBRN RRT
800053582,ALLSTAR BUSINESS SOLUTIONS LTD,E2003572035,87,51.71,FUEL,09/10/14,,BIGGIN HILL FS
800053582,ALLSTAR BUSINESS SOLUTIONS LTD,E2003572035,88,50.97,FUEL,09/10/14,,COMMAND UNIT - WOODSIDE
800053582,ALLSTAR BUSINESS SOLUTIONS LTD,E2003572035,89,50.02,FUEL,09/10/14,,FLEET ENGINEERING
800053582,ALLSTAR BUSINESS SOLUTIONS LTD,E2003572035,90,48.19,FUEL,09/10/14,,MILLWALL FS
800053582,ALLSTAR BUSINESS SOLUTIONS LTD,E2003572035,91,42.51,FUEL,09/10/14,,COMMAND UNIT - FULHAM
800053582,ALLSTAR BUSINESS SOLUTIONS LTD,E2003572035,92,40.51,FUEL,09/10/14,,LEE GREEN FS
800053582,ALLSTAR BUSINESS SOLUTIONS LTD,E2003572035,93,35.45,FUEL,09/10/14,,LIFE EXTERNAL CONTRIBUTIONS
800053582,ALLSTAR BUSINESS SOLUTIONS LTD,E2003572035,94,24.10,FUEL,09/10/14,,LEYTON FS
800053582,ALLSTAR BUSINESS SOLUTIONS LTD,E2003572035,95,21.21,FUEL,09/10/14,,ERITH FS
800053582,ALLSTAR BUSINESS SOLUTIONS LTD,E2003572035,96,19.83,FUEL,09/10/14,,PROTECTIVE EQUIPMENT GROUP
800053582,ALLSTAR BUSINESS SOLUTIONS LTD,E2003572035,97,10.23,FUEL,09/10/14,,KINGSTON FS
800053582,ALLSTAR BUSINESS SOLUTIONS LTD,E2003572035,98,10.04,FUEL,09/10/14,,BATTERSEA FIRE STATION
061014G,ESSEX FIRE AUTHORITY==========,FSIN6934,1,"20,051.74",FIRE AUTHORITIES,09/10/14,"20,051.74",NATL OPERATIONAL GUIDANCE PROJ
140827,GOOD ENERGY===================,GE106451EI,1,696.28,ELECTRICITY,09/10/14,696.28,RICHMOND FS
061014G,HEATHER ROBYN,HR026,1,300.00,CONSULTANTS,09/10/14,300.00,HR  ADVISORY & COUNSELLING
061014G,WALTER FRANK & SONS LIMITED===,INV/11257,1,375.00,OPERATIONAL EQUIP-PURCHASE,09/10/14,470.00,PROTECTIVE EQUIPMENT GROUP
061014G,WALTER FRANK & SONS LIMITED===,INV/11257,2,80.00,OPERATIONAL EQUIP-PURCHASE,09/10/14,,PROTECTIVE EQUIPMENT GROUP
061014G,WALTER FRANK & SONS LIMITED===,INV/11257,3,15.00,OPERATIONAL EQUIP-PURCHASE,09/10/14,,PROTECTIVE EQUIPMENT GROUP
061014G,EXCITECH LTD,INV0046289,1,"2,085.00",MAINTENANCE & SUPPORT,09/10/14,"3,955.00",I&CT CONTRACT & ASSET MANGMNT
061014G,EXCITECH LTD,INV0046289,2,190.00,MAINTENANCE & SUPPORT,09/10/14,,I&CT CONTRACT & ASSET MANGMNT
061014G,EXCITECH LTD,INV0046289,3,930.00,MAINTENANCE & SUPPORT,09/10/14,,I&CT CONTRACT & ASSET MANGMNT
061014G,EXCITECH LTD,INV0046289,4,750.00,MAINTENANCE & SUPPORT,09/10/14,,I&CT CONTRACT & ASSET MANGMNT
800053455,*THOMAS KNEALE & CO LTD,TK108363,1,429.80,COMMUNITY RELATIONS,09/10/14,"1,957.56",PREVENTION STEERING
800053455,*THOMAS KNEALE & CO LTD,TK108363,2,669.90,COMMUNITY RELATIONS,09/10/14,,PREVENTION STEERING
800053455,*THOMAS KNEALE & CO LTD,TK108363,3,10.89,CLOTHING,09/10/14,,NORBURY FS
800053455,*THOMAS KNEALE & CO LTD,TK108363,4,0.99,CLOTHING,09/10/14,,NORBURY FS
800053455,*THOMAS KNEALE & CO LTD,TK108363,5,10.89,CLOTHING,09/10/14,,BARNET FS
800053455,*THOMAS KNEALE & CO LTD,TK108363,6,3.47,CLOTHING,09/10/14,,BARNET FS
800053455,*THOMAS KNEALE & CO LTD,TK108363,7,1.48,CLOTHING,09/10/14,,BARNET FS
800053455,*THOMAS KNEALE & CO LTD,TK108363,8,10.89,CLOTHING,09/10/14,,LAMBETH FS
800053455,*THOMAS KNEALE & CO LTD,TK108363,9,10.89,CLOTHING,09/10/14,,FINCHLEY FS
800053455,*THOMAS KNEALE & CO LTD,TK108363,10,3.47,CLOTHING,09/10/14,,FINCHLEY FS
800053455,*THOMAS KNEALE & CO LTD,TK108363,11,3.47,CLOTHING,09/10/14,,ACTON FS
800053455,*THOMAS KNEALE & CO LTD,TK108363,12,2.84,OFFICE FURNITURE,09/10/14,,LAMBETH FS
800053455,*THOMAS KNEALE & CO LTD,TK108363,13,3.47,CLOTHING,09/10/14,,RUISLIP FS
800053455,*THOMAS KNEALE & CO LTD,TK108363,14,10.89,CLOTHING,09/10/14,,DAGENHAM FIRE STATION
800053455,*THOMAS KNEALE & CO LTD,TK108363,15,0.99,CLOTHING,09/10/14,,DAGENHAM FIRE STATION
800053455,*THOMAS KNEALE & CO LTD,TK108363,16,10.89,CLOTHING,09/10/14,,DAGENHAM FIRE STATION
800053455,*THOMAS KNEALE & CO LTD,TK108363,17,10.89,CLOTHING,09/10/14,,DAGENHAM FIRE STATION
800053455,*THOMAS KNEALE & CO LTD,TK108363,18,3.47,CLOTHING,09/10/14,,DAGENHAM FIRE STATION
800053455,*THOMAS KNEALE & CO LTD,TK108363,19,1.48,CLOTHING,09/10/14,,DAGENHAM FIRE STATION
800053455,*THOMAS KNEALE & CO LTD,TK108363,20,10.89,CLOTHING,09/10/14,,ROMFORD FIRE STATION
800053455,*THOMAS KNEALE & CO LTD,TK108363,21,0.99,CLOTHING,09/10/14,,ROMFORD FIRE STATION
800053455,*THOMAS KNEALE & CO LTD,TK108363,22,2.96,CLOTHING,09/10/14,,ROMFORD FIRE STATION
800053455,*THOMAS KNEALE & CO LTD,TK108363,23,3.47,CLOTHING,09/10/14,,ROMFORD FIRE STATION
800053455,*THOMAS KNEALE & CO LTD,TK108363,24,1.48,CLOTHING,09/10/14,,HAINAULT FIRE STATION
800053455,*THOMAS KNEALE & CO LTD,TK108363,25,3.47,CLOTHING,09/10/14,,HAINAULT FIRE STATION
800053455,*THOMAS KNEALE & CO LTD,TK108363,26,0.99,CLOTHING,09/10/14,,HAINAULT FIRE STATION
800053455,*THOMAS KNEALE & CO LTD,TK108363,27,10.89,CLOTHING,09/10/14,,HARROW FS
800053455,*THOMAS KNEALE & CO LTD,TK108363,28,2.96,CLOTHING,09/10/14,,HARROW FS
800053455,*THOMAS KNEALE & CO LTD,TK108363,29,10.89,CLOTHING,09/10/14,,WEMBLEY FS
800053455,*THOMAS KNEALE & CO LTD,TK108363,30,3.47,CLOTHING,09/10/14,,WEMBLEY FS
800053455,*THOMAS KNEALE & CO LTD,TK108363,31,1.48,CLOTHING,09/10/14,,WEMBLEY FS
800053455,*THOMAS KNEALE & CO LTD,TK108363,32,3.47,CLOTHING,09/10/14,,ERITH FS
800053455,*THOMAS KNEALE & CO LTD,TK108363,33,10.89,CLOTHING,09/10/14,,ERITH FS
800053455,*THOMAS KNEALE & CO LTD,TK108363,34,6.94,CLOTHING,09/10/14,,NORTH KENSINGTON FS
800053455,*THOMAS KNEALE & CO LTD,TK108363,35,2.96,CLOTHING,09/10/14,,NORTH KENSINGTON FS
800053455,*THOMAS KNEALE & CO LTD,TK108363,36,10.89,CLOTHING,09/10/14,,NORTH KENSINGTON FS
800053455,*THOMAS KNEALE & CO LTD,TK108363,37,10.89,CLOTHING,09/10/14,,LEE GREEN FS
800053455,*THOMAS KNEALE & CO LTD,TK108363,38,10.89,CLOTHING,09/10/14,,OLD KENT ROAD FS
800053455,*THOMAS KNEALE & CO LTD,TK108363,39,6.94,CLOTHING,09/10/14,,SHOREDITCH FIRE STATION
800053455,*THOMAS KNEALE & CO LTD,TK108363,40,2.96,CLOTHING,09/10/14,,SHOREDITCH FIRE STATION
800053455,*THOMAS KNEALE & CO LTD,TK108363,41,10.89,CLOTHING,09/10/14,,SHOREDITCH FIRE STATION
800053455,*THOMAS KNEALE & CO LTD,TK108363,42,2.96,CLOTHING,09/10/14,,TOTTENHAM FIRE STATION
800053455,*THOMAS KNEALE & CO LTD,TK108363,43,6.94,CLOTHING,09/10/14,,TOTTENHAM FIRE STATION
800053455,*THOMAS KNEALE & CO LTD,TK108363,44,3.47,CLOTHING,09/10/14,,CHINGFORD FS
800053455,*THOMAS KNEALE & CO LTD,TK108363,45,1.48,CLOTHING,09/10/14,,CHINGFORD FS
800053455,*THOMAS KNEALE & CO LTD,TK108363,46,10.89,CLOTHING,09/10/14,,CHINGFORD FS
800053455,*THOMAS KNEALE & CO LTD,TK108363,47,10.89,CLOTHING,09/10/14,,DAGENHAM FIRE STATION
800053455,*THOMAS KNEALE & CO LTD,TK108363,48,0.99,CLOTHING,09/10/14,,DAGENHAM FIRE STATION
800053455,*THOMAS KNEALE & CO LTD,TK108363,49,10.89,CLOTHING,09/10/14,,WIMBLEDON FIRE STATION
800053455,*THOMAS KNEALE & CO LTD,TK108363,50,4.98,OFFICE FURNITURE,09/10/14,,WOODSIDE FS
800053455,*THOMAS KNEALE & CO LTD,TK108363,51,2.84,OFFICE FURNITURE,09/10/14,,LAMBETH FS
800053455,*THOMAS KNEALE & CO LTD,TK108363,52,10.89,CLOTHING,09/10/14,,HAMMERSMITH FS
800053455,*THOMAS KNEALE & CO LTD,TK108363,53,0.99,CLOTHING,09/10/14,,HAMMERSMITH FS
800053455,*THOMAS KNEALE & CO LTD,TK108363,54,3.47,CLOTHING,09/10/14,,LEYTON FS
800053455,*THOMAS KNEALE & CO LTD,TK108363,55,1.48,CLOTHING,09/10/14,,LEYTON FS
800053455,*THOMAS KNEALE & CO LTD,TK108363,56,1.48,CLOTHING,09/10/14,,PADDINGTON FS
800053455,*THOMAS KNEALE & CO LTD,TK108363,57,3.47,CLOTHING,09/10/14,,PADDINGTON FS
800053455,*THOMAS KNEALE & CO LTD,TK108363,58,5.68,OFFICE FURNITURE,09/10/14,,DOWGATE FIRE STATION
800053455,*THOMAS KNEALE & CO LTD,TK108363,59,10.89,CLOTHING,09/10/14,,WEMBLEY FS
800053455,*THOMAS KNEALE & CO LTD,TK108363,60,2.59,OFFICE FURNITURE,09/10/14,,SHOREDITCH FIRE STATION
800053455,*THOMAS KNEALE & CO LTD,TK108363,61,10.89,CLOTHING,09/10/14,,SHOREDITCH FIRE STATION
800053455,*THOMAS KNEALE & CO LTD,TK108363,62,2.84,OFFICE FURNITURE,09/10/14,,SHOREDITCH FIRE STATION
800053455,*THOMAS KNEALE & CO LTD,TK108363,63,2.96,CLOTHING,09/10/14,,SHOREDITCH FIRE STATION
800053455,*THOMAS KNEALE & CO LTD,TK108363,64,6.94,CLOTHING,09/10/14,,SHOREDITCH FIRE STATION
800053455,*THOMAS KNEALE & CO LTD,TK108363,65,3.47,CLOTHING,09/10/14,,HAROLD HILL FIRE STATION
800053455,*THOMAS KNEALE & CO LTD,TK108363,66,1.48,CLOTHING,09/10/14,,HAROLD HILL FIRE STATION
800053455,*THOMAS KNEALE & CO LTD,TK108363,67,10.89,CLOTHING,09/10/14,,HAROLD HILL FIRE STATION
800053455,*THOMAS KNEALE & CO LTD,TK108363,68,3.47,CLOTHING,09/10/14,,PARK ROYAL FS
800053455,*THOMAS KNEALE & CO LTD,TK108363,69,1.48,CLOTHING,09/10/14,,PARK ROYAL FS
800053455,*THOMAS KNEALE & CO LTD,TK108363,70,2.84,OFFICE FURNITURE,09/10/14,,PARK ROYAL FS
800053455,*THOMAS KNEALE & CO LTD,TK108363,71,10.89,CLOTHING,09/10/14,,WEST HAMPSTEAD FS
800053455,*THOMAS KNEALE & CO LTD,TK108363,72,3.47,CLOTHING,09/10/14,,BECKENHAM FS
800053455,*THOMAS KNEALE & CO LTD,TK108363,73,1.48,CLOTHING,09/10/14,,BECKENHAM FS
800053455,*THOMAS KNEALE & CO LTD,TK108363,74,3.47,CLOTHING,09/10/14,,DAGENHAM FIRE STATION
800053455,*THOMAS KNEALE & CO LTD,TK108363,75,3.47,CLOTHING,09/10/14,,DAGENHAM FIRE STATION
800053455,*THOMAS KNEALE & CO LTD,TK108363,76,6.94,CLOTHING,09/10/14,,ISLINGTON FIRE STATION
800053455,*THOMAS KNEALE & CO LTD,TK108363,77,2.96,CLOTHING,09/10/14,,ISLINGTON FIRE STATION
800053455,*THOMAS KNEALE & CO LTD,TK108363,78,2.59,OFFICE FURNITURE,09/10/14,,LAMBETH FS
800053455,*THOMAS KNEALE & CO LTD,TK108363,79,3.47,CLOTHING,09/10/14,,CLAPHAM FS
800053455,*THOMAS KNEALE & CO LTD,TK108363,80,1.48,CLOTHING,09/10/14,,CLAPHAM FS
800053455,*THOMAS KNEALE & CO LTD,TK108363,81,10.89,CLOTHING,09/10/14,,WEMBLEY FS
800053455,*THOMAS KNEALE & CO LTD,TK108363,82,10.89,CLOTHING,09/10/14,,ILFORD FIRE STATION
800053455,*THOMAS KNEALE & CO LTD,TK108363,83,10.89,CLOTHING,09/10/14,,RUISLIP FS
800053455,*THOMAS KNEALE & CO LTD,TK108363,84,6.94,CLOTHING,09/10/14,,RUISLIP FS
800053455,*THOMAS KNEALE & CO LTD,TK108363,85,2.96,CLOTHING,09/10/14,,RUISLIP FS
800053455,*THOMAS KNEALE & CO LTD,TK108363,86,10.89,CLOTHING,09/10/14,,RUISLIP FS
800053455,*THOMAS KNEALE & CO LTD,TK108363,87,10.89,CLOTHING,09/10/14,,ELTHAM FS
800053455,*THOMAS KNEALE & CO LTD,TK108363,88,10.89,CLOTHING,09/10/14,,HESTON FS
800053455,*THOMAS KNEALE & CO LTD,TK108363,89,3.47,CLOTHING,09/10/14,,ENFIELD FIRE STATION
800053455,*THOMAS KNEALE & CO LTD,TK108363,90,10.89,CLOTHING,09/10/14,,ENFIELD FIRE STATION
800053455,*THOMAS KNEALE & CO LTD,TK108363,91,10.89,CLOTHING,09/10/14,,STANMORE FS
800053455,*THOMAS KNEALE & CO LTD,TK108363,92,0.99,CLOTHING,09/10/14,,STANMORE FS
800053455,*THOMAS KNEALE & CO LTD,TK108363,93,1.48,CLOTHING,09/10/14,,STANMORE FS
800053455,*THOMAS KNEALE & CO LTD,TK108363,94,3.47,CLOTHING,09/10/14,,STANMORE FS
800053455,*THOMAS KNEALE & CO LTD,TK108363,95,10.89,CLOTHING,09/10/14,,SHOREDITCH FIRE STATION
800053455,*THOMAS KNEALE & CO LTD,TK108363,96,3.47,CLOTHING,09/10/14,,SHOREDITCH FIRE STATION
800053455,*THOMAS KNEALE & CO LTD,TK108363,97,1.48,CLOTHING,09/10/14,,SHOREDITCH FIRE STATION
800053455,*THOMAS KNEALE & CO LTD,TK108363,98,2.59,OFFICE FURNITURE,09/10/14,,SHOREDITCH FIRE STATION
800053455,*THOMAS KNEALE & CO LTD,TK108363,99,10.89,CLOTHING,09/10/14,,ACTON FS
800053455,*THOMAS KNEALE & CO LTD,TK108363,100,3.47,CLOTHING,09/10/14,,ACTON FS
800053455,*THOMAS KNEALE & CO LTD,TK108363,101,0.99,CLOTHING,09/10/14,,SOHO FS
800053455,*THOMAS KNEALE & CO LTD,TK108363,102,10.89,CLOTHING,09/10/14,,SOHO FS
800053455,*THOMAS KNEALE & CO LTD,TK108363,103,10.89,CLOTHING,09/10/14,,WANDSWORTH FIRE STATION
800053455,*THOMAS KNEALE & CO LTD,TK108363,104,3.47,CLOTHING,09/10/14,,WANDSWORTH FIRE STATION
800053455,*THOMAS KNEALE & CO LTD,TK108363,105,2.96,CLOTHING,09/10/14,,CHISWICK FS
800053455,*THOMAS KNEALE & CO LTD,TK108363,106,6.94,CLOTHING,09/10/14,,CHISWICK FS
800053455,*THOMAS KNEALE & CO LTD,TK108363,107,10.89,CLOTHING,09/10/14,,CHISWICK FS
800053455,*THOMAS KNEALE & CO LTD,TK108363,108,0.99,CLOTHING,09/10/14,,CHISWICK FS
800053455,*THOMAS KNEALE & CO LTD,TK108363,109,3.47,CLOTHING,09/10/14,,ACTON FS
800053455,*THOMAS KNEALE & CO LTD,TK108363,110,10.89,CLOTHING,09/10/14,,SOUTHALL FS
800053455,*THOMAS KNEALE & CO LTD,TK108363,111,3.47,CLOTHING,09/10/14,,SOUTHALL FS
800053455,*THOMAS KNEALE & CO LTD,TK108363,112,10.89,CLOTHING,09/10/14,,HESTON FS
800053455,*THOMAS KNEALE & CO LTD,TK108363,113,10.89,CLOTHING,09/10/14,,EALING FS
800053455,*THOMAS KNEALE & CO LTD,TK108363,114,0.99,CLOTHING,09/10/14,,KENSINGTON FS
800053455,*THOMAS KNEALE & CO LTD,TK108363,115,10.89,CLOTHING,09/10/14,,WEST HAMPSTEAD FS
800053455,*THOMAS KNEALE & CO LTD,TK108363,116,1.48,CLOTHING,09/10/14,,WEST HAMPSTEAD FS
800053455,*THOMAS KNEALE & CO LTD,TK108363,117,3.47,CLOTHING,09/10/14,,WEST HAMPSTEAD FS
800053455,*THOMAS KNEALE & CO LTD,TK108363,118,5.18,OFFICE FURNITURE,09/10/14,,GREENWICH FS
800053455,*THOMAS KNEALE & CO LTD,TK108363,119,6.94,CLOTHING,09/10/14,,LEE GREEN FS
800053455,*THOMAS KNEALE & CO LTD,TK108363,120,2.96,CLOTHING,09/10/14,,LEE GREEN FS
800053455,*THOMAS KNEALE & CO LTD,TK108363,121,10.89,CLOTHING,09/10/14,,BROMLEY FS
800053455,*THOMAS KNEALE & CO LTD,TK108363,122,3.47,CLOTHING,09/10/14,,TOTTENHAM FIRE STATION
800053455,*THOMAS KNEALE & CO LTD,TK108363,123,1.48,CLOTHING,09/10/14,,TOTTENHAM FIRE STATION
800053455,*THOMAS KNEALE & CO LTD,TK108363,124,67.95,OFFICE FURNITURE,09/10/14,,SIDCUP FS
800053455,*THOMAS KNEALE & CO LTD,TK108363,125,1.48,CLOTHING,09/10/14,,BROMLEY FS
800053455,*THOMAS KNEALE & CO LTD,TK108363,126,3.47,CLOTHING,09/10/14,,BROMLEY FS
800053455,*THOMAS KNEALE & CO LTD,TK108363,127,2.59,OFFICE FURNITURE,09/10/14,,LAMBETH FS
800053455,*THOMAS KNEALE & CO LTD,TK108363,128,10.89,CLOTHING,09/10/14,,GREENWICH FS
800053455,*THOMAS KNEALE & CO LTD,TK108363,129,5.35,CLOTHING,09/10/14,,GREENWICH FS
800053455,*THOMAS KNEALE & CO LTD,TK108363,130,3.47,CLOTHING,09/10/14,,ACTON FS
800053455,*THOMAS KNEALE & CO LTD,TK108363,131,10.89,CLOTHING,09/10/14,,ACTON FS
800053455,*THOMAS KNEALE & CO LTD,TK108363,132,10.89,CLOTHING,09/10/14,,ACTON FS
800053455,*THOMAS KNEALE & CO LTD,TK108363,133,6.94,CLOTHING,09/10/14,,LEE GREEN FS
800053455,*THOMAS KNEALE & CO LTD,TK108363,134,10.89,CLOTHING,09/10/14,,GREENWICH FS
800053455,*THOMAS KNEALE & CO LTD,TK108363,135,1.48,CLOTHING,09/10/14,,GREENWICH FS
800053455,*THOMAS KNEALE & CO LTD,TK108363,136,1.48,CLOTHING,09/10/14,,GREENWICH FS
800053455,*THOMAS KNEALE & CO LTD,TK108363,137,10.89,CLOTHING,09/10/14,,STRATFORD FIRE STATION
800053455,*THOMAS KNEALE & CO LTD,TK108363,138,0.99,CLOTHING,09/10/14,,STRATFORD FIRE STATION
800053455,*THOMAS KNEALE & CO LTD,TK108363,139,10.89,CLOTHING,09/10/14,,BEXLEY FS
800053455,*THOMAS KNEALE & CO LTD,TK108363,140,3.47,CLOTHING,09/10/14,,BEXLEY FS
800053455,*THOMAS KNEALE & CO LTD,TK108363,141,1.48,CLOTHING,09/10/14,,BEXLEY FS
800053457,*THOMAS KNEALE & CO LTD,TK108364,1,"1,133.58",PURCHASES-FURNITURE,09/10/14,"1,133.58",
800053456,*THOMAS KNEALE & CO LTD,TK108614,1,10.89,CLOTHING,09/10/14,968.40,PADDINGTON FS
800053456,*THOMAS KNEALE & CO LTD,TK108614,2,3.47,CLOTHING,09/10/14,,BROMLEY FS
800053456,*THOMAS KNEALE & CO LTD,TK108614,3,1.48,CLOTHING,09/10/14,,BROMLEY FS
800053456,*THOMAS KNEALE & CO LTD,TK108614,4,5.35,CLOTHING,09/10/14,,BROMLEY FS
800053456,*THOMAS KNEALE & CO LTD,TK108614,5,3.47,CLOTHING,09/10/14,,PLAISTOW FIRE STATION
800053456,*THOMAS KNEALE & CO LTD,TK108614,6,1.48,CLOTHING,09/10/14,,PLAISTOW FIRE STATION
800053456,*THOMAS KNEALE & CO LTD,TK108614,7,4.98,OFFICE FURNITURE,09/10/14,,FOREST HILL FS
800053456,*THOMAS KNEALE & CO LTD,TK108614,8,10.89,CLOTHING,09/10/14,,BROMLEY FS
800053456,*THOMAS KNEALE & CO LTD,TK108614,9,3.47,CLOTHING,09/10/14,,BROMLEY FS
800053456,*THOMAS KNEALE & CO LTD,TK108614,10,5.35,CLOTHING,09/10/14,,BROMLEY FS
800053456,*THOMAS KNEALE & CO LTD,TK108614,11,1.48,CLOTHING,09/10/14,,BROMLEY FS
800053456,*THOMAS KNEALE & CO LTD,TK108614,12,10.89,CLOTHING,09/10/14,,STOKE NEWINGTON FIRE STATION
800053456,*THOMAS KNEALE & CO LTD,TK108614,13,2.96,CLOTHING,09/10/14,,STOKE NEWINGTON FIRE STATION
800053456,*THOMAS KNEALE & CO LTD,TK108614,14,4.98,OFFICE FURNITURE,09/10/14,,FOREST HILL FS
800053456,*THOMAS KNEALE & CO LTD,TK108614,15,4.98,OFFICE FURNITURE,09/10/14,,FOREST HILL FS
800053456,*THOMAS KNEALE & CO LTD,TK108614,16,10.89,CLOTHING,09/10/14,,HARROW FS
800053456,*THOMAS KNEALE & CO LTD,TK108614,17,10.89,CLOTHING,09/10/14,,HENDON FS
800053456,*THOMAS KNEALE & CO LTD,TK108614,18,0.99,CLOTHING,09/10/14,,HENDON FS
800053456,*THOMAS KNEALE & CO LTD,TK108614,19,10.89,CLOTHING,09/10/14,,BARKING FIRE STATION
800053456,*THOMAS KNEALE & CO LTD,TK108614,20,0.99,CLOTHING,09/10/14,,BARKING FIRE STATION
800053456,*THOMAS KNEALE & CO LTD,TK108614,21,10.89,CLOTHING,09/10/14,,GREENWICH FS
800053456,*THOMAS KNEALE & CO LTD,TK108614,22,10.89,CLOTHING,09/10/14,,STRATFORD FIRE STATION
800053456,*THOMAS KNEALE & CO LTD,TK108614,23,3.47,CLOTHING,09/10/14,,STRATFORD FIRE STATION
800053456,*THOMAS KNEALE & CO LTD,TK108614,24,1.48,CLOTHING,09/10/14,,STRATFORD FIRE STATION
800053456,*THOMAS KNEALE & CO LTD,TK108614,25,10.89,CLOTHING,09/10/14,,LEWISHAM FS
800053456,*THOMAS KNEALE & CO LTD,TK108614,26,10.89,CLOTHING,09/10/14,,EUSTON FS
800053456,*THOMAS KNEALE & CO LTD,TK108614,27,1.48,CLOTHING,09/10/14,,EUSTON FS
800053456,*THOMAS KNEALE & CO LTD,TK108614,28,3.47,CLOTHING,09/10/14,,EUSTON FS
800053456,*THOMAS KNEALE & CO LTD,TK108614,29,3.47,CLOTHING,09/10/14,,STRATFORD FIRE STATION
800053456,*THOMAS KNEALE & CO LTD,TK108614,30,1.48,CLOTHING,09/10/14,,STRATFORD FIRE STATION
800053456,*THOMAS KNEALE & CO LTD,TK108614,31,10.89,CLOTHING,09/10/14,,LEWISHAM FS
800053456,*THOMAS KNEALE & CO LTD,TK108614,32,3.47,CLOTHING,09/10/14,,LEWISHAM FS
800053456,*THOMAS KNEALE & CO LTD,TK108614,33,3.47,CLOTHING,09/10/14,,SHADWELL FS
800053456,*THOMAS KNEALE & CO LTD,TK108614,34,1.48,CLOTHING,09/10/14,,SHADWELL FS
800053456,*THOMAS KNEALE & CO LTD,TK108614,35,3.47,CLOTHING,09/10/14,,DAGENHAM FIRE STATION
800053456,*THOMAS KNEALE & CO LTD,TK108614,36,1.48,CLOTHING,09/10/14,,DAGENHAM FIRE STATION
800053456,*THOMAS KNEALE & CO LTD,TK108614,37,10.89,CLOTHING,09/10/14,,CHISWICK FS
800053456,*THOMAS KNEALE & CO LTD,TK108614,38,10.89,CLOTHING,09/10/14,,BROMLEY FS
800053456,*THOMAS KNEALE & CO LTD,TK108614,39,3.47,CLOTHING,09/10/14,,BROMLEY FS
800053456,*THOMAS KNEALE & CO LTD,TK108614,40,1.48,CLOTHING,09/10/14,,BROMLEY FS
800053456,*THOMAS KNEALE & CO LTD,TK108614,41,5.35,CLOTHING,09/10/14,,BROMLEY FS
800053456,*THOMAS KNEALE & CO LTD,TK108614,42,3.47,CLOTHING,09/10/14,,PECKHAM FS
800053456,*THOMAS KNEALE & CO LTD,TK108614,43,10.89,CLOTHING,09/10/14,,HENDON FS
800053456,*THOMAS KNEALE & CO LTD,TK108614,44,0.99,CLOTHING,09/10/14,,HENDON FS
800053456,*THOMAS KNEALE & CO LTD,TK108614,45,4.98,OFFICE FURNITURE,09/10/14,,FOREST HILL FS
800053456,*THOMAS KNEALE & CO LTD,TK108614,46,10.89,CLOTHING,09/10/14,,HARROW FS
800053456,*THOMAS KNEALE & CO LTD,TK108614,47,10.89,CLOTHING,09/10/14,,DAGENHAM FIRE STATION
800053456,*THOMAS KNEALE & CO LTD,TK108614,48,10.89,CLOTHING,09/10/14,,PLUMSTEAD FS
800053456,*THOMAS KNEALE & CO LTD,TK108614,49,10.89,CLOTHING,09/10/14,,ROMFORD FIRE STATION
800053456,*THOMAS KNEALE & CO LTD,TK108614,50,0.99,CLOTHING,09/10/14,,ROMFORD FIRE STATION
800053456,*THOMAS KNEALE & CO LTD,TK108614,51,10.89,CLOTHING,09/10/14,,LAMBETH RIVER FS
800053456,*THOMAS KNEALE & CO LTD,TK108614,52,10.89,CLOTHING,09/10/14,,HARROW FS
800053456,*THOMAS KNEALE & CO LTD,TK108614,53,1.48,CLOTHING,09/10/14,,TOOTING FIRE STATION
800053456,*THOMAS KNEALE & CO LTD,TK108614,54,3.47,CLOTHING,09/10/14,,TOOTING FIRE STATION
800053456,*THOMAS KNEALE & CO LTD,TK108614,55,10.89,CLOTHING,09/10/14,,DOCKHEAD FS
800053456,*THOMAS KNEALE & CO LTD,TK108614,56,4.98,OFFICE FURNITURE,09/10/14,,FOREST HILL FS
800053456,*THOMAS KNEALE & CO LTD,TK108614,57,0.99,CLOTHING,09/10/14,,HENDON FS
800053456,*THOMAS KNEALE & CO LTD,TK108614,58,10.89,CLOTHING,09/10/14,,STOKE NEWINGTON FIRE STATION
800053456,*THOMAS KNEALE & CO LTD,TK108614,59,10.89,CLOTHING,09/10/14,,WEST HAMPSTEAD FS
800053456,*THOMAS KNEALE & CO LTD,TK108614,60,3.47,CLOTHING,09/10/14,,HORNCHURCH FIRE STATION
800053456,*THOMAS KNEALE & CO LTD,TK108614,61,10.89,CLOTHING,09/10/14,,HORNCHURCH FIRE STATION
800053456,*THOMAS KNEALE & CO LTD,TK108614,62,10.89,CLOTHING,09/10/14,,LAMBETH FS
800053456,*THOMAS KNEALE & CO LTD,TK108614,63,2.84,OFFICE FURNITURE,09/10/14,,LAMBETH FS
800053456,*THOMAS KNEALE & CO LTD,TK108614,64,2.96,CLOTHING,09/10/14,,LAMBETH FS
800053456,*THOMAS KNEALE & CO LTD,TK108614,65,10.89,CLOTHING,09/10/14,,FINCHLEY FS
800053456,*THOMAS KNEALE & CO LTD,TK108614,66,10.89,CLOTHING,09/10/14,,BETHNAL GREEN FS
800053456,*THOMAS KNEALE & CO LTD,TK108614,67,0.99,CLOTHING,09/10/14,,BETHNAL GREEN FS
800053456,*THOMAS KNEALE & CO LTD,TK108614,68,6.94,CLOTHING,09/10/14,,BETHNAL GREEN FS
800053456,*THOMAS KNEALE & CO LTD,TK108614,69,2.96,CLOTHING,09/10/14,,BETHNAL GREEN FS
800053456,*THOMAS KNEALE & CO LTD,TK108614,70,2.96,CLOTHING,09/10/14,,BROMLEY FS
800053456,*THOMAS KNEALE & CO LTD,TK108614,71,6.94,CLOTHING,09/10/14,,BROMLEY FS
800053456,*THOMAS KNEALE & CO LTD,TK108614,72,3.47,CLOTHING,09/10/14,,WEMBLEY FS
800053456,*THOMAS KNEALE & CO LTD,TK108614,73,10.89,CLOTHING,09/10/14,,WEMBLEY FS
800053456,*THOMAS KNEALE & CO LTD,TK108614,74,3.47,CLOTHING,09/10/14,,PLAISTOW FIRE STATION
800053456,*THOMAS KNEALE & CO LTD,TK108614,75,1.48,CLOTHING,09/10/14,,PLAISTOW FIRE STATION
800053456,*THOMAS KNEALE & CO LTD,TK108614,76,10.89,CLOTHING,09/10/14,,BROMLEY FS
800053456,*THOMAS KNEALE & CO LTD,TK108614,77,3.47,CLOTHING,09/10/14,,BROMLEY FS
800053456,*THOMAS KNEALE & CO LTD,TK108614,78,1.48,CLOTHING,09/10/14,,BROMLEY FS
800053456,*THOMAS KNEALE & CO LTD,TK108614,79,5.35,CLOTHING,09/10/14,,BROMLEY FS
800053456,*THOMAS KNEALE & CO LTD,TK108614,80,107.96,OFFICE FURNITURE,09/10/14,,POPLAR FS
800053456,*THOMAS KNEALE & CO LTD,TK108614,81,32.67,CLOTHING,09/10/14,,POPLAR FS
800053456,*THOMAS KNEALE & CO LTD,TK108614,82,4.44,CLOTHING,09/10/14,,POPLAR FS
800053456,*THOMAS KNEALE & CO LTD,TK108614,83,10.41,CLOTHING,09/10/14,,POPLAR FS
800053456,*THOMAS KNEALE & CO LTD,TK108614,84,2.84,OFFICE FURNITURE,09/10/14,,POPLAR FS
800053456,*THOMAS KNEALE & CO LTD,TK108614,85,10.89,CLOTHING,09/10/14,,SIDCUP FS
800053456,*THOMAS KNEALE & CO LTD,TK108614,86,10.89,CLOTHING,09/10/14,,LAMBETH RIVER FS
800053456,*THOMAS KNEALE & CO LTD,TK108614,87,4.98,OFFICE FURNITURE,09/10/14,,FOREST HILL FS
800053456,*THOMAS KNEALE & CO LTD,TK108614,88,2.96,CLOTHING,09/10/14,,PLAISTOW FIRE STATION
800053456,*THOMAS KNEALE & CO LTD,TK108614,89,3.47,CLOTHING,09/10/14,,PLAISTOW FIRE STATION
800053456,*THOMAS KNEALE & CO LTD,TK108614,90,3.47,CLOTHING,09/10/14,,HILLINGDON FS
800053456,*THOMAS KNEALE & CO LTD,TK108614,91,1.48,CLOTHING,09/10/14,,HILLINGDON FS
800053456,*THOMAS KNEALE & CO LTD,TK108614,92,10.89,CLOTHING,09/10/14,,HENDON FS
800053456,*THOMAS KNEALE & CO LTD,TK108614,93,0.99,CLOTHING,09/10/14,,HENDON FS
800053456,*THOMAS KNEALE & CO LTD,TK108614,94,67.95,OFFICE FURNITURE,09/10/14,,NORBURY FS
800053456,*THOMAS KNEALE & CO LTD,TK108614,95,10.89,CLOTHING,09/10/14,,LAMBETH FS
800053456,*THOMAS KNEALE & CO LTD,TK108614,96,4.98,OFFICE FURNITURE,09/10/14,,FOREST HILL FS
800053456,*THOMAS KNEALE & CO LTD,TK108614,97,10.89,CLOTHING,09/10/14,,LEE GREEN FS
800053456,*THOMAS KNEALE & CO LTD,TK108614,98,6.94,CLOTHING,09/10/14,,BROMLEY FS
800053456,*THOMAS KNEALE & CO LTD,TK108614,99,2.96,CLOTHING,09/10/14,,BROMLEY FS
800053456,*THOMAS KNEALE & CO LTD,TK108614,100,2.59,OFFICE FURNITURE,09/10/14,,BROMLEY FS
800053456,*THOMAS KNEALE & CO LTD,TK108614,101,10.89,CLOTHING,09/10/14,,POPLAR FS
800053456,*THOMAS KNEALE & CO LTD,TK108614,102,10.89,CLOTHING,09/10/14,,KINGSTON FS
800053456,*THOMAS KNEALE & CO LTD,TK108614,103,0.99,CLOTHING,09/10/14,,KINGSTON FS
800053456,*THOMAS KNEALE & CO LTD,TK108614,104,6.94,CLOTHING,09/10/14,,CROYDON FS
800053456,*THOMAS KNEALE & CO LTD,TK108614,105,10.89,CLOTHING,09/10/14,,BIGGIN HILL FS
800053456,*THOMAS KNEALE & CO LTD,TK108614,106,3.47,CLOTHING,09/10/14,,BIGGIN HILL FS
800053456,*THOMAS KNEALE & CO LTD,TK108614,107,1.48,CLOTHING,09/10/14,,BIGGIN HILL FS
800053456,*THOMAS KNEALE & CO LTD,TK108614,108,10.89,CLOTHING,09/10/14,,BROMLEY FS
800053456,*THOMAS KNEALE & CO LTD,TK108614,109,3.47,CLOTHING,09/10/14,,BROMLEY FS
800053456,*THOMAS KNEALE & CO LTD,TK108614,110,1.48,CLOTHING,09/10/14,,BROMLEY FS
800053456,*THOMAS KNEALE & CO LTD,TK108614,111,5.35,CLOTHING,09/10/14,,BROMLEY FS
800053456,*THOMAS KNEALE & CO LTD,TK108614,112,10.89,CLOTHING,09/10/14,,BROMLEY FS
800053456,*THOMAS KNEALE & CO LTD,TK108614,113,2.96,CLOTHING,09/10/14,,BROMLEY FS
800053456,*THOMAS KNEALE & CO LTD,TK108614,114,6.94,CLOTHING,09/10/14,,BROMLEY FS
800053456,*THOMAS KNEALE & CO LTD,TK108614,115,10.89,CLOTHING,09/10/14,,SHADWELL FS
800053456,*THOMAS KNEALE & CO LTD,TK108614,116,10.89,CLOTHING,09/10/14,,SOUTHALL FS
800053456,*THOMAS KNEALE & CO LTD,TK108614,117,2.84,OFFICE FURNITURE,09/10/14,,KINGSTON FS
800053456,*THOMAS KNEALE & CO LTD,TK108614,118,10.89,CLOTHING,09/10/14,,BETHNAL GREEN FS
800053456,*THOMAS KNEALE & CO LTD,TK108614,119,0.99,CLOTHING,09/10/14,,BETHNAL GREEN FS
800053456,*THOMAS KNEALE & CO LTD,TK108614,120,3.47,CLOTHING,09/10/14,,BETHNAL GREEN FS
800053456,*THOMAS KNEALE & CO LTD,TK108614,121,1.48,CLOTHING,09/10/14,,BETHNAL GREEN FS
800053456,*THOMAS KNEALE & CO LTD,TK108614,122,10.89,CLOTHING,09/10/14,,EAST HAM FIRE STATION
800053456,*THOMAS KNEALE & CO LTD,TK108614,123,0.99,CLOTHING,09/10/14,,EAST HAM FIRE STATION
800053456,*THOMAS KNEALE & CO LTD,TK108614,124,3.47,CLOTHING,09/10/14,,HORNCHURCH FIRE STATION
800053456,*THOMAS KNEALE & CO LTD,TK108614,125,10.89,CLOTHING,09/10/14,,HORNCHURCH FIRE STATION
800053456,*THOMAS KNEALE & CO LTD,TK108614,126,4.98,OFFICE FURNITURE,09/10/14,,FOREST HILL FS
800053456,*THOMAS KNEALE & CO LTD,TK108614,127,10.89,CLOTHING,09/10/14,,HENDON FS
800053456,*THOMAS KNEALE & CO LTD,TK108614,128,0.99,CLOTHING,09/10/14,,HENDON FS
800053456,*THOMAS KNEALE & CO LTD,TK108614,129,10.89,CLOTHING,09/10/14,,WEST NORWOOD FS
071014G,DON'T PANIC PROJECTS,009614,1,320.00,PUBLIC RELATIONS,13/10/14,320.00,COMMS COMMUNICATION SUPPORT
140828,ARTESIAN LAW,0108/1/JCN/OHARA,1,"18,746.55",PROFESSIONAL FEES ENFORCEMENT,13/10/14,"18,746.55",CENTRALLY HELD BUDGETS
081014G,HAYS ACCOUNTANCY & FINANCE====,1004723374,1,696.00,FRS STAFF AGENCY,13/10/14,696.00,WORKS DELIVERY
800053522,AZTEC COMPUTING LTD===========,10459,1,"6,650.00",MAINTENANCE & SUPPORT,13/10/14,"6,650.00",CENTRAL DEPARTMENT ACCOUNT
071014G,*SPRUE SAFETY PRODUCTS LTD====,1065893,1,"1,600.00",FIRE DETECTORS,13/10/14,"1,600.00",SOUTH EAST AREA TEAM
071014G,*SPRUE SAFETY PRODUCTS LTD====,1065894,1,"1,760.00",FIRE DETECTORS,13/10/14,"3,080.00",SOUTH EAST AREA TEAM
071014G,*SPRUE SAFETY PRODUCTS LTD====,1065894,2,"1,320.00",FIRE DETECTORS,13/10/14,,SOUTH EAST AREA TEAM
071014G,*SPRUE SAFETY PRODUCTS LTD====,1065895,1,988.80,FIRE DETECTORS,13/10/14,988.80,CFS - LEWISHAM
071014G,*SPRUE SAFETY PRODUCTS LTD====,1065896,1,988.80,FIRE DETECTORS,13/10/14,988.80,CFS - GREENWICH
071014G,*SPRUE SAFETY PRODUCTS LTD====,1065900,1,"1,730.40",FIRE DETECTORS,13/10/14,"1,730.40",CFS - GREENWICH
071014G,*SPRUE SAFETY PRODUCTS LTD====,1065902,1,988.80,FIRE DETECTORS,13/10/14,988.80,CFS - BEXLEY
071014G,*SPRUE SAFETY PRODUCTS LTD====,1065903,1,988.80,FIRE DETECTORS,13/10/14,988.80,CFS - BEXLEY
071014G,*SPRUE SAFETY PRODUCTS LTD====,1065904,1,988.80,FIRE DETECTORS,13/10/14,988.80,CFS - GREENWICH
071014G,*SPRUE SAFETY PRODUCTS LTD====,1065905,1,988.80,FIRE DETECTORS,13/10/14,988.80,CFS - GREENWICH
071014G,*SPRUE SAFETY PRODUCTS LTD====,1065906,1,988.80,FIRE DETECTORS,13/10/14,988.80,CFS - LEWISHAM
071014G,*SPRUE SAFETY PRODUCTS LTD====,1065908,1,988.80,FIRE DETECTORS,13/10/14,988.80,CFS - SOUTHWARK
071014G,*SPRUE SAFETY PRODUCTS LTD====,1065911,1,"1,730.40",FIRE DETECTORS,13/10/14,"1,730.40",CFS - BROMLEY
071014G,*SPRUE SAFETY PRODUCTS LTD====,1065912,1,"1,730.40",FIRE DETECTORS,13/10/14,"1,730.40",CFS - CROYDON
071014G,*SPRUE SAFETY PRODUCTS LTD====,1065913,1,"1,730.40",FIRE DETECTORS,13/10/14,"1,730.40",CFS - SUTTON
071014G,*SPRUE SAFETY PRODUCTS LTD====,1065914,1,988.80,FIRE DETECTORS,13/10/14,988.80,CFS - SUTTON
071014G,*SPRUE SAFETY PRODUCTS LTD====,1065915,1,988.80,FIRE DETECTORS,13/10/14,988.80,CFS - CROYDON
071014G,*SPRUE SAFETY PRODUCTS LTD====,1065916,1,"1,730.40",FIRE DETECTORS,13/10/14,"1,730.40",CFS - CROYDON
071014G,*SPRUE SAFETY PRODUCTS LTD====,1065917,1,988.80,FIRE DETECTORS,13/10/14,988.80,CFS - CROYDON
071014G,*SPRUE SAFETY PRODUCTS LTD====,1065918,1,"1,730.40",FIRE DETECTORS,13/10/14,"1,730.40",CFS - CROYDON
071014G,*SPRUE SAFETY PRODUCTS LTD====,1065919,1,988.80,FIRE DETECTORS,13/10/14,988.80,CFS - LEWISHAM
071014G,*SPRUE SAFETY PRODUCTS LTD====,1065921,1,"1,730.40",FIRE DETECTORS,13/10/14,"1,730.40",CFS - SOUTHWARK
071014G,*SPRUE SAFETY PRODUCTS LTD====,1065922,1,988.80,FIRE DETECTORS,13/10/14,988.80,CFS - LEWISHAM
071014G,*SPRUE SAFETY PRODUCTS LTD====,1065923,1,"1,730.40",FIRE DETECTORS,13/10/14,"1,730.40",CFS - BROMLEY
071014G,*SPRUE SAFETY PRODUCTS LTD====,1065924,1,"1,730.40",FIRE DETECTORS,13/10/14,"1,730.40",CFS - BEXLEY
081014G,ROYAL COLLEGE OF MUSIC========,11043830,1,370.00,PRESS OFFICE,13/10/14,370.00,COMMS MARKETING
081014G,VISTA LANDSCAPE MANAGEMENT LTD,120189,1,144.25,GROUNDS MAINTENANCE,13/10/14,"2,955.91",ADDINGTON FS
081014G,VISTA LANDSCAPE MANAGEMENT LTD,120189,2,26.71,GROUNDS MAINTENANCE,13/10/14,,BATTERSEA FIRE STATION
081014G,VISTA LANDSCAPE MANAGEMENT LTD,120189,3,29.23,GROUNDS MAINTENANCE,13/10/14,,BECKENHAM FS
081014G,VISTA LANDSCAPE MANAGEMENT LTD,120189,4,32.26,GROUNDS MAINTENANCE,13/10/14,,BEXLEY FS
081014G,VISTA LANDSCAPE MANAGEMENT LTD,120189,5,113.22,GROUNDS MAINTENANCE,13/10/14,,BIGGIN HILL FS
081014G,VISTA LANDSCAPE MANAGEMENT LTD,120189,6,25.42,GROUNDS MAINTENANCE,13/10/14,,BRIXTON FS
081014G,VISTA LANDSCAPE MANAGEMENT LTD,120189,7,33.14,GROUNDS MAINTENANCE,13/10/14,,BROMLEY FS
081014G,VISTA LANDSCAPE MANAGEMENT LTD,120189,8,26.46,GROUNDS MAINTENANCE,13/10/14,,CLAPHAM FS
081014G,VISTA LANDSCAPE MANAGEMENT LTD,120189,9,23.05,GROUNDS MAINTENANCE,13/10/14,,CROYDON FS
081014G,VISTA LANDSCAPE MANAGEMENT LTD,120189,10,23.14,GROUNDS MAINTENANCE,13/10/14,,DEPTFORD FS
081014G,VISTA LANDSCAPE MANAGEMENT LTD,120189,11,26.68,GROUNDS MAINTENANCE,13/10/14,,DOCKHEAD FS
081014G,VISTA LANDSCAPE MANAGEMENT LTD,120189,12,124.13,GROUNDS MAINTENANCE,13/10/14,,EAST GREENWICH FS
081014G,VISTA LANDSCAPE MANAGEMENT LTD,120189,13,22.46,GROUNDS MAINTENANCE,13/10/14,,ELTHAM FS
081014G,VISTA LANDSCAPE MANAGEMENT LTD,120189,14,94.00,GROUNDS MAINTENANCE,13/10/14,,ERITH FS
081014G,VISTA LANDSCAPE MANAGEMENT LTD,120189,15,29.15,GROUNDS MAINTENANCE,13/10/14,,FOREST HILL FS
081014G,VISTA LANDSCAPE MANAGEMENT LTD,120189,16,23.91,GROUNDS MAINTENANCE,13/10/14,,GREENWICH FS
081014G,VISTA LANDSCAPE MANAGEMENT LTD,120189,17,141.74,GROUNDS MAINTENANCE,13/10/14,,KINGSTON FS
081014G,VISTA LANDSCAPE MANAGEMENT LTD,120189,18,24.27,GROUNDS MAINTENANCE,13/10/14,,LEE GREEN FS
081014G,VISTA LANDSCAPE MANAGEMENT LTD,120189,19,25.81,GROUNDS MAINTENANCE,13/10/14,,LEWISHAM FS
081014G,VISTA LANDSCAPE MANAGEMENT LTD,120189,20,19.47,GROUNDS MAINTENANCE,13/10/14,,MITCHAM FIRE STATION
081014G,VISTA LANDSCAPE MANAGEMENT LTD,120189,21,24.94,GROUNDS MAINTENANCE,13/10/14,,NEW CROSS FS
081014G,VISTA LANDSCAPE MANAGEMENT LTD,120189,22,25.79,GROUNDS MAINTENANCE,13/10/14,,NEW MALDEN FS
081014G,VISTA LANDSCAPE MANAGEMENT LTD,120189,23,29.49,GROUNDS MAINTENANCE,13/10/14,,NORBURY FS
081014G,VISTA LANDSCAPE MANAGEMENT LTD,120189,24,23.35,GROUNDS MAINTENANCE,13/10/14,,PECKHAM FS
081014G,VISTA LANDSCAPE MANAGEMENT LTD,120189,25,23.22,GROUNDS MAINTENANCE,13/10/14,,PLUMSTEAD FS
081014G,VISTA LANDSCAPE MANAGEMENT LTD,120189,26,20.92,GROUNDS MAINTENANCE,13/10/14,,PURLEY FS
081014G,VISTA LANDSCAPE MANAGEMENT LTD,120189,27,91.14,GROUNDS MAINTENANCE,13/10/14,,RICHMOND FS
081014G,VISTA LANDSCAPE MANAGEMENT LTD,120189,28,96.04,GROUNDS MAINTENANCE,13/10/14,,SIDCUP FS
081014G,VISTA LANDSCAPE MANAGEMENT LTD,120189,29,24.52,GROUNDS MAINTENANCE,13/10/14,,SURBITON FS
081014G,VISTA LANDSCAPE MANAGEMENT LTD,120189,30,280.25,GROUNDS MAINTENANCE,13/10/14,,SUTTON FS
081014G,VISTA LANDSCAPE MANAGEMENT LTD,120189,31,24.01,GROUNDS MAINTENANCE,13/10/14,,TOOTING FIRE STATION
081014G,VISTA LANDSCAPE MANAGEMENT LTD,120189,32,73.23,GROUNDS MAINTENANCE,13/10/14,,TWICKENHAM FS
081014G,VISTA LANDSCAPE MANAGEMENT LTD,120189,33,22.53,GROUNDS MAINTENANCE,13/10/14,,WALLINGTON FS
081014G,VISTA LANDSCAPE MANAGEMENT LTD,120189,34,24.02,GROUNDS MAINTENANCE,13/10/14,,WANDSWORTH FIRE STATION
081014G,VISTA LANDSCAPE MANAGEMENT LTD,120189,35,23.34,GROUNDS MAINTENANCE,13/10/14,,WEST NORWOOD FS
081014G,VISTA LANDSCAPE MANAGEMENT LTD,120189,36,90.84,GROUNDS MAINTENANCE,13/10/14,,WIMBLEDON FIRE STATION
081014G,VISTA LANDSCAPE MANAGEMENT LTD,120189,37,132.30,GROUNDS MAINTENANCE,13/10/14,,WOODSIDE FS
081014G,VISTA LANDSCAPE MANAGEMENT LTD,120189,38,751.76,GROUNDS MAINTENANCE,13/10/14,,PREMISES HOLDING A/C STC
081014G,VISTA LANDSCAPE MANAGEMENT LTD,120189,39,72.18,GROUNDS MAINTENANCE,13/10/14,,PREMISES HOLDING A/C HQ
081014G,VISTA LANDSCAPE MANAGEMENT LTD,120189,40,64.28,GROUNDS MAINTENANCE,13/10/14,,LAMBETH FS
081014G,VISTA LANDSCAPE MANAGEMENT LTD,120189,41,29.26,GROUNDS MAINTENANCE,13/10/14,,UNION STREET HQ HOLDING A/C
081014G,VISTA LANDSCAPE MANAGEMENT LTD,120190,1,250.00,GROUNDS MAINTENANCE,13/10/14,"2,537.50",ADDINGTON FS
081014G,VISTA LANDSCAPE MANAGEMENT LTD,120190,2,937.50,GROUNDS MAINTENANCE,13/10/14,,ADDINGTON FS
081014G,VISTA LANDSCAPE MANAGEMENT LTD,120190,3,437.50,GROUNDS MAINTENANCE,13/10/14,,ADDINGTON FS
081014G,VISTA LANDSCAPE MANAGEMENT LTD,120190,4,62.50,GROUNDS MAINTENANCE,13/10/14,,ADDINGTON FS
081014G,VISTA LANDSCAPE MANAGEMENT LTD,120190,5,187.50,GROUNDS MAINTENANCE,13/10/14,,ADDINGTON FS
081014G,VISTA LANDSCAPE MANAGEMENT LTD,120190,6,562.50,GROUNDS MAINTENANCE,13/10/14,,ADDINGTON FS
081014G,VISTA LANDSCAPE MANAGEMENT LTD,120190,7,100.00,GROUNDS MAINTENANCE,13/10/14,,ADDINGTON FS
081014G,VISTA LANDSCAPE MANAGEMENT LTD,120193,1,100.00,GROUNDS MAINTENANCE,13/10/14,837.50,WOODSIDE FS
081014G,VISTA LANDSCAPE MANAGEMENT LTD,120193,2,562.50,GROUNDS MAINTENANCE,13/10/14,,WOODSIDE FS
081014G,VISTA LANDSCAPE MANAGEMENT LTD,120193,3,50.00,GROUNDS MAINTENANCE,13/10/14,,WOODSIDE FS
081014G,VISTA LANDSCAPE MANAGEMENT LTD,120193,4,125.00,GROUNDS MAINTENANCE,13/10/14,,WOODSIDE FS
081014G,VISTA LANDSCAPE MANAGEMENT LTD,120194,1,187.50,GROUNDS MAINTENANCE,13/10/14,750.00,NORBURY FS
081014G,VISTA LANDSCAPE MANAGEMENT LTD,120194,2,562.50,GROUNDS MAINTENANCE,13/10/14,,NORBURY FS
071014G,BUSINESS IMAGE LTD============,127714,1,"26,500.00",UNIFORMS - POMS,13/10/14,"26,500.00",
071014G,BUREAU VERITAS HS&E LTD=======,14014853,1,"96,450.00",SCIENTIFIC SERVICES,13/10/14,"96,450.00",CLOTHING/VEHICLE INSURANCE
071014G,SURREY BLIND & CURTAIN CO=====,14341,1,"1,068.00",FIXTURES & FITTINGS,13/10/14,"1,068.00",PREMISES HOLDING A/C STC
081014G,SAFEGUARD PEST CON. & ENV.LTD,17749,1,886.00,STRATEGIC (NON CYCLICAL),13/10/14,886.00,SURBITON FS
081014G,SAFEGUARD PEST CON. & ENV.LTD,17785,1,780.00,PEST CONTROL,13/10/14,780.00,GREENWICH FS
140830,EDF ENERGY===================,1785676853,1,"1,169.45",ELECTRICITY,13/10/14,"1,169.45",DOWGATE FIRE STATION
140830,EDF ENERGY===================,1785907948,1,"2,325.83",ELECTRICITY,13/10/14,"2,325.83",LAMBETH FS
140830,EDF ENERGY===================,1786209549,1,"7,529.01",ELECTRICITY,13/10/14,"7,529.01",UNION STREET HQ HOLDING A/C
140830,EDF ENERGY===================,1786484449,1,159.90,ELECTRICITY,13/10/14,"3,197.97",SOUTHWARK FS
140830,EDF ENERGY===================,1786484449,2,"3,038.07",ELECTRICITY,13/10/14,,PREMISES HOLDING A/C STC
140830,EDF ENERGY===================,1793376246,1,"9,967.90",ELECTRICITY,13/10/14,"9,967.90",UNION STREET HQ HOLDING A/C
140830,EDF ENERGY===================,1813823641,1,"13,800.26",ELECTRICITY,13/10/14,"13,800.26",MERTON CONTROL CENTRE
071014G,CHAIN GANG,20438,1,"1,351.43",POSTAL SERVICES,13/10/14,"2,185.85",CENTRALLY HELD BUDGETS
071014G,CHAIN GANG,20438,2,834.42,POSTAL SERVICES,13/10/14,,CENTRALLY HELD BUDGETS
081014G,GRADIENT CONSULTANTS LLP======,2130,1,55.00,ASBESTOS,13/10/14,"13,777.75",ADDINGTON FS
081014G,GRADIENT CONSULTANTS LLP======,2130,2,300.00,ASBESTOS,13/10/14,,LAMBETH FS
081014G,GRADIENT CONSULTANTS LLP======,2130,3,48.75,ASBESTOS,13/10/14,,BATTERSEA FIRE STATION
081014G,GRADIENT CONSULTANTS LLP======,2130,4,55.00,ASBESTOS,13/10/14,,BETHNAL GREEN FS
081014G,GRADIENT CONSULTANTS LLP======,2130,5,55.00,ASBESTOS,13/10/14,,BIGGIN HILL FS
081014G,GRADIENT CONSULTANTS LLP======,2130,6,300.00,ASBESTOS,13/10/14,,BROMLEY FS
081014G,GRADIENT CONSULTANTS LLP======,2130,7,290.00,ASBESTOS,13/10/14,,CHINGFORD FS
081014G,GRADIENT CONSULTANTS LLP======,2130,8,55.00,ASBESTOS,13/10/14,,CHISWICK FS
081014G,GRADIENT CONSULTANTS LLP======,2130,9,55.00,ASBESTOS,13/10/14,,CHISWICK FS
081014G,GRADIENT CONSULTANTS LLP======,2130,10,55.00,ASBESTOS,13/10/14,,CHISWICK FS
081014G,GRADIENT CONSULTANTS LLP======,2130,11,55.00,ASBESTOS,13/10/14,,CHISWICK FS
081014G,GRADIENT CONSULTANTS LLP======,2130,12,55.00,ASBESTOS,13/10/14,,CHISWICK FS
081014G,GRADIENT CONSULTANTS LLP======,2130,13,62.50,ASBESTOS,13/10/14,,CLAPHAM FS
081014G,GRADIENT CONSULTANTS LLP======,2130,14,187.50,ASBESTOS,13/10/14,,CLAPHAM FS
081014G,GRADIENT CONSULTANTS LLP======,2130,15,152.50,ASBESTOS,13/10/14,,CROYDON FS
081014G,GRADIENT CONSULTANTS LLP======,2130,16,55.00,ASBESTOS,13/10/14,,DAGENHAM FIRE STATION
081014G,GRADIENT CONSULTANTS LLP======,2130,17,48.75,ASBESTOS,13/10/14,,DEPTFORD FS
081014G,GRADIENT CONSULTANTS LLP======,2130,18,48.75,ASBESTOS,13/10/14,,DEPTFORD FS
081014G,GRADIENT CONSULTANTS LLP======,2130,19,152.50,ASBESTOS,13/10/14,,DOWGATE FIRE STATION
081014G,GRADIENT CONSULTANTS LLP======,2130,20,55.00,ASBESTOS,13/10/14,,EALING FS
081014G,GRADIENT CONSULTANTS LLP======,2130,21,55.00,ASBESTOS,13/10/14,,EAST GREENWICH FS
081014G,GRADIENT CONSULTANTS LLP======,2130,22,225.00,ASBESTOS,13/10/14,,EAST HAM FIRE STATION
081014G,GRADIENT CONSULTANTS LLP======,2130,23,187.50,ASBESTOS,13/10/14,,EAST HAM FIRE STATION
081014G,GRADIENT CONSULTANTS LLP======,2130,24,55.00,ASBESTOS,13/10/14,,EDMONTON FIRE STATION
081014G,GRADIENT CONSULTANTS LLP======,2130,25,55.00,ASBESTOS,13/10/14,,EDMONTON FIRE STATION
081014G,GRADIENT CONSULTANTS LLP======,2130,26,55.00,ASBESTOS,13/10/14,,EDMONTON FIRE STATION
081014G,GRADIENT CONSULTANTS LLP======,2130,27,290.00,ASBESTOS,13/10/14,,EDMONTON FIRE STATION
081014G,GRADIENT CONSULTANTS LLP======,2130,28,48.75,ASBESTOS,13/10/14,,EDMONTON FIRE STATION
081014G,GRADIENT CONSULTANTS LLP======,2130,29,195.00,ASBESTOS,13/10/14,,ENFIELD FIRE STATION
081014G,GRADIENT CONSULTANTS LLP======,2130,30,290.00,ASBESTOS,13/10/14,,EUSTON FS
081014G,GRADIENT CONSULTANTS LLP======,2130,31,55.00,ASBESTOS,13/10/14,,FELTHAM FS
081014G,GRADIENT CONSULTANTS LLP======,2130,32,55.00,ASBESTOS,13/10/14,,FINCHLEY FS
081014G,GRADIENT CONSULTANTS LLP======,2130,33,290.00,ASBESTOS,13/10/14,,FOREST HILL FS
081014G,GRADIENT CONSULTANTS LLP======,2130,34,55.00,ASBESTOS,13/10/14,,FULHAM FS
081014G,GRADIENT CONSULTANTS LLP======,2130,35,55.00,ASBESTOS,13/10/14,,FULHAM FS
081014G,GRADIENT CONSULTANTS LLP======,2130,36,290.00,ASBESTOS,13/10/14,,GREENWICH FS
081014G,GRADIENT CONSULTANTS LLP======,2130,37,48.75,ASBESTOS,13/10/14,,GREENWICH FS
081014G,GRADIENT CONSULTANTS LLP======,2130,38,290.00,ASBESTOS,13/10/14,,HAINAULT FIRE STATION
081014G,GRADIENT CONSULTANTS LLP======,2130,39,290.00,ASBESTOS,13/10/14,,HARROW FS
081014G,GRADIENT CONSULTANTS LLP======,2130,40,290.00,ASBESTOS,13/10/14,,HAYES FS
081014G,GRADIENT CONSULTANTS LLP======,2130,41,195.00,ASBESTOS,13/10/14,,HAYES FS
081014G,GRADIENT CONSULTANTS LLP======,2130,42,290.00,ASBESTOS,13/10/14,,HILLINGDON FS
081014G,GRADIENT CONSULTANTS LLP======,2130,43,290.00,ASBESTOS,13/10/14,,HOLLOWAY FIRE STATION
081014G,GRADIENT CONSULTANTS LLP======,2130,44,290.00,ASBESTOS,13/10/14,,HOMERTON FIRE STATION
081014G,GRADIENT CONSULTANTS LLP======,2130,45,55.00,ASBESTOS,13/10/14,,ISLINGTON FIRE STATION
081014G,GRADIENT CONSULTANTS LLP======,2130,46,97.50,ASBESTOS,13/10/14,,ISLINGTON FIRE STATION
081014G,GRADIENT CONSULTANTS LLP======,2130,47,345.00,ASBESTOS,13/10/14,,KINGSTON FS
081014G,GRADIENT CONSULTANTS LLP======,2130,48,290.00,ASBESTOS,13/10/14,,KINGSTON FS
081014G,GRADIENT CONSULTANTS LLP======,2130,49,75.00,ASBESTOS,13/10/14,,MILL HILL FS
081014G,GRADIENT CONSULTANTS LLP======,2130,50,103.75,ASBESTOS,13/10/14,,NEW CROSS FS
081014G,GRADIENT CONSULTANTS LLP======,2130,51,290.00,ASBESTOS,13/10/14,,NEW MALDEN FS
081014G,GRADIENT CONSULTANTS LLP======,2130,52,55.00,ASBESTOS,13/10/14,,NORBURY FS
081014G,GRADIENT CONSULTANTS LLP======,2130,53,55.00,ASBESTOS,13/10/14,,NORBURY FS
081014G,GRADIENT CONSULTANTS LLP======,2130,54,152.50,ASBESTOS,13/10/14,,NORTH KENSINGTON FS
081014G,GRADIENT CONSULTANTS LLP======,2130,55,290.00,ASBESTOS,13/10/14,,NORTHOLT FS
081014G,GRADIENT CONSULTANTS LLP======,2130,56,97.50,ASBESTOS,13/10/14,,PARK ROYAL FS
081014G,GRADIENT CONSULTANTS LLP======,2130,57,345.00,ASBESTOS,13/10/14,,PARK ROYAL FS
081014G,GRADIENT CONSULTANTS LLP======,2130,58,55.00,ASBESTOS,13/10/14,,PLUMSTEAD FS
081014G,GRADIENT CONSULTANTS LLP======,2130,59,55.00,ASBESTOS,13/10/14,,PLUMSTEAD FS
081014G,GRADIENT CONSULTANTS LLP======,2130,60,48.75,ASBESTOS,13/10/14,,POPLAR FS
081014G,GRADIENT CONSULTANTS LLP======,2130,61,62.50,ASBESTOS,13/10/14,,ROMFORD FIRE STATION
081014G,GRADIENT CONSULTANTS LLP======,2130,62,290.00,ASBESTOS,13/10/14,,ROMFORD FIRE STATION
081014G,GRADIENT CONSULTANTS LLP======,2130,63,300.00,ASBESTOS,13/10/14,,ROMFORD FIRE STATION
081014G,GRADIENT CONSULTANTS LLP======,2130,64,55.00,ASBESTOS,13/10/14,,RUISLIP FS
081014G,GRADIENT CONSULTANTS LLP======,2130,65,55.00,ASBESTOS,13/10/14,,RUISLIP FS
081014G,GRADIENT CONSULTANTS LLP======,2130,66,55.00,ASBESTOS,13/10/14,,SHADWELL FS
081014G,GRADIENT CONSULTANTS LLP======,2130,67,55.00,ASBESTOS,13/10/14,,SHOREDITCH FIRE STATION
081014G,GRADIENT CONSULTANTS LLP======,2130,68,55.00,ASBESTOS,13/10/14,,SHOREDITCH FIRE STATION
081014G,GRADIENT CONSULTANTS LLP======,2130,69,48.75,ASBESTOS,13/10/14,,SHOREDITCH FIRE STATION
081014G,GRADIENT CONSULTANTS LLP======,2130,70,55.00,ASBESTOS,13/10/14,,SOHO FS
081014G,GRADIENT CONSULTANTS LLP======,2130,71,290.00,ASBESTOS,13/10/14,,SOUTHGATE FIRE STATION
081014G,GRADIENT CONSULTANTS LLP======,2130,72,55.00,ASBESTOS,13/10/14,,SOUTHALL FS
081014G,GRADIENT CONSULTANTS LLP======,2130,73,290.00,ASBESTOS,13/10/14,,SOUTHALL FS
081014G,GRADIENT CONSULTANTS LLP======,2130,74,48.75,ASBESTOS,13/10/14,,SOUTHALL FS
081014G,GRADIENT CONSULTANTS LLP======,2130,75,55.00,ASBESTOS,13/10/14,,SOUTHWARK FS
081014G,GRADIENT CONSULTANTS LLP======,2130,76,290.00,ASBESTOS,13/10/14,,STANMORE FS
081014G,GRADIENT CONSULTANTS LLP======,2130,77,290.00,ASBESTOS,13/10/14,,STOKE NEWINGTON FIRE STATION
081014G,GRADIENT CONSULTANTS LLP======,2130,78,195.25,ASBESTOS,13/10/14,,STOKE NEWINGTON FIRE STATION
081014G,GRADIENT CONSULTANTS LLP======,2130,79,48.75,ASBESTOS,13/10/14,,SURBITON FS
081014G,GRADIENT CONSULTANTS LLP======,2130,80,55.00,ASBESTOS,13/10/14,,SUTTON FS
081014G,GRADIENT CONSULTANTS LLP======,2130,81,48.75,ASBESTOS,13/10/14,,TOOTING FIRE STATION
081014G,GRADIENT CONSULTANTS LLP======,2130,82,195.00,ASBESTOS,13/10/14,,TOTTENHAM FIRE STATION
081014G,GRADIENT CONSULTANTS LLP======,2130,83,195.00,ASBESTOS,13/10/14,,TOTTENHAM FIRE STATION
081014G,GRADIENT CONSULTANTS LLP======,2130,84,55.00,ASBESTOS,13/10/14,,TWICKENHAM FS
081014G,GRADIENT CONSULTANTS LLP======,2130,85,125.00,ASBESTOS,13/10/14,,TWICKENHAM FS
081014G,GRADIENT CONSULTANTS LLP======,2130,86,48.75,ASBESTOS,13/10/14,,TWICKENHAM FS
081014G,GRADIENT CONSULTANTS LLP======,2130,87,290.00,ASBESTOS,13/10/14,,WEMBLEY FS
081014G,GRADIENT CONSULTANTS LLP======,2130,88,62.50,ASBESTOS,13/10/14,,WENNINGTON FIRE STATION
081014G,GRADIENT CONSULTANTS LLP======,2130,89,55.00,ASBESTOS,13/10/14,,WEST HAMPSTEAD FS
081014G,GRADIENT CONSULTANTS LLP======,2130,90,110.00,ASBESTOS,13/10/14,,WEST HAMPSTEAD FS
081014G,GRADIENT CONSULTANTS LLP======,2130,91,62.50,ASBESTOS,13/10/14,,WHITECHAPEL FS
081014G,GRADIENT CONSULTANTS LLP======,2130,92,55.00,ASBESTOS,13/10/14,,WILLESDEN FS
081014G,GRADIENT CONSULTANTS LLP======,2130,93,55.00,ASBESTOS,13/10/14,,WILLESDEN FS
081014G,GRADIENT CONSULTANTS LLP======,2130,94,55.00,ASBESTOS,13/10/14,,WIMBLEDON FIRE STATION
081014G,GRADIENT CONSULTANTS LLP======,2130,95,55.00,ASBESTOS,13/10/14,,WOODSIDE FS
081014G,GRADIENT CONSULTANTS LLP======,2130,96,79.00,ASBESTOS,13/10/14,,EUSTON FS
081014G,GRADIENT CONSULTANTS LLP======,2130,97,79.00,ASBESTOS,13/10/14,,SHOREDITCH FIRE STATION
081014G,GRADIENT CONSULTANTS LLP======,2130,98,79.00,ASBESTOS,13/10/14,,WHITECHAPEL FS
081014G,GRADIENT CONSULTANTS LLP======,2130,99,79.00,ASBESTOS,13/10/14,,DOCKHEAD FS
081014G,GRADIENT CONSULTANTS LLP======,2130,100,79.00,ASBESTOS,13/10/14,,WEMBLEY FS
081014G,GRADIENT CONSULTANTS LLP======,2130,101,79.00,ASBESTOS,13/10/14,,CHELSEA FS
081014G,GRADIENT CONSULTANTS LLP======,2130,102,79.00,ASBESTOS,13/10/14,,HOMERTON FIRE STATION
081014G,GRADIENT CONSULTANTS LLP======,2130,103,79.00,ASBESTOS,13/10/14,,STRATFORD FIRE STATION
081014G,GRADIENT CONSULTANTS LLP======,2130,104,79.00,ASBESTOS,13/10/14,,STOKE NEWINGTON FIRE STATION
081014G,GRADIENT CONSULTANTS LLP======,2130,105,79.00,ASBESTOS,13/10/14,,BARNET FS
081014G,GRADIENT CONSULTANTS LLP======,2130,106,80.00,ASBESTOS,13/10/14,,ORPINGTON FS
140828,MISS SARAH LE FEVRE===========,232683,1,921.67,PROFESSIONAL FEES ENFORCEMENT,13/10/14,921.67,CENTRALLY HELD BUDGETS
081014G,B NOKES CONTRACTS LTD,2401,1,"3,059.00",DEVELOPMENT  EXPENSES-CONTRACT,13/10/14,"4,779.00",
081014G,B NOKES CONTRACTS LTD,2401,2,"1,720.00",DEVELOPMENT  EXPENSES-CONTRACT,13/10/14,,
081014G,B NOKES CONTRACTS LTD,2414,1,382.50,STRATEGIC (NON CYCLICAL),13/10/14,382.50,SIDCUP FS
081014G,B NOKES CONTRACTS LTD,2415,1,"8,708.50",STRATEGIC (NON CYCLICAL),13/10/14,"8,708.50",CROYDON FS
081014G,B NOKES CONTRACTS LTD,2417,1,256.00,STRATEGIC (NON CYCLICAL),13/10/14,256.00,CROYDON FS
081014G,B NOKES CONTRACTS LTD,2418,1,"1,561.50",STRATEGIC (NON CYCLICAL),13/10/14,"1,561.50",CHINGFORD FS
081014G,B NOKES CONTRACTS LTD,2419,1,"1,236.50",STRATEGIC (NON CYCLICAL),13/10/14,"1,236.50",CHINGFORD FS
081014G,B NOKES CONTRACTS LTD,2420,1,"1,782.00",DEVELOPMENT  EXPENSES-CONTRACT,13/10/14,"1,782.00",
081014G,B NOKES CONTRACTS LTD,2421,1,"1,800.00",STRATEGIC (NON CYCLICAL),13/10/14,"1,800.00",BARKING FIRE STATION
081014G,B NOKES CONTRACTS LTD,2422,1,544.00,DEVELOPMENT  EXPENSES-CONTRACT,13/10/14,544.00,
081014G,B NOKES CONTRACTS LTD,2423,1,817.90,STRATEGIC (NON CYCLICAL),13/10/14,817.90,HOMERTON FIRE STATION
081014G,B NOKES CONTRACTS LTD,2424,1,"2,121.50",STRATEGIC (NON CYCLICAL),13/10/14,"2,121.50",HAROLD HILL FIRE STATION
081014G,B NOKES CONTRACTS LTD,2425,1,"5,992.75",STRATEGIC (NON CYCLICAL),13/10/14,"5,992.75",POPLAR FS
140828,MBL SEMINARS=================,255844,1,500.00,PROFESSIONAL DEVELOPMENT,13/10/14,500.00,LEGAL SERVICES
140830,THAMES WATER UTILITIES LTD====,25599-01112I,1,370.60,WATER & SEWERAGE RATES,13/10/14,370.60,LEYTONSTONE FS
140830,THAMES WATER UTILITIES LTD====,25747-00531I,1,826.66,WATER & SEWERAGE RATES,13/10/14,826.66,DOCKHEAD FS
011014G,RS COMPONENTS LTD=============,277335190,1,55.44,RADIO,13/10/14,415.79,I&CT OPERATIONAL SUPPORT
011014G,RS COMPONENTS LTD=============,277335190,2,112.25,RADIO,13/10/14,,I&CT OPERATIONAL SUPPORT
011014G,RS COMPONENTS LTD=============,277335190,3,50.10,RADIO,13/10/14,,I&CT OPERATIONAL SUPPORT
011014G,RS COMPONENTS LTD=============,277335190,4,198.00,RADIO,13/10/14,,I&CT OPERATIONAL SUPPORT
300914G,RS COMPONENTS LTD=============,277337172,1,659.10,ACQUISITIONS,13/10/14,840.28,I&CT CONTRACT & ASSET MANGMNT
300914G,RS COMPONENTS LTD=============,277337172,2,103.10,ACQUISITIONS,13/10/14,,I&CT CONTRACT & ASSET MANGMNT
300914G,RS COMPONENTS LTD=============,277337172,3,17.30,ACQUISITIONS,13/10/14,,I&CT CONTRACT & ASSET MANGMNT
300914G,RS COMPONENTS LTD=============,277337172,4,60.78,ACQUISITIONS,13/10/14,,I&CT CONTRACT & ASSET MANGMNT
071014G,CARPETS & FLOOR COVERS DIRECT=,3138*,1,777.48,FIXTURES & FITTINGS,13/10/14,"2,467.07",EUSTON FS
071014G,CARPETS & FLOOR COVERS DIRECT=,3138*,2,"1,689.59",FIXTURES & FITTINGS,13/10/14,,EUSTON FS
300914G,GEORGE JONES & SON LTD========,324,1,573.84,STRATEGIC (NON CYCLICAL),13/10/14,573.84,ADDINGTON FS
071014G,SAFEQUIP LTD==================,32675,1,15.00,OPERATIONAL EQUIP-PURCHASE,13/10/14,582.95,PROTECTIVE EQUIPMENT GROUP
071014G,SAFEQUIP LTD==================,32675,2,567.95,OPERATIONAL EQUIP-PURCHASE,13/10/14,,PROTECTIVE EQUIPMENT GROUP
081014G,EVOLUTION ENVIRONMENTAL LTD,3324,1,175.00,ASBESTOS,13/10/14,650.00,BATTERSEA FIRE STATION
081014G,EVOLUTION ENVIRONMENTAL LTD,3324,2,300.00,ASBESTOS,13/10/14,,SURBITON FS
081014G,EVOLUTION ENVIRONMENTAL LTD,3324,3,175.00,ASBESTOS,13/10/14,,TOOTING FIRE STATION
081014G,STEPHEN AUSTIN & SONS LTD=====,34349,1,267.00,PRINTING,13/10/14,267.00,CENTRALLY HELD BUDGETS
071014G,PLASTOR=======================,37532,1,872.40,GENERAL CONSUMABLES,13/10/14,872.40,
061014G,COMPUTACENTRE================,3880250384,1,"2,126.66",STRATEGIC (NON CYCLICAL),13/10/14,"2,126.66",WEST NORWOOD FS
061014G,COMPUTACENTRE================,3880266705,1,"8,061.25",ACQUISITIONS,13/10/14,"8,061.25",CENTRAL DEPARTMENT ACCOUNT
140828,MISS ATHENA MARKIDES,419303,1,350.00,COUNSELS FEES,13/10/14,350.00,CENTRALLY HELD BUDGETS
081014G,FOCUS & VISION TECHNOLOGY LTD,42493,1,914.00,MEDICAL EXPENSES CONTRACT,13/10/14,914.00,HR CENTRALLY HELD BUDGETS
081014G,PERFORMING RIGHT SOCIETY LTD==,4329731,1,"30,245.12",LICENCES,13/10/14,"30,245.12",BUDGET HOLDING A/C - SOUTHERN
071014G,FIRMSTEP====================,4450,1,"4,640.43",MAINTENANCE & SUPPORT,13/10/14,"4,640.43",I&CT BUSINESS ENGAGEMENT
071014G,SPORTSAFE UK LTD==============,462517,1,295.00,GYM EQUIPMENT,13/10/14,295.00,TWICKENHAM FS
081014G,SPORTSAFE UK LTD==============,462600,1,395.00,GYM EQUIPMENT,13/10/14,"1,035.11",WEMBLEY FS
081014G,SPORTSAFE UK LTD==============,462600,2,490.00,GYM EQUIPMENT,13/10/14,,WEMBLEY FS
081014G,SPORTSAFE UK LTD==============,462600,3,12.11,GYM EQUIPMENT,13/10/14,,WEMBLEY FS
081014G,SPORTSAFE UK LTD==============,462600,4,138.00,GYM EQUIPMENT,13/10/14,,WEMBLEY FS
071014G,MARTIN LAVELL LTD=============,51065,1,360.30,BOOKS & JOURNALS,13/10/14,360.30,COMMS MEDIA & INTERNAL COMMS
140830,SUTTON & EAST SURREY WATER PLC,5142858,1,415.53,WATER & SEWERAGE RATES,13/10/14,415.53,PURLEY FS
081014G,CORE SURVEYSLTD===============,5793,1,650.00,DEVELOPMENT  EXPENSES-CONTRACT,13/10/14,650.00,
081014G,CORE SURVEYSLTD===============,5800,1,663.00,DEVELOPMENT  EXPENSES-CONTRACT,13/10/14,663.00,
081014G,CORE SURVEYSLTD===============,5806,1,300.00,DEVELOPMENT  EXPENSES-CONTRACT,13/10/14,300.00,
081014G,URS SCOTT WILSON LIMITED,6019927,1,"4,839.60",PROF FEES-MISCELLANEOUS,13/10/14,"4,839.60",
140830,THAMES WATER UTILITIES LTD====,61085-96798<,1,255.06,WATER & SEWERAGE RATES,13/10/14,255.06,BROMLEY FS
081014G,GAS & AIR SERVICES (UK)=======,6495,1,"1,321.42",REPAIR & MAINTENANCE,13/10/14,"1,321.42",PROTECTIVE EQUIPMENT GROUP
140828,TRAUMA CLINIC LTD.,7281,1,"3,000.00",DOCTORS/MEDICAL FEES,13/10/14,"3,000.00",CENTRALLY HELD BUDGETS
081014G,TWO SERVICES LTD==============,78750,1,713.00,CATERING EQUIPMENT,13/10/14,713.00,CROYDON FS
140828,L FREEDMAN LIMITED,8727/FC,1,600.00,DOCTORS/MEDICAL FEES,13/10/14,600.00,CENTRALLY HELD BUDGETS
140830,SUTTON & EAST SURREY WATER PLC,873190-4T,1,680.83,WATER & SEWERAGE RATES,13/10/14,680.83,WALLINGTON FS
140830,THAMES WATER UTILITIES LTD====,8800781424I,1,324.80,WATER & SEWERAGE RATES,13/10/14,324.80,WALTHAMSTOW FS
300914G,DRAEGER SAFETY UK LIMITED=====,90457804,1,"6,986.00",PROTECTIVE EQUIPT - PARTS,13/10/14,"6,986.00",
300914G,DRAEGER SAFETY UK LIMITED=====,90457805,1,55.55,PROTECTIVE EQUIPT - PARTS,13/10/14,"3,613.44",
300914G,DRAEGER SAFETY UK LIMITED=====,90457805,2,432.60,PROTECTIVE EQUIPT - PARTS,13/10/14,,
300914G,DRAEGER SAFETY UK LIMITED=====,90457805,3,360.50,PROTECTIVE EQUIPT - PARTS,13/10/14,,
300914G,DRAEGER SAFETY UK LIMITED=====,90457805,4,851.10,PROTECTIVE EQUIPT - PARTS,13/10/14,,
300914G,DRAEGER SAFETY UK LIMITED=====,90457805,5,213.90,PROTECTIVE EQUIPT - PARTS,13/10/14,,
300914G,DRAEGER SAFETY UK LIMITED=====,90457805,6,"1,423.25",PROTECTIVE EQUIPT - PARTS,13/10/14,,
300914G,DRAEGER SAFETY UK LIMITED=====,90457805,7,226.00,PROTECTIVE EQUIPT - PARTS,13/10/14,,
300914G,DRAEGER SAFETY UK LIMITED=====,90457805,8,50.54,PROTECTIVE EQUIPT - PARTS,13/10/14,,
300914G,DRAEGER SAFETY UK LIMITED=====,90457847,1,55.55,PROTECTIVE EQUIPT - PARTS,13/10/14,"1,126.05",
300914G,DRAEGER SAFETY UK LIMITED=====,90457847,2,567.40,PROTECTIVE EQUIPT - PARTS,13/10/14,,
300914G,DRAEGER SAFETY UK LIMITED=====,90457847,3,142.60,PROTECTIVE EQUIPT - PARTS,13/10/14,,
300914G,DRAEGER SAFETY UK LIMITED=====,90457847,4,360.50,PROTECTIVE EQUIPT - PARTS,13/10/14,,
071014G,BSI MANAGEMENT SYSTEMS,94126996/1000,1,"1,616.00",SUBSCRIPTIONS,13/10/14,"4,040.00",SUSTAINABLE DEVELOPMENT
071014G,BSI MANAGEMENT SYSTEMS,94126996/1000,2,"2,424.00",SUBSCRIPTIONS,13/10/14,,SUSTAINABLE DEVELOPMENT
140830,THAMES WATER UTILITIES LTD====,9870962314<,1,370.05,WATER & SEWERAGE RATES,13/10/14,370.05,STRATFORD FIRE STATION
081014G,KIER BUILDING SERV ENGINEERS==,F00050956,1,"1,693.04",STRATEGIC (NON CYCLICAL),13/10/14,"1,693.04",UNION STREET HQ HOLDING A/C
081014G,KIER BUILDING SERV ENGINEERS==,F00050957,1,"2,271.64",STRATEGIC (NON CYCLICAL),13/10/14,"2,271.64",UNION STREET HQ HOLDING A/C
071014G,FOOTPRINT UNIFORMS============,F4805,1,87.70,CLOTHING,13/10/14,306.95,CFS - HACKNEY
071014G,FOOTPRINT UNIFORMS============,F4805,2,219.25,CLOTHING,13/10/14,,CFS - HACKNEY
300914G,HALL FUELS,I07050337,1,"3,145.80",FUEL,13/10/14,"3,145.80",SOHO FS
250914C,ROCOM,I2530848,1,708.80,ACQUISITIONS,13/10/14,795.70,I&CT CONTRACT & ASSET MANGMNT
250914C,ROCOM,I2530848,2,76.95,ACQUISITIONS,13/10/14,,I&CT CONTRACT & ASSET MANGMNT
250914C,ROCOM,I2530848,3,9.95,ACQUISITIONS,13/10/14,,I&CT CONTRACT & ASSET MANGMNT
081014G,QA LIMITED,ICE308082,1,"1,182.50",PROFESSIONAL DEVELOPMENT,13/10/14,"1,182.50",INFORMATION MNGT & PERFORMANCE
081014G,QA LIMITED,ICE308083,1,740.00,PROFESSIONAL DEVELOPMENT,13/10/14,740.00,INFORMATION MNGT & PERFORMANCE
081014G,QA LIMITED,ICE308084,1,"1,147.50",PROFESSIONAL DEVELOPMENT,13/10/14,"1,147.50",INFORMATION MNGT & PERFORMANCE
071014G,CAPITA BUSINESS SERVICES LTD==,INV-20924,1,350.00,PROFESSIONAL DEVELOPMENT,13/10/14,350.00,INFORMATION MNGT & PERFORMANCE
061014G,KCOM GROUP====================,INV0236589,1,"3,290.00",STRATEGIC (NON CYCLICAL),13/10/14,"3,290.00",TOTTENHAM FIRE STATION
290914G,DMM INTERNATIONAL,INV23044,1,375.00,OPERATIONAL EQUIP-PURCHASE,13/10/14,423.50,OPERATIONAL TACTICS
290914G,DMM INTERNATIONAL,INV23044,2,48.50,OPERATIONAL EQUIP-PURCHASE,13/10/14,,OPERATIONAL TACTICS
071014G,ETC VENUES LTD================,PH-89954,1,975.00,PROFESSIONAL DEVELOPMENT,13/10/14,975.00,SCHOOLS TEAM
081014G,PILLINGER CONTROLS LTD========,PI73191,1,329.00,STRATEGIC (NON CYCLICAL),13/10/14,329.00,WANDSWORTH FIRE STATION
081014G,PILLINGER CONTROLS LTD========,PI73192,1,525.00,STRATEGIC (NON CYCLICAL),13/10/14,525.00,WANDSWORTH FIRE STATION
902457,THERMO FISHER SCIENTIFIC MESST,RSI 488936,1,370.00,PROTECTIVE EQUIPT - PARTS,13/10/14,427.00,
902457,THERMO FISHER SCIENTIFIC MESST,RSI 488936,2,57.00,PROTECTIVE EQUIPT - PARTS,13/10/14,,
141014E,APPLUS LLT,00305,1,"3,750.00",GENERAL,15/10/14,"3,750.00",CONTRACTS MANAGEMENT GROUP
101014G,*KEELA INTERNATIONAL LTD======,0000071297,1,586.34,CLOTHING,16/10/14,617.20,OPERATIONAL TACTICS
101014G,*KEELA INTERNATIONAL LTD======,0000071297,2,30.86,CLOTHING,16/10/14,,OPERATIONAL TACTICS
131014C,MOOLANDS LTD,00001133,1,890.00,STRATEGIC (NON CYCLICAL),16/10/14,890.00,SUTTON FS
071014G,SYNERGY HEALTH LAB SERVICE LTD,0000120887,1,130.00,DRUG & ALCOHOL TESTS,16/10/14,520.00,HR CENTRALLY HELD BUDGETS
071014G,SYNERGY HEALTH LAB SERVICE LTD,0000120887,2,130.00,DRUG & ALCOHOL TESTS,16/10/14,,HR CENTRALLY HELD BUDGETS
071014G,SYNERGY HEALTH LAB SERVICE LTD,0000120887,3,130.00,DRUG & ALCOHOL TESTS,16/10/14,,HR CENTRALLY HELD BUDGETS
071014G,SYNERGY HEALTH LAB SERVICE LTD,0000120887,4,130.00,DRUG & ALCOHOL TESTS,16/10/14,,HR CENTRALLY HELD BUDGETS
081014G,BTC GROUP=====================,0000272986,1,"4,538.53",GENERAL CONSUMABLES,16/10/14,"4,538.53",
131014C,*PREMIER VANGUARD LTD,00706837,1,26.60,STATIONERY CONSUMABLES,16/10/14,293.04,ERITH FS
131014C,*PREMIER VANGUARD LTD,00706837,2,133.00,STATIONERY CONSUMABLES,16/10/14,,WALTHAMSTOW FS
131014C,*PREMIER VANGUARD LTD,00706837,3,33.36,STATIONERY CONSUMABLES,16/10/14,,DAGENHAM FIRE STATION
131014C,*PREMIER VANGUARD LTD,00706837,4,66.72,STATIONERY CONSUMABLES,16/10/14,,HESTON FS
131014C,*PREMIER VANGUARD LTD,00706837,5,33.36,STATIONERY CONSUMABLES,16/10/14,,HESTON FS
140833,THAMES WATER UTILITIES LTD====,04230-30577I,1,"1,729.02",WATER & SEWERAGE RATES,16/10/14,"1,729.02",WEST HAMPSTEAD FS
101014G,L B OF SOUTHWARK============,1000733204 1,1,"24,875.00",COMMUNITY RELATIONS,16/10/14,"24,875.00",COMMUNITY RISK REDUCTION
091014G,*SPRUE SAFETY PRODUCTS LTD====,1065562,1,"2,966.40",FIRE DETECTORS,16/10/14,"2,966.40",CFS - BARKING & DAGENHAM
091014G,*SPRUE SAFETY PRODUCTS LTD====,1065567,1,"1,483.20",FIRE DETECTORS,16/10/14,"1,483.20",CFS - BARKING & DAGENHAM
091014G,*SPRUE SAFETY PRODUCTS LTD====,1065568,1,"1,236.00",FIRE DETECTORS,16/10/14,"1,236.00",CFS - HAVERING
091014G,*SPRUE SAFETY PRODUCTS LTD====,1065571,1,"1,483.20",FIRE DETECTORS,16/10/14,"1,483.20",CFS - WALTHAM FOREST
091014G,*SPRUE SAFETY PRODUCTS LTD====,1065575,1,741.60,FIRE DETECTORS,16/10/14,741.60,CFS - WALTHAM FOREST
101014G,*SPRUE SAFETY PRODUCTS LTD====,1065897,1,"1,730.40",FIRE DETECTORS,16/10/14,"1,730.40",CFS - GREENWICH
101014G,*SPRUE SAFETY PRODUCTS LTD====,1065910,1,988.80,FIRE DETECTORS,16/10/14,988.80,CFS - SOUTHWARK
101014G,*SPRUE SAFETY PRODUCTS LTD====,1065925,1,988.80,FIRE DETECTORS,16/10/14,988.80,CFS - BROMLEY
101014G,SILVERSANDS LIMITED===========,121298,1,475.00,PURCHASES-SOFTWARE,16/10/14,"2,375.00",
101014G,SILVERSANDS LIMITED===========,121298,2,950.00,PURCHASES-SOFTWARE,16/10/14,,
101014G,SILVERSANDS LIMITED===========,121298,3,950.00,PURCHASES-SOFTWARE,16/10/14,,
131014C,SURREY BLIND & CURTAIN CO=====,14321,1,"1,104.00",FIXTURES & FITTINGS,16/10/14,"1,104.00",BARKING FIRE STATION
101014G,GP CONTRACTS==================,15117,1,520.00,OFFICE FURNITURE,16/10/14,"1,560.00",SOHO FS
101014G,GP CONTRACTS==================,15117,2,520.00,OFFICE FURNITURE,16/10/14,,SOHO FS
101014G,GP CONTRACTS==================,15117,3,520.00,OFFICE FURNITURE,16/10/14,,SOHO FS
131014C,DRON & WRIGHT=================,17276,1,99.00,PROFESSIONAL SERVICES,16/10/14,"33,758.43",ENERGY & COMPLIANCE
131014C,DRON & WRIGHT=================,17276,2,"4,270.16",PROFESSIONAL SERVICES,16/10/14,,ENERGY & COMPLIANCE
131014C,DRON & WRIGHT=================,17276,3,900.00,PROFESSIONAL SERVICES,16/10/14,,ENERGY & COMPLIANCE
131014C,DRON & WRIGHT=================,17276,4,215.00,PROFESSIONAL SERVICES,16/10/14,,ENERGY & COMPLIANCE
131014C,DRON & WRIGHT=================,17276,5,522.50,PROFESSIONAL SERVICES,16/10/14,,ENERGY & COMPLIANCE
131014C,DRON & WRIGHT=================,17276,6,883.50,DISPOSAL COSTS-ESTATES AGENTS,16/10/14,,
131014C,DRON & WRIGHT=================,17276,7,"1,026.50",DISPOSAL COSTS-ESTATES AGENTS,16/10/14,,
131014C,DRON & WRIGHT=================,17276,8,"3,595.50",DISPOSAL COSTS-ESTATES AGENTS,16/10/14,,
131014C,DRON & WRIGHT=================,17276,9,"1,540.50",DISPOSAL COSTS-ESTATES AGENTS,16/10/14,,
131014C,DRON & WRIGHT=================,17276,10,"1,384.00",DISPOSAL COSTS-ESTATES AGENTS,16/10/14,,
131014C,DRON & WRIGHT=================,17276,11,"1,219.40",DISPOSAL COSTS-ESTATES AGENTS,16/10/14,,
131014C,DRON & WRIGHT=================,17276,12,"1,295.00",DISPOSAL COSTS-ESTATES AGENTS,16/10/14,,
131014C,DRON & WRIGHT=================,17276,13,"1,678.00",DISPOSAL COSTS-ESTATES AGENTS,16/10/14,,
131014C,DRON & WRIGHT=================,17276,14,"1,088.00",DISPOSAL COSTS-ESTATES AGENTS,16/10/14,,
131014C,DRON & WRIGHT=================,17276,15,"1,036.50",DISPOSAL COSTS-ESTATES AGENTS,16/10/14,,
131014C,DRON & WRIGHT=================,17276,16,"5,227.85",PROFESSIONAL SERVICES,16/10/14,,ENERGY & COMPLIANCE
131014C,DRON & WRIGHT=================,17276,17,440.00,PROFESSIONAL SERVICES,16/10/14,,ENERGY & COMPLIANCE
131014C,DRON & WRIGHT=================,17276,18,416.67,PROFESSIONAL SERVICES,16/10/14,,ENERGY & COMPLIANCE
131014C,DRON & WRIGHT=================,17276,19,"6,214.85",DISPOSAL COSTS-ESTATES AGENTS,16/10/14,,
131014C,DRON & WRIGHT=================,17276,20,353.00,PROF FEES-MISCELLANEOUS,16/10/14,,
131014C,DRON & WRIGHT=================,17276,21,352.50,PROF FEES-MISCELLANEOUS,16/10/14,,
131014C,SCORPION EVENT SOLUTIONS LTD,1767-15160914,1,424.00,CONSULTANTS,16/10/14,424.00,NATL OPERATIONAL GUIDANCE PROJ
091014G,BRIGHT INTERACTIVE LTD========,188/0141/1,1,450.00,CONSULTANTS,16/10/14,450.00,INFORMATION MNGT & PERFORMANCE
131014C,ENERGY AUDITING AGENCY LTD====,20142177,1,326.00,PROFESSIONAL SERVICES,16/10/14,326.00,ENERGY & COMPLIANCE
131014C,ENERGY AUDITING AGENCY LTD====,20142281,1,750.00,CONSULTANTS,16/10/14,750.00,ENERGY & COMPLIANCE
131014C,ENERGY AUDITING AGENCY LTD====,20142283,1,750.00,CONSULTANTS,16/10/14,950.00,ENERGY & COMPLIANCE
131014C,ENERGY AUDITING AGENCY LTD====,20142283,2,200.00,CONSULTANTS,16/10/14,,ENERGY & COMPLIANCE
140831,AFFINITY WATER,20949794P,1,585.19,WATER & SEWERAGE RATES,16/10/14,585.19,HILLINGDON FS
131014C,GRADIENT CONSULTANTS LLP======,2143,1,350.00,ASBESTOS,16/10/14,"2,505.00",BOW FS
131014C,GRADIENT CONSULTANTS LLP======,2143,2,350.00,ASBESTOS,16/10/14,,ELTHAM FS
131014C,GRADIENT CONSULTANTS LLP======,2143,3,55.00,ASBESTOS,16/10/14,,LEYTONSTONE FS
131014C,GRADIENT CONSULTANTS LLP======,2143,4,350.00,ASBESTOS,16/10/14,,NEW CROSS FS
131014C,GRADIENT CONSULTANTS LLP======,2143,5,350.00,ASBESTOS,16/10/14,,SOHO FS
131014C,GRADIENT CONSULTANTS LLP======,2143,6,350.00,ASBESTOS,16/10/14,,STOKE NEWINGTON FIRE STATION
131014C,GRADIENT CONSULTANTS LLP======,2143,7,350.00,ASBESTOS,16/10/14,,STRATFORD FIRE STATION
131014C,GRADIENT CONSULTANTS LLP======,2143,8,350.00,ASBESTOS,16/10/14,,WESTMINSTER FS
131014C,B NOKES CONTRACTS LTD,2398,1,420.00,TACTICAL DAY TO DAY,16/10/14,420.00,UNION STREET HQ HOLDING A/C
131014C,B NOKES CONTRACTS LTD,2416,1,"2,030.00",STRATEGIC (NON CYCLICAL),16/10/14,"2,030.00",BEXLEY FS
290914G,FIRE SERVICES YOUTH TRAIN.ASS.,2478,1,"1,155.00",GENERAL,16/10/14,"1,155.00",HOLDING ACCOUNT - CADET
300914G,FIRE SERVICES YOUTH TRAIN.ASS.,2479,1,"2,002.00",GENERAL,16/10/14,"2,002.00",HOLDING ACCOUNT - CADET
071014G,REDTRONIC LTD=================,27179,1,30.00,OPERATIONAL EQUIP-PURCHASE,16/10/14,525.00,LEASE CARS ADMINISTRATION
071014G,REDTRONIC LTD=================,27179,2,495.00,OPERATIONAL EQUIP-PURCHASE,16/10/14,,LEASE CARS ADMINISTRATION
101014G,STORM TECHNOLOGIES============,292194,1,700.00,DEVELOPMT  EXP-COMPUTER CABLES,16/10/14,"11,725.00",
101014G,STORM TECHNOLOGIES============,292194,2,"1,750.00",DEVELOPMT  EXP-COMPUTER CABLES,16/10/14,,
101014G,STORM TECHNOLOGIES============,292194,3,"1,050.00",DEVELOPMT  EXP-COMPUTER CABLES,16/10/14,,
101014G,STORM TECHNOLOGIES============,292194,4,"2,625.00",DEVELOPMT  EXP-COMPUTER CABLES,16/10/14,,
101014G,STORM TECHNOLOGIES============,292194,5,"1,400.00",DEVELOPMT  EXP-COMPUTER CABLES,16/10/14,,
101014G,STORM TECHNOLOGIES============,292194,6,"3,500.00",DEVELOPMT  EXP-COMPUTER CABLES,16/10/14,,
101014G,STORM TECHNOLOGIES============,292194,7,700.00,DEVELOPMT  EXP-COMPUTER CABLES,16/10/14,,
101014G,TEAM PURPLE LIMITED===========,2940,1,45.00,CLOTHING,16/10/14,433.02,HR EMPLOYMENT RELATIONS
101014G,TEAM PURPLE LIMITED===========,2940,2,149.00,CLOTHING,16/10/14,,HR EMPLOYMENT RELATIONS
101014G,TEAM PURPLE LIMITED===========,2940,3,39.82,CLOTHING,16/10/14,,HR EMPLOYMENT RELATIONS
101014G,TEAM PURPLE LIMITED===========,2940,4,199.20,CLOTHING,16/10/14,,HR EMPLOYMENT RELATIONS
091014G,PULSE FITNESS LTD,31555,1,"2,085.42",GYM EQUIPMENT,16/10/14,"2,085.42",WENNINGTON FIRE STATION
131014C,EUROLOOS LTD,31797,1,650.00,OPERATIONAL EQUIP-PURCHASE,16/10/14,650.00,CENTRAL DEPARTMENT ACCOUNT
131014C,EVOLUTION ENVIRONMENTAL LTD,3323,1,175.00,ASBESTOS,16/10/14,555.00,SHOREDITCH FIRE STATION
131014C,EVOLUTION ENVIRONMENTAL LTD,3323,2,175.00,ASBESTOS,16/10/14,,SOUTHALL FS
131014C,EVOLUTION ENVIRONMENTAL LTD,3323,3,205.00,ASBESTOS,16/10/14,,TWICKENHAM FS
131014C,MCGRATH BROS (WASTE CONTROL) L,340094,1,330.85,REFUSE COLLECTION,16/10/14,330.85,SHOREDITCH FIRE STATION
031014G,PCS CONSULTING SERVICES LTD===,3710,1,"1,164.00",PURCHASES-COMPUTER/EQUIPMENT,16/10/14,"1,164.00",
061014G,COMPUTACENTRE================,3880273886,1,705.31,ACQUISITIONS,16/10/14,705.31,I&CT CONTRACT & ASSET MANGMNT
131014C,KNIGHTON CLEANING SERVICES LTD,42707,1,991.62,GENERAL CLEANS,16/10/14,"69,243.77",ADDINGTON FS
131014C,KNIGHTON CLEANING SERVICES LTD,42707,2,"1,093.94",GENERAL CLEANS,16/10/14,,BATTERSEA FIRE STATION
131014C,KNIGHTON CLEANING SERVICES LTD,42707,3,"1,025.14",GENERAL CLEANS,16/10/14,,BECKENHAM FS
131014C,KNIGHTON CLEANING SERVICES LTD,42707,4,"1,235.07",GENERAL CLEANS,16/10/14,,BEXLEY FS
131014C,KNIGHTON CLEANING SERVICES LTD,42707,5,600.66,GENERAL CLEANS,16/10/14,,BIGGIN HILL FS
131014C,KNIGHTON CLEANING SERVICES LTD,42707,6,"1,378.14",GENERAL CLEANS,16/10/14,,BRIXTON FS
131014C,KNIGHTON CLEANING SERVICES LTD,42707,7,"1,997.23",GENERAL CLEANS,16/10/14,,BROMLEY FS
131014C,KNIGHTON CLEANING SERVICES LTD,42707,8,"2,056.77",GENERAL CLEANS,16/10/14,,CLAPHAM FS
131014C,KNIGHTON CLEANING SERVICES LTD,42707,9,"3,054.58",GENERAL CLEANS,16/10/14,,CROYDON FS
131014C,KNIGHTON CLEANING SERVICES LTD,42707,10,"1,014.31",GENERAL CLEANS,16/10/14,,DEPTFORD FS
131014C,KNIGHTON CLEANING SERVICES LTD,42707,11,897.76,GENERAL CLEANS,16/10/14,,DOCKHEAD FS
131014C,KNIGHTON CLEANING SERVICES LTD,42707,12,"1,230.40",GENERAL CLEANS,16/10/14,,EAST GREENWICH FS
131014C,KNIGHTON CLEANING SERVICES LTD,42707,13,"1,021.91",GENERAL CLEANS,16/10/14,,ELTHAM FS
131014C,KNIGHTON CLEANING SERVICES LTD,42707,14,"1,067.57",GENERAL CLEANS,16/10/14,,ERITH FS
131014C,KNIGHTON CLEANING SERVICES LTD,42707,15,"1,092.48",GENERAL CLEANS,16/10/14,,FOREST HILL FS
131014C,KNIGHTON CLEANING SERVICES LTD,42707,16,"1,475.68",GENERAL CLEANS,16/10/14,,GREENWICH FS
131014C,KNIGHTON CLEANING SERVICES LTD,42707,17,"1,237.63",GENERAL CLEANS,16/10/14,,LAMBETH FS
131014C,KNIGHTON CLEANING SERVICES LTD,42707,18,588.38,GENERAL CLEANS,16/10/14,,PREMISES HOLDING A/C HQ
131014C,KNIGHTON CLEANING SERVICES LTD,42707,19,"12,339.17",GENERAL CLEANS,16/10/14,,UNION STREET HQ HOLDING A/C
131014C,KNIGHTON CLEANING SERVICES LTD,42707,20,"1,191.21",GENERAL CLEANS,16/10/14,,KINGSTON FS
131014C,KNIGHTON CLEANING SERVICES LTD,42707,21,396.82,GENERAL CLEANS,16/10/14,,LAMBETH RIVER FS
131014C,KNIGHTON CLEANING SERVICES LTD,42707,22,"1,507.79",GENERAL CLEANS,16/10/14,,LEE GREEN FS
131014C,KNIGHTON CLEANING SERVICES LTD,42707,23,"3,162.03",GENERAL CLEANS,16/10/14,,LEWISHAM FS
131014C,KNIGHTON CLEANING SERVICES LTD,42707,24,633.17,GENERAL CLEANS,16/10/14,,MITCHAM FIRE STATION
131014C,KNIGHTON CLEANING SERVICES LTD,42707,25,"1,725.77",GENERAL CLEANS,16/10/14,,NEW CROSS FS
131014C,KNIGHTON CLEANING SERVICES LTD,42707,26,852.78,GENERAL CLEANS,16/10/14,,NEW MALDEN FS
131014C,KNIGHTON CLEANING SERVICES LTD,42707,27,"1,301.90",GENERAL CLEANS,16/10/14,,NORBURY FS
131014C,KNIGHTON CLEANING SERVICES LTD,42707,28,"1,918.39",GENERAL CLEANS,16/10/14,,PECKHAM FS
131014C,KNIGHTON CLEANING SERVICES LTD,42707,29,"1,240.41",GENERAL CLEANS,16/10/14,,PLUMSTEAD FS
131014C,KNIGHTON CLEANING SERVICES LTD,42707,30,900.06,GENERAL CLEANS,16/10/14,,PURLEY FS
131014C,KNIGHTON CLEANING SERVICES LTD,42707,31,"1,201.95",GENERAL CLEANS,16/10/14,,RICHMOND FS
131014C,KNIGHTON CLEANING SERVICES LTD,42707,32,"1,225.16",GENERAL CLEANS,16/10/14,,SIDCUP FS
131014C,KNIGHTON CLEANING SERVICES LTD,42707,33,"5,349.72",GENERAL CLEANS,16/10/14,,PREMISES HOLDING A/C STC
131014C,KNIGHTON CLEANING SERVICES LTD,42707,34,731.29,GENERAL CLEANS,16/10/14,,SURBITON FS
131014C,KNIGHTON CLEANING SERVICES LTD,42707,35,860.47,GENERAL CLEANS,16/10/14,,SUTTON FS
131014C,KNIGHTON CLEANING SERVICES LTD,42707,36,"1,838.08",GENERAL CLEANS,16/10/14,,TOOTING FIRE STATION
131014C,KNIGHTON CLEANING SERVICES LTD,42707,37,"1,071.46",GENERAL CLEANS,16/10/14,,TWICKENHAM FS
131014C,KNIGHTON CLEANING SERVICES LTD,42707,38,811.49,GENERAL CLEANS,16/10/14,,WALLINGTON FS
131014C,KNIGHTON CLEANING SERVICES LTD,42707,39,"1,615.01",GENERAL CLEANS,16/10/14,,WANDSWORTH FIRE STATION
131014C,KNIGHTON CLEANING SERVICES LTD,42707,40,"1,312.98",GENERAL CLEANS,16/10/14,,WEST NORWOOD FS
131014C,KNIGHTON CLEANING SERVICES LTD,42707,41,"1,307.85",GENERAL CLEANS,16/10/14,,WIMBLEDON FIRE STATION
131014C,KNIGHTON CLEANING SERVICES LTD,42707,42,"1,210.26",GENERAL CLEANS,16/10/14,,WOODSIDE FS
131014C,KNIGHTON CLEANING SERVICES LTD,42707,43,479.28,GENERAL CLEANS,16/10/14,,PREMISES HOLDING A/C HQ
131014C,KNIGHTON CLEANING SERVICES LTD,42750,1,"2,179.32",GENERAL CLEANS,16/10/14,"78,158.36",ACTON FS
131014C,KNIGHTON CLEANING SERVICES LTD,42750,2,"2,016.80",GENERAL CLEANS,16/10/14,,BARKING FIRE STATION
131014C,KNIGHTON CLEANING SERVICES LTD,42750,3,"1,424.19",GENERAL CLEANS,16/10/14,,BARNET FS
131014C,KNIGHTON CLEANING SERVICES LTD,42750,5,"1,150.68",GENERAL CLEANS,16/10/14,,BETHNAL GREEN FS
131014C,KNIGHTON CLEANING SERVICES LTD,42750,6,"1,202.80",GENERAL CLEANS,16/10/14,,CHELSEA FS
131014C,KNIGHTON CLEANING SERVICES LTD,42750,7,"1,064.57",GENERAL CLEANS,16/10/14,,CHINGFORD FS
131014C,KNIGHTON CLEANING SERVICES LTD,42750,8,756.41,GENERAL CLEANS,16/10/14,,CHISWICK FS
131014C,KNIGHTON CLEANING SERVICES LTD,42750,9,"1,209.50",GENERAL CLEANS,16/10/14,,DAGENHAM FIRE STATION
131014C,KNIGHTON CLEANING SERVICES LTD,42750,10,"1,259.62",GENERAL CLEANS,16/10/14,,DOWGATE FIRE STATION
131014C,KNIGHTON CLEANING SERVICES LTD,42750,11,"1,074.37",GENERAL CLEANS,16/10/14,,EALING FS
131014C,KNIGHTON CLEANING SERVICES LTD,42750,12,"1,895.33",GENERAL CLEANS,16/10/14,,EAST HAM FIRE STATION
131014C,KNIGHTON CLEANING SERVICES LTD,42750,13,"2,253.31",GENERAL CLEANS,16/10/14,,EDMONTON FIRE STATION
131014C,KNIGHTON CLEANING SERVICES LTD,42750,14,772.53,GENERAL CLEANS,16/10/14,,ENFIELD FIRE STATION
131014C,KNIGHTON CLEANING SERVICES LTD,42750,15,"1,443.83",GENERAL CLEANS,16/10/14,,EUSTON FS
131014C,KNIGHTON CLEANING SERVICES LTD,42750,16,760.66,GENERAL CLEANS,16/10/14,,FELTHAM FS
131014C,KNIGHTON CLEANING SERVICES LTD,42750,17,"1,512.68",GENERAL CLEANS,16/10/14,,FINCHLEY FS
131014C,KNIGHTON CLEANING SERVICES LTD,42750,18,"1,746.68",GENERAL CLEANS,16/10/14,,FULHAM FS
131014C,KNIGHTON CLEANING SERVICES LTD,42750,19,776.01,GENERAL CLEANS,16/10/14,,HAINAULT FIRE STATION
131014C,KNIGHTON CLEANING SERVICES LTD,42750,20,"2,295.39",GENERAL CLEANS,16/10/14,,HAMMERSMITH FS
131014C,KNIGHTON CLEANING SERVICES LTD,42750,21,"1,820.81",GENERAL CLEANS,16/10/14,,HARROW FS
131014C,KNIGHTON CLEANING SERVICES LTD,42750,22,929.00,GENERAL CLEANS,16/10/14,,HAYES FS
131014C,KNIGHTON CLEANING SERVICES LTD,42750,23,930.22,GENERAL CLEANS,16/10/14,,HEATHROW FS
131014C,KNIGHTON CLEANING SERVICES LTD,42750,24,"1,079.28",GENERAL CLEANS,16/10/14,,HENDON FS
131014C,KNIGHTON CLEANING SERVICES LTD,42750,25,"1,762.12",GENERAL CLEANS,16/10/14,,HESTON FS
131014C,KNIGHTON CLEANING SERVICES LTD,42750,26,"1,047.27",GENERAL CLEANS,16/10/14,,HILLINGDON FS
131014C,KNIGHTON CLEANING SERVICES LTD,42750,27,821.30,GENERAL CLEANS,16/10/14,,HOLLOWAY FIRE STATION
131014C,KNIGHTON CLEANING SERVICES LTD,42750,28,967.95,GENERAL CLEANS,16/10/14,,HOMERTON FIRE STATION
131014C,KNIGHTON CLEANING SERVICES LTD,42750,29,"1,331.26",GENERAL CLEANS,16/10/14,,HORNCHURCH FIRE STATION
131014C,KNIGHTON CLEANING SERVICES LTD,42750,30,769.15,GENERAL CLEANS,16/10/14,,HORNSEY FIRE STATION
131014C,KNIGHTON CLEANING SERVICES LTD,42750,31,"1,552.66",GENERAL CLEANS,16/10/14,,ILFORD FIRE STATION
131014C,KNIGHTON CLEANING SERVICES LTD,42750,32,"1,269.14",GENERAL CLEANS,16/10/14,,ISLINGTON FIRE STATION
131014C,KNIGHTON CLEANING SERVICES LTD,42750,33,"1,390.96",GENERAL CLEANS,16/10/14,,KENSINGTON FS
131014C,KNIGHTON CLEANING SERVICES LTD,42750,34,616.79,GENERAL CLEANS,16/10/14,,KENTISH TOWN FS
131014C,KNIGHTON CLEANING SERVICES LTD,42750,35,936.38,GENERAL CLEANS,16/10/14,,LEYTON FS
131014C,KNIGHTON CLEANING SERVICES LTD,42750,36,955.47,GENERAL CLEANS,16/10/14,,LEYTONSTONE FS
131014C,KNIGHTON CLEANING SERVICES LTD,42750,37,696.05,GENERAL CLEANS,16/10/14,,MILL HILL FS
131014C,KNIGHTON CLEANING SERVICES LTD,42750,38,"1,509.43",GENERAL CLEANS,16/10/14,,MILLWALL FS
131014C,KNIGHTON CLEANING SERVICES LTD,42750,39,"1,333.12",GENERAL CLEANS,16/10/14,,NORTH KENSINGTON FS
131014C,KNIGHTON CLEANING SERVICES LTD,42750,40,948.17,GENERAL CLEANS,16/10/14,,NORTHOLT FS
131014C,KNIGHTON CLEANING SERVICES LTD,42750,41,"2,789.42",GENERAL CLEANS,16/10/14,,PADDINGTON FS
131014C,KNIGHTON CLEANING SERVICES LTD,42750,42,"1,031.38",GENERAL CLEANS,16/10/14,,PARK ROYAL FS
131014C,KNIGHTON CLEANING SERVICES LTD,42750,43,"1,077.95",GENERAL CLEANS,16/10/14,,POPLAR FS
131014C,KNIGHTON CLEANING SERVICES LTD,42750,44,"1,043.41",GENERAL CLEANS,16/10/14,,ROMFORD FIRE STATION
131014C,KNIGHTON CLEANING SERVICES LTD,42750,45,946.71,GENERAL CLEANS,16/10/14,,RUISLIP FS
131014C,KNIGHTON CLEANING SERVICES LTD,42750,46,"1,292.11",GENERAL CLEANS,16/10/14,,SHADWELL FS
131014C,KNIGHTON CLEANING SERVICES LTD,42750,47,"2,271.32",GENERAL CLEANS,16/10/14,,SHOREDITCH FIRE STATION
131014C,KNIGHTON CLEANING SERVICES LTD,42750,48,"1,852.56",GENERAL CLEANS,16/10/14,,SOHO FS
131014C,KNIGHTON CLEANING SERVICES LTD,42750,49,"1,041.22",GENERAL CLEANS,16/10/14,,SOUTHALL FS
131014C,KNIGHTON CLEANING SERVICES LTD,42750,50,686.54,GENERAL CLEANS,16/10/14,,SOUTHGATE FIRE STATION
131014C,KNIGHTON CLEANING SERVICES LTD,42750,51,678.04,GENERAL CLEANS,16/10/14,,STANMORE FS
131014C,KNIGHTON CLEANING SERVICES LTD,42750,52,788.06,GENERAL CLEANS,16/10/14,,STOKE NEWINGTON FIRE STATION
131014C,KNIGHTON CLEANING SERVICES LTD,42750,53,"2,314.55",GENERAL CLEANS,16/10/14,,STRATFORD FIRE STATION
131014C,KNIGHTON CLEANING SERVICES LTD,42750,54,916.70,GENERAL CLEANS,16/10/14,,TOTTENHAM FIRE STATION
131014C,KNIGHTON CLEANING SERVICES LTD,42750,55,"1,587.64",GENERAL CLEANS,16/10/14,,WALTHAMSTOW FS
131014C,KNIGHTON CLEANING SERVICES LTD,42750,56,"2,615.05",GENERAL CLEANS,16/10/14,,WEMBLEY FS
131014C,KNIGHTON CLEANING SERVICES LTD,42750,57,766.46,GENERAL CLEANS,16/10/14,,WENNINGTON FIRE STATION
131014C,KNIGHTON CLEANING SERVICES LTD,42750,58,783.17,GENERAL CLEANS,16/10/14,,WEST HAMPSTEAD FS
131014C,KNIGHTON CLEANING SERVICES LTD,42750,59,13.00,GENERAL CLEANS,16/10/14,,WESTMINSTER FS
131014C,KNIGHTON CLEANING SERVICES LTD,42750,60,"1,064.91",GENERAL CLEANS,16/10/14,,WHITECHAPEL FS
131014C,KNIGHTON CLEANING SERVICES LTD,42750,61,808.70,GENERAL CLEANS,16/10/14,,WILLESDEN FS
131014C,KNIGHTON CLEANING SERVICES LTD,42750,62,"1,051.51",GENERAL CLEANS,16/10/14,,WOODFORE FIRE STATION
131014C,KNIGHTON CLEANING SERVICES LTD,42750,63,"1,276.74",GENERAL CLEANS,16/10/14,,HAROLD HILL FIRE STATION
131014C,KNIGHTON CLEANING SERVICES LTD,42760,1,"1,816.18",SPECIAL CLEANS,16/10/14,"1,816.18",UNION STREET HQ HOLDING A/C
081014G,MITIE SECURITY (LONDON) LTD===,45/566753,1,"8,265.60",PREMISES SECURITY,16/10/14,"8,265.60",PREMISES HOLDING A/C STC
081014G,MITIE SECURITY (LONDON) LTD===,45/566757,1,"16,531.20",PREMISES SECURITY,16/10/14,"16,531.20",UNION STREET HQ HOLDING A/C
140833,D & G BLOCK MANAGEMENT,52736,1,"7,700.00",RENTS,16/10/14,"7,700.00",UNION STREET HQ HOLDING A/C
140833,THAMES WATER UTILITIES LTD====,54858-88145<,1,253.39,WATER & SEWERAGE RATES,16/10/14,253.39,CROYDON FS
140833,THAMES WATER UTILITIES LTD====,55520-98535J,1,632.88,WATER & SEWERAGE RATES,16/10/14,632.88,EUSTON FS
101014G,L B OF HAMMERSMITH & FULHAM===,62255 OPS004,1,600.00,PROFESSIONAL DEVELOPMENT,16/10/14,600.00,PREVENTION STEERING
140833,THAMES WATER UTILITIES LTD====,63661-76423I,1,"1,772.21",WATER & SEWERAGE RATES,16/10/14,"1,772.21",PADDINGTON FS
101014G,TWO SERVICES LTD==============,78722,1,681.50,CATERING EQUIPMENT,16/10/14,681.50,SURBITON FS
131014C,TWO SERVICES LTD==============,78791,1,806.00,TACTICAL DAY TO DAY,16/10/14,806.00,UNION STREET HQ HOLDING A/C
101014G,SHARPE PRITCHARD==============,79230,1,525.00,CONSULTANTS,16/10/14,525.00,C & M PROJECT
081014G,A.R.C.S. ENVIRONMENTAL LTD====,8714,1,500.00,ASBESTOS,16/10/14,800.00,ILFORD FIRE STATION
081014G,A.R.C.S. ENVIRONMENTAL LTD====,8714,2,150.00,ASBESTOS,16/10/14,,POPLAR FS
081014G,A.R.C.S. ENVIRONMENTAL LTD====,8714,3,150.00,ASBESTOS,16/10/14,,SHOREDITCH FIRE STATION
131014C,DRAEGER SAFETY UK LIMITED=====,90454890,1,360.50,PROTECTIVE EQUIPT - PARTS,16/10/14,"1,810.80",
131014C,DRAEGER SAFETY UK LIMITED=====,90454890,2,851.10,PROTECTIVE EQUIPT - PARTS,16/10/14,,
131014C,DRAEGER SAFETY UK LIMITED=====,90454890,3,213.90,PROTECTIVE EQUIPT - PARTS,16/10/14,,
131014C,DRAEGER SAFETY UK LIMITED=====,90454890,4,159.30,PROTECTIVE EQUIPT - PARTS,16/10/14,,
131014C,DRAEGER SAFETY UK LIMITED=====,90454890,5,226.00,PROTECTIVE EQUIPT - PARTS,16/10/14,,
061014G,DRAEGER SAFETY UK LIMITED=====,90458268,1,142.60,PROTECTIVE EQUIPT - PARTS,16/10/14,"2,000.90",
061014G,DRAEGER SAFETY UK LIMITED=====,90458268,2,360.50,PROTECTIVE EQUIPT - PARTS,16/10/14,,
061014G,DRAEGER SAFETY UK LIMITED=====,90458268,3,212.40,PROTECTIVE EQUIPT - PARTS,16/10/14,,
061014G,DRAEGER SAFETY UK LIMITED=====,90458268,4,648.90,PROTECTIVE EQUIPT - PARTS,16/10/14,,
061014G,DRAEGER SAFETY UK LIMITED=====,90458268,5,636.50,PROTECTIVE EQUIPT - PARTS,16/10/14,,
091014G,NORTHUMBRIAN WATER LTD========,91312236X,1,"4,294.25",CURRENT HYDRANT COSTS,16/10/14,"4,294.25",WATER OFFICE
131014C,KIER BUILDING SERV ENGINEERS==,F00050933,1,580.75,TACTICAL DAY TO DAY,16/10/14,"7,735.44",SIDCUP FS
131014C,KIER BUILDING SERV ENGINEERS==,F00050933,2,"1,225.22",TACTICAL DAY TO DAY,16/10/14,,MITCHAM FIRE STATION
131014C,KIER BUILDING SERV ENGINEERS==,F00050933,3,596.97,TACTICAL DAY TO DAY,16/10/14,,BEXLEY FS
131014C,KIER BUILDING SERV ENGINEERS==,F00050933,4,"1,634.74",TACTICAL DAY TO DAY,16/10/14,,CLAPHAM FS
131014C,KIER BUILDING SERV ENGINEERS==,F00050933,5,204.55,TACTICAL DAY TO DAY,16/10/14,,ERITH FS
131014C,KIER BUILDING SERV ENGINEERS==,F00050933,6,376.64,TACTICAL DAY TO DAY,16/10/14,,LEWISHAM FS
131014C,KIER BUILDING SERV ENGINEERS==,F00050933,7,484.12,TACTICAL DAY TO DAY,16/10/14,,SUTTON FS
131014C,KIER BUILDING SERV ENGINEERS==,F00050933,8,410.41,TACTICAL DAY TO DAY,16/10/14,,CROYDON FS
131014C,KIER BUILDING SERV ENGINEERS==,F00050933,9,148.69,TACTICAL DAY TO DAY,16/10/14,,KINGSTON FS
131014C,KIER BUILDING SERV ENGINEERS==,F00050933,10,70.40,TACTICAL DAY TO DAY,16/10/14,,ELTHAM FS
131014C,KIER BUILDING SERV ENGINEERS==,F00050933,11,88.00,TACTICAL DAY TO DAY,16/10/14,,WANDSWORTH FIRE STATION
131014C,KIER BUILDING SERV ENGINEERS==,F00050933,12,84.95,TACTICAL DAY TO DAY,16/10/14,,PREMISES HOLDING A/C STC
131014C,KIER BUILDING SERV ENGINEERS==,F00050933,13,"1,830.00",TACTICAL DAY TO DAY,16/10/14,,UNION STREET HQ HOLDING A/C
101014G,AGE UK MERTON,FEST14002,1,400.00,ADVERTISING,16/10/14,400.00,CFS - MERTON
131014C,QA LIMITED,ICE308085,1,300.00,PROFESSIONAL DEVELOPMENT,16/10/14,300.00,INFORMATION MNGT & PERFORMANCE
131014C,CHILDCARE VOUCHERS LTD========,INS09515518/144969,1,674.33,CHILDCARE,16/10/14,674.33,HR CENTRALLY HELD BUDGETS
091014G,MUSCO LIGHTING EUROPE LTD=====,INV0004331,1,"3,853.33",GENERAL,16/10/14,"3,853.33",CLOTHING/VEHICLE INSURANCE
131014C,MUSCO LIGHTING EUROPE LTD=====,INV0004360,1,"3,853.33",GENERAL,16/10/14,"3,853.33",CLOTHING/VEHICLE INSURANCE
140831,JCT600 CONTRACTS LIMITED======,INV00072905,1,450.75,LEASE CAR CHARGES,16/10/14,450.75,LEASE CARS ADMINISTRATION
140831,JCT600 CONTRACTS LIMITED======,INV00072905,2,-39.01,VAT CAR LEASING,16/10/14,,
140831,JCT600 CONTRACTS LIMITED======,INV00072905,3,39.01,LEASE CAR CHARGES,16/10/14,,LEASE CARS ADMINISTRATION
140831,JCT600 CONTRACTS LIMITED======,INV00072906,1,354.03,LEASE CAR CHARGES,16/10/14,354.03,LEASE CARS ADMINISTRATION
140831,JCT600 CONTRACTS LIMITED======,INV00072906,2,-30.66,VAT CAR LEASING,16/10/14,,
140831,JCT600 CONTRACTS LIMITED======,INV00072906,3,30.66,LEASE CAR CHARGES,16/10/14,,LEASE CARS ADMINISTRATION
140831,JCT600 CONTRACTS LIMITED======,INV00072907,1,326.15,LEASE CAR CHARGES,16/10/14,326.15,LEASE CARS ADMINISTRATION
140831,JCT600 CONTRACTS LIMITED======,INV00072907,2,-28.05,VAT CAR LEASING,16/10/14,,
140831,JCT600 CONTRACTS LIMITED======,INV00072907,3,28.05,LEASE CAR CHARGES,16/10/14,,LEASE CARS ADMINISTRATION
140831,JCT600 CONTRACTS LIMITED======,INV00072908,1,278.26,LEASE CAR CHARGES,16/10/14,278.26,LEASE CARS ADMINISTRATION
140831,JCT600 CONTRACTS LIMITED======,INV00072908,2,-24.53,VAT CAR LEASING,16/10/14,,
140831,JCT600 CONTRACTS LIMITED======,INV00072908,3,24.53,LEASE CAR CHARGES,16/10/14,,LEASE CARS ADMINISTRATION
140831,JCT600 CONTRACTS LIMITED======,INV00072910,1,394.77,LEASE CAR CHARGES,16/10/14,394.77,LEASE CARS ADMINISTRATION
140831,JCT600 CONTRACTS LIMITED======,INV00072910,2,-34.88,VAT CAR LEASING,16/10/14,,
140831,JCT600 CONTRACTS LIMITED======,INV00072910,3,34.88,LEASE CAR CHARGES,16/10/14,,LEASE CARS ADMINISTRATION
140831,JCT600 CONTRACTS LIMITED======,INV00072911,1,368.82,LEASE CAR CHARGES,16/10/14,368.82,LEASE CARS ADMINISTRATION
140831,JCT600 CONTRACTS LIMITED======,INV00072911,2,-32.40,VAT CAR LEASING,16/10/14,,
140831,JCT600 CONTRACTS LIMITED======,INV00072911,3,32.40,LEASE CAR CHARGES,16/10/14,,LEASE CARS ADMINISTRATION
140831,JCT600 CONTRACTS LIMITED======,INV00072912,1,346.32,LEASE CAR CHARGES,16/10/14,346.32,LEASE CARS ADMINISTRATION
140831,JCT600 CONTRACTS LIMITED======,INV00072912,2,-30.76,VAT CAR LEASING,16/10/14,,
140831,JCT600 CONTRACTS LIMITED======,INV00072912,3,30.76,LEASE CAR CHARGES,16/10/14,,LEASE CARS ADMINISTRATION
140831,JCT600 CONTRACTS LIMITED======,INV00072913,1,358.44,LEASE CAR CHARGES,16/10/14,358.44,LEASE CARS ADMINISTRATION
140831,JCT600 CONTRACTS LIMITED======,INV00072913,2,-31.90,VAT CAR LEASING,16/10/14,,
140831,JCT600 CONTRACTS LIMITED======,INV00072913,3,31.90,LEASE CAR CHARGES,16/10/14,,LEASE CARS ADMINISTRATION
140831,JCT600 CONTRACTS LIMITED======,INV00072914,1,405.78,LEASE CAR CHARGES,16/10/14,405.78,LEASE CARS ADMINISTRATION
140831,JCT600 CONTRACTS LIMITED======,INV00072914,2,-36.66,VAT CAR LEASING,16/10/14,,
140831,JCT600 CONTRACTS LIMITED======,INV00072914,3,36.66,LEASE CAR CHARGES,16/10/14,,LEASE CARS ADMINISTRATION
131014C,COFELY WORKPLACE LIMITED,M129007,1,220.00,TACTICAL DAY TO DAY,16/10/14,"5,150.54",ACTON FS
131014C,COFELY WORKPLACE LIMITED,M129007,2,102.13,TACTICAL DAY TO DAY,16/10/14,,BARKING FIRE STATION
131014C,COFELY WORKPLACE LIMITED,M129007,3,168.36,TACTICAL DAY TO DAY,16/10/14,,BELSIZE FS
131014C,COFELY WORKPLACE LIMITED,M129007,4,350.24,TACTICAL DAY TO DAY,16/10/14,,CHELSEA FS
131014C,COFELY WORKPLACE LIMITED,M129007,5,785.76,TACTICAL DAY TO DAY,16/10/14,,DOWGATE FIRE STATION
131014C,COFELY WORKPLACE LIMITED,M129007,6,44.80,TACTICAL DAY TO DAY,16/10/14,,EAST HAM FIRE STATION
131014C,COFELY WORKPLACE LIMITED,M129007,7,344.63,TACTICAL DAY TO DAY,16/10/14,,EDMONTON FIRE STATION
131014C,COFELY WORKPLACE LIMITED,M129007,8,165.73,TACTICAL DAY TO DAY,16/10/14,,ENFIELD FIRE STATION
131014C,COFELY WORKPLACE LIMITED,M129007,9,60.36,TACTICAL DAY TO DAY,16/10/14,,EUSTON FS
131014C,COFELY WORKPLACE LIMITED,M129007,10,46.55,TACTICAL DAY TO DAY,16/10/14,,FINCHLEY FS
131014C,COFELY WORKPLACE LIMITED,M129007,11,214.81,TACTICAL DAY TO DAY,16/10/14,,FULHAM FS
131014C,COFELY WORKPLACE LIMITED,M129007,12,135.15,TACTICAL DAY TO DAY,16/10/14,,HAROLD HILL FIRE STATION
131014C,COFELY WORKPLACE LIMITED,M129007,13,303.39,TACTICAL DAY TO DAY,16/10/14,,HAYES FS
131014C,COFELY WORKPLACE LIMITED,M129007,14,11.79,TACTICAL DAY TO DAY,16/10/14,,HENDON FS
131014C,COFELY WORKPLACE LIMITED,M129007,15,105.87,TACTICAL DAY TO DAY,16/10/14,,HOLLOWAY FIRE STATION
131014C,COFELY WORKPLACE LIMITED,M129007,16,106.82,TACTICAL DAY TO DAY,16/10/14,,HORNCHURCH FIRE STATION
131014C,COFELY WORKPLACE LIMITED,M129007,17,99.31,TACTICAL DAY TO DAY,16/10/14,,HORNSEY FIRE STATION
131014C,COFELY WORKPLACE LIMITED,M129007,18,82.79,TACTICAL DAY TO DAY,16/10/14,,ILFORD FIRE STATION
131014C,COFELY WORKPLACE LIMITED,M129007,19,91.89,TACTICAL DAY TO DAY,16/10/14,,ISLINGTON FIRE STATION
131014C,COFELY WORKPLACE LIMITED,M129007,20,93.40,TACTICAL DAY TO DAY,16/10/14,,KENSINGTON FS
131014C,COFELY WORKPLACE LIMITED,M129007,21,19.88,TACTICAL DAY TO DAY,16/10/14,,NORTH KENSINGTON FS
131014C,COFELY WORKPLACE LIMITED,M129007,22,173.57,TACTICAL DAY TO DAY,16/10/14,,PADDINGTON FS
131014C,COFELY WORKPLACE LIMITED,M129007,23,137.47,TACTICAL DAY TO DAY,16/10/14,,SOUTHALL FS
131014C,COFELY WORKPLACE LIMITED,M129007,24,23.58,TACTICAL DAY TO DAY,16/10/14,,STOKE NEWINGTON FIRE STATION
131014C,COFELY WORKPLACE LIMITED,M129007,25,475.54,TACTICAL DAY TO DAY,16/10/14,,STRATFORD FIRE STATION
131014C,COFELY WORKPLACE LIMITED,M129007,26,47.16,TACTICAL DAY TO DAY,16/10/14,,WHITECHAPEL FS
131014C,COFELY WORKPLACE LIMITED,M129007,27,59.66,TACTICAL DAY TO DAY,16/10/14,,WILLESDEN FS
131014C,COFELY WORKPLACE LIMITED,M129007,28,238.08,TACTICAL DAY TO DAY,16/10/14,,WOODFORE FIRE STATION
131014C,COFELY WORKPLACE LIMITED,M129007,29,441.82,TACTICAL DAY TO DAY,16/10/14,,WENNINGTON FIRE STATION
131014C,COFELY WORKPLACE LIMITED,M129363,1,372.72,TACTICAL DAY TO DAY,16/10/14,"18,178.00",BARKING FIRE STATION
131014C,COFELY WORKPLACE LIMITED,M129363,2,299.13,TACTICAL DAY TO DAY,16/10/14,,BARNET FS
131014C,COFELY WORKPLACE LIMITED,M129363,3,558.50,TACTICAL DAY TO DAY,16/10/14,,BETHNAL GREEN FS
131014C,COFELY WORKPLACE LIMITED,M129363,4,165.00,TACTICAL DAY TO DAY,16/10/14,,BOW FS
131014C,COFELY WORKPLACE LIMITED,M129363,5,502.97,TACTICAL DAY TO DAY,16/10/14,,CHINGFORD FS
131014C,COFELY WORKPLACE LIMITED,M129363,6,199.40,TACTICAL DAY TO DAY,16/10/14,,CHISWICK FS
131014C,COFELY WORKPLACE LIMITED,M129363,7,63.34,TACTICAL DAY TO DAY,16/10/14,,CLERKENWELL FIRE STATION
131014C,COFELY WORKPLACE LIMITED,M129363,8,165.00,TACTICAL DAY TO DAY,16/10/14,,DOWGATE FIRE STATION
131014C,COFELY WORKPLACE LIMITED,M129363,9,22.19,TACTICAL DAY TO DAY,16/10/14,,EALING FS
131014C,COFELY WORKPLACE LIMITED,M129363,10,343.11,TACTICAL DAY TO DAY,16/10/14,,EAST HAM FIRE STATION
131014C,COFELY WORKPLACE LIMITED,M129363,11,198.67,TACTICAL DAY TO DAY,16/10/14,,EDMONTON FIRE STATION
131014C,COFELY WORKPLACE LIMITED,M129363,12,54.56,TACTICAL DAY TO DAY,16/10/14,,ENFIELD FIRE STATION
131014C,COFELY WORKPLACE LIMITED,M129363,13,733.69,TACTICAL DAY TO DAY,16/10/14,,FELTHAM FS
131014C,COFELY WORKPLACE LIMITED,M129363,14,206.61,TACTICAL DAY TO DAY,16/10/14,,FINCHLEY FS
131014C,COFELY WORKPLACE LIMITED,M129363,15,23.12,TACTICAL DAY TO DAY,16/10/14,,FULHAM FS
131014C,COFELY WORKPLACE LIMITED,M129363,16,415.57,TACTICAL DAY TO DAY,16/10/14,,HAINAULT FIRE STATION
131014C,COFELY WORKPLACE LIMITED,M129363,17,329.04,TACTICAL DAY TO DAY,16/10/14,,HAMMERSMITH FS
131014C,COFELY WORKPLACE LIMITED,M129363,18,154.42,TACTICAL DAY TO DAY,16/10/14,,HAROLD HILL FIRE STATION
131014C,COFELY WORKPLACE LIMITED,M129363,19,476.16,TACTICAL DAY TO DAY,16/10/14,,HARROW FS
131014C,COFELY WORKPLACE LIMITED,M129363,20,112.63,TACTICAL DAY TO DAY,16/10/14,,HAYES FS
131014C,COFELY WORKPLACE LIMITED,M129363,21,174.76,TACTICAL DAY TO DAY,16/10/14,,HEATHROW FS
131014C,COFELY WORKPLACE LIMITED,M129363,22,85.41,TACTICAL DAY TO DAY,16/10/14,,HENDON FS
131014C,COFELY WORKPLACE LIMITED,M129363,23,112.35,TACTICAL DAY TO DAY,16/10/14,,HESTON FS
131014C,COFELY WORKPLACE LIMITED,M129363,24,489.70,TACTICAL DAY TO DAY,16/10/14,,HILLINGDON FS
131014C,COFELY WORKPLACE LIMITED,M129363,25,430.30,TACTICAL DAY TO DAY,16/10/14,,HOLLOWAY FIRE STATION
131014C,COFELY WORKPLACE LIMITED,M129363,26,55.02,TACTICAL DAY TO DAY,16/10/14,,HOMERTON FIRE STATION
131014C,COFELY WORKPLACE LIMITED,M129363,27,342.32,TACTICAL DAY TO DAY,16/10/14,,HORNCHURCH FIRE STATION
131014C,COFELY WORKPLACE LIMITED,M129363,28,160.21,TACTICAL DAY TO DAY,16/10/14,,ILFORD FIRE STATION
131014C,COFELY WORKPLACE LIMITED,M129363,29,712.57,TACTICAL DAY TO DAY,16/10/14,,ISLINGTON FIRE STATION
131014C,COFELY WORKPLACE LIMITED,M129363,30,291.27,TACTICAL DAY TO DAY,16/10/14,,KENTISH TOWN FS
131014C,COFELY WORKPLACE LIMITED,M129363,31,192.28,TACTICAL DAY TO DAY,16/10/14,,LEYTON FS
131014C,COFELY WORKPLACE LIMITED,M129363,32,219.61,TACTICAL DAY TO DAY,16/10/14,,LEYTONSTONE FS
131014C,COFELY WORKPLACE LIMITED,M129363,33,230.21,TACTICAL DAY TO DAY,16/10/14,,MILL HILL FS
131014C,COFELY WORKPLACE LIMITED,M129363,34,398.53,TACTICAL DAY TO DAY,16/10/14,,MILLWALL FS
131014C,COFELY WORKPLACE LIMITED,M129363,35,777.55,TACTICAL DAY TO DAY,16/10/14,,NORTH KENSINGTON FS
131014C,COFELY WORKPLACE LIMITED,M129363,36,190.68,TACTICAL DAY TO DAY,16/10/14,,NORTHOLT FS
131014C,COFELY WORKPLACE LIMITED,M129363,37,446.30,TACTICAL DAY TO DAY,16/10/14,,PADDINGTON FS
131014C,COFELY WORKPLACE LIMITED,M129363,38,168.02,TACTICAL DAY TO DAY,16/10/14,,PARK ROYAL FS
131014C,COFELY WORKPLACE LIMITED,M129363,39,810.51,TACTICAL DAY TO DAY,16/10/14,,POPLAR FS
131014C,COFELY WORKPLACE LIMITED,M129363,40,248.93,TACTICAL DAY TO DAY,16/10/14,,ROMFORD FIRE STATION
131014C,COFELY WORKPLACE LIMITED,M129363,41,142.40,TACTICAL DAY TO DAY,16/10/14,,RUISLIP FS
131014C,COFELY WORKPLACE LIMITED,M129363,42,39.30,TACTICAL DAY TO DAY,16/10/14,,SHADWELL FS
131014C,COFELY WORKPLACE LIMITED,M129363,43,743.16,TACTICAL DAY TO DAY,16/10/14,,SHOREDITCH FIRE STATION
131014C,COFELY WORKPLACE LIMITED,M129363,44,777.50,TACTICAL DAY TO DAY,16/10/14,,SOHO FS
131014C,COFELY WORKPLACE LIMITED,M129363,45,538.25,TACTICAL DAY TO DAY,16/10/14,,SOUTHALL FS
131014C,COFELY WORKPLACE LIMITED,M129363,46,341.70,TACTICAL DAY TO DAY,16/10/14,,STOKE NEWINGTON FIRE STATION
131014C,COFELY WORKPLACE LIMITED,M129363,47,34.68,TACTICAL DAY TO DAY,16/10/14,,STRATFORD FIRE STATION
131014C,COFELY WORKPLACE LIMITED,M129363,48,"1,467.21",TACTICAL DAY TO DAY,16/10/14,,TOTTENHAM FIRE STATION
131014C,COFELY WORKPLACE LIMITED,M129363,49,532.63,TACTICAL DAY TO DAY,16/10/14,,WALTHAMSTOW FS
131014C,COFELY WORKPLACE LIMITED,M129363,50,126.35,TACTICAL DAY TO DAY,16/10/14,,WEMBLEY FS
131014C,COFELY WORKPLACE LIMITED,M129363,51,115.68,TACTICAL DAY TO DAY,16/10/14,,WENNINGTON FIRE STATION
131014C,COFELY WORKPLACE LIMITED,M129363,52,165.00,TACTICAL DAY TO DAY,16/10/14,,WEST HAMPSTEAD FS
131014C,COFELY WORKPLACE LIMITED,M129363,53,959.92,TACTICAL DAY TO DAY,16/10/14,,WHITECHAPEL FS
131014C,COFELY WORKPLACE LIMITED,M129363,54,71.66,TACTICAL DAY TO DAY,16/10/14,,WILLESDEN FS
131014C,COFELY WORKPLACE LIMITED,M129363,55,190.20,TACTICAL DAY TO DAY,16/10/14,,WOODFORE FIRE STATION
131014C,COFELY WORKPLACE LIMITED,M130237,1,26.35,TACTICAL DAY TO DAY,16/10/14,"16,361.25",CHINGFORD FS
131014C,COFELY WORKPLACE LIMITED,M130237,2,793.76,TACTICAL DAY TO DAY,16/10/14,,DOWGATE FIRE STATION
131014C,COFELY WORKPLACE LIMITED,M130237,3,363.48,TACTICAL DAY TO DAY,16/10/14,,EALING FS
131014C,COFELY WORKPLACE LIMITED,M130237,4,"1,915.17",TACTICAL DAY TO DAY,16/10/14,,EAST HAM FIRE STATION
131014C,COFELY WORKPLACE LIMITED,M130237,5,242.22,TACTICAL DAY TO DAY,16/10/14,,ENFIELD FIRE STATION
131014C,COFELY WORKPLACE LIMITED,M130237,6,288.58,TACTICAL DAY TO DAY,16/10/14,,EUSTON FS
131014C,COFELY WORKPLACE LIMITED,M130237,7,360.01,TACTICAL DAY TO DAY,16/10/14,,FELTHAM FS
131014C,COFELY WORKPLACE LIMITED,M130237,8,859.08,TACTICAL DAY TO DAY,16/10/14,,FINCHLEY FS
131014C,COFELY WORKPLACE LIMITED,M130237,9,770.96,TACTICAL DAY TO DAY,16/10/14,,HAMMERSMITH FS
131014C,COFELY WORKPLACE LIMITED,M130237,10,34.68,TACTICAL DAY TO DAY,16/10/14,,HAROLD HILL FIRE STATION
131014C,COFELY WORKPLACE LIMITED,M130237,11,204.35,TACTICAL DAY TO DAY,16/10/14,,HARROW FS
131014C,COFELY WORKPLACE LIMITED,M130237,12,761.21,TACTICAL DAY TO DAY,16/10/14,,HESTON FS
131014C,COFELY WORKPLACE LIMITED,M130237,13,837.64,TACTICAL DAY TO DAY,16/10/14,,HOLLOWAY FIRE STATION
131014C,COFELY WORKPLACE LIMITED,M130237,14,280.50,TACTICAL DAY TO DAY,16/10/14,,HORNCHURCH FIRE STATION
131014C,COFELY WORKPLACE LIMITED,M130237,15,149.71,TACTICAL DAY TO DAY,16/10/14,,ILFORD FIRE STATION
131014C,COFELY WORKPLACE LIMITED,M130237,16,528.00,TACTICAL DAY TO DAY,16/10/14,,ISLINGTON FIRE STATION
131014C,COFELY WORKPLACE LIMITED,M130237,17,728.11,TACTICAL DAY TO DAY,16/10/14,,KENSINGTON FS
131014C,COFELY WORKPLACE LIMITED,M130237,18,148.17,TACTICAL DAY TO DAY,16/10/14,,MILLWALL FS
131014C,COFELY WORKPLACE LIMITED,M130237,19,917.39,TACTICAL DAY TO DAY,16/10/14,,PADDINGTON FS
131014C,COFELY WORKPLACE LIMITED,M130237,20,"1,165.45",TACTICAL DAY TO DAY,16/10/14,,POPLAR FS
131014C,COFELY WORKPLACE LIMITED,M130237,21,315.77,TACTICAL DAY TO DAY,16/10/14,,SHADWELL FS
131014C,COFELY WORKPLACE LIMITED,M130237,22,23.12,TACTICAL DAY TO DAY,16/10/14,,SHOREDITCH FIRE STATION
131014C,COFELY WORKPLACE LIMITED,M130237,23,153.96,TACTICAL DAY TO DAY,16/10/14,,SOHO FS
131014C,COFELY WORKPLACE LIMITED,M130237,24,777.27,TACTICAL DAY TO DAY,16/10/14,,SOUTHALL FS
131014C,COFELY WORKPLACE LIMITED,M130237,25,737.00,TACTICAL DAY TO DAY,16/10/14,,SOUTHGATE FIRE STATION
131014C,COFELY WORKPLACE LIMITED,M130237,26,183.92,TACTICAL DAY TO DAY,16/10/14,,STANMORE FS
131014C,COFELY WORKPLACE LIMITED,M130237,27,56.63,TACTICAL DAY TO DAY,16/10/14,,STOKE NEWINGTON FIRE STATION
131014C,COFELY WORKPLACE LIMITED,M130237,28,17.11,TACTICAL DAY TO DAY,16/10/14,,TOTTENHAM FIRE STATION
131014C,COFELY WORKPLACE LIMITED,M130237,29,56.62,TACTICAL DAY TO DAY,16/10/14,,WALTHAMSTOW FS
131014C,COFELY WORKPLACE LIMITED,M130237,30,991.84,TACTICAL DAY TO DAY,16/10/14,,WEMBLEY FS
131014C,COFELY WORKPLACE LIMITED,M130237,31,509.49,TACTICAL DAY TO DAY,16/10/14,,WENNINGTON FIRE STATION
131014C,COFELY WORKPLACE LIMITED,M130237,32,327.06,TACTICAL DAY TO DAY,16/10/14,,WEST HAMPSTEAD FS
131014C,COFELY WORKPLACE LIMITED,M130237,33,764.50,TACTICAL DAY TO DAY,16/10/14,,WHITECHAPEL FS
131014C,COFELY WORKPLACE LIMITED,M130237,34,72.14,TACTICAL DAY TO DAY,16/10/14,,WILLESDEN FS
131014C,COFELY WORKPLACE LIMITED,M130814,1,410.99,TACTICAL DAY TO DAY,16/10/14,"10,298.44",BARKING FIRE STATION
131014C,COFELY WORKPLACE LIMITED,M130814,2,168.56,TACTICAL DAY TO DAY,16/10/14,,BETHNAL GREEN FS
131014C,COFELY WORKPLACE LIMITED,M130814,3,16.60,TACTICAL DAY TO DAY,16/10/14,,CHELSEA FS
131014C,COFELY WORKPLACE LIMITED,M130814,4,76.95,TACTICAL DAY TO DAY,16/10/14,,CHISWICK FS
131014C,COFELY WORKPLACE LIMITED,M130814,5,123.11,TACTICAL DAY TO DAY,16/10/14,,DAGENHAM FIRE STATION
131014C,COFELY WORKPLACE LIMITED,M130814,6,126.50,TACTICAL DAY TO DAY,16/10/14,,EALING FS
131014C,COFELY WORKPLACE LIMITED,M130814,7,181.14,TACTICAL DAY TO DAY,16/10/14,,EAST HAM FIRE STATION
131014C,COFELY WORKPLACE LIMITED,M130814,8,22.85,TACTICAL DAY TO DAY,16/10/14,,ENFIELD FIRE STATION
131014C,COFELY WORKPLACE LIMITED,M130814,9,165.00,TACTICAL DAY TO DAY,16/10/14,,EUSTON FS
131014C,COFELY WORKPLACE LIMITED,M130814,10,557.50,TACTICAL DAY TO DAY,16/10/14,,FELTHAM FS
131014C,COFELY WORKPLACE LIMITED,M130814,11,544.50,TACTICAL DAY TO DAY,16/10/14,,FINCHLEY FS
131014C,COFELY WORKPLACE LIMITED,M130814,12,517.12,TACTICAL DAY TO DAY,16/10/14,,FULHAM FS
131014C,COFELY WORKPLACE LIMITED,M130814,13,25.18,TACTICAL DAY TO DAY,16/10/14,,HAINAULT FIRE STATION
131014C,COFELY WORKPLACE LIMITED,M130814,14,171.67,TACTICAL DAY TO DAY,16/10/14,,HAMMERSMITH FS
131014C,COFELY WORKPLACE LIMITED,M130814,15,63.26,TACTICAL DAY TO DAY,16/10/14,,HAROLD HILL FIRE STATION
131014C,COFELY WORKPLACE LIMITED,M130814,16,131.23,TACTICAL DAY TO DAY,16/10/14,,HARROW FS
131014C,COFELY WORKPLACE LIMITED,M130814,17,52.16,TACTICAL DAY TO DAY,16/10/14,,HAYES FS
131014C,COFELY WORKPLACE LIMITED,M130814,18,208.45,TACTICAL DAY TO DAY,16/10/14,,HEATHROW FS
131014C,COFELY WORKPLACE LIMITED,M130814,19,19.88,TACTICAL DAY TO DAY,16/10/14,,HENDON FS
131014C,COFELY WORKPLACE LIMITED,M130814,20,18.65,TACTICAL DAY TO DAY,16/10/14,,HILLINGDON FS
131014C,COFELY WORKPLACE LIMITED,M130814,21,148.59,TACTICAL DAY TO DAY,16/10/14,,HOLLOWAY FIRE STATION
131014C,COFELY WORKPLACE LIMITED,M130814,22,171.13,TACTICAL DAY TO DAY,16/10/14,,HORNCHURCH FIRE STATION
131014C,COFELY WORKPLACE LIMITED,M130814,23,19.38,TACTICAL DAY TO DAY,16/10/14,,HORNSEY FIRE STATION
131014C,COFELY WORKPLACE LIMITED,M130814,24,59.12,TACTICAL DAY TO DAY,16/10/14,,ISLINGTON FIRE STATION
131014C,COFELY WORKPLACE LIMITED,M130814,25,92.40,TACTICAL DAY TO DAY,16/10/14,,LEYTON FS
131014C,COFELY WORKPLACE LIMITED,M130814,26,41.52,TACTICAL DAY TO DAY,16/10/14,,LEYTONSTONE FS
131014C,COFELY WORKPLACE LIMITED,M130814,27,421.02,TACTICAL DAY TO DAY,16/10/14,,MILLWALL FS
131014C,COFELY WORKPLACE LIMITED,M130814,28,263.07,TACTICAL DAY TO DAY,16/10/14,,NORTH KENSINGTON FS
131014C,COFELY WORKPLACE LIMITED,M130814,29,272.27,TACTICAL DAY TO DAY,16/10/14,,NORTHOLT FS
131014C,COFELY WORKPLACE LIMITED,M130814,30,291.95,TACTICAL DAY TO DAY,16/10/14,,PADDINGTON FS
131014C,COFELY WORKPLACE LIMITED,M130814,31,"1,323.61",TACTICAL DAY TO DAY,16/10/14,,POPLAR FS
131014C,COFELY WORKPLACE LIMITED,M130814,32,44.60,TACTICAL DAY TO DAY,16/10/14,,ROMFORD FIRE STATION
131014C,COFELY WORKPLACE LIMITED,M130814,33,14.04,TACTICAL DAY TO DAY,16/10/14,,SHOREDITCH FIRE STATION
131014C,COFELY WORKPLACE LIMITED,M130814,34,708.62,TACTICAL DAY TO DAY,16/10/14,,SOHO FS
131014C,COFELY WORKPLACE LIMITED,M130814,35,405.09,TACTICAL DAY TO DAY,16/10/14,,SOUTHGATE FIRE STATION
131014C,COFELY WORKPLACE LIMITED,M130814,36,56.86,TACTICAL DAY TO DAY,16/10/14,,STOKE NEWINGTON FIRE STATION
131014C,COFELY WORKPLACE LIMITED,M130814,37,24.22,TACTICAL DAY TO DAY,16/10/14,,STRATFORD FIRE STATION
131014C,COFELY WORKPLACE LIMITED,M130814,38,66.65,TACTICAL DAY TO DAY,16/10/14,,TOTTENHAM FIRE STATION
131014C,COFELY WORKPLACE LIMITED,M130814,39,123.55,TACTICAL DAY TO DAY,16/10/14,,WALTHAMSTOW FS
131014C,COFELY WORKPLACE LIMITED,M130814,40,270.52,TACTICAL DAY TO DAY,16/10/14,,WEMBLEY FS
131014C,COFELY WORKPLACE LIMITED,M130814,41,956.78,TACTICAL DAY TO DAY,16/10/14,,WENNINGTON FIRE STATION
131014C,COFELY WORKPLACE LIMITED,M130814,42,922.15,TACTICAL DAY TO DAY,16/10/14,,WEST HAMPSTEAD FS
131014C,PILLINGER CONTROLS LTD========,PI73187,1,"3,051.26",STRATEGIC (NON CYCLICAL),16/10/14,"3,051.26",STANMORE FS
902459,BABCOCK TRAINING LTD,PTSI011333,1,"1,263,785.88",TRAINING CONTRACT,17/10/14,"1,350,519.00",HR TRNG ASURNCE & BUS RELTNSHP
902459,BABCOCK TRAINING LTD,PTSI011333,2,"86,733.12",TRAINING CONTRACT,17/10/14,,HR TRNG ASURNCE & BUS RELTNSHP
071014G,HEALTH MANAGEMENT LIMITED=====,0000120331,1,"107,035.75",OHS CONTRACT,20/10/14,"107,035.75",HR CENTRALLY HELD BUDGETS
151014C,HAYS ACCOUNTANCY & FINANCE====,1004744669,1,899.00,FRS STAFF AGENCY,20/10/14,899.00,WORKS DELIVERY
141014G,*SPRUE SAFETY PRODUCTS LTD====,1065559,1,"1,483.20",FIRE DETECTORS,20/10/14,"1,483.20",CFS - NEWHAM
800053513,*GET YOURSELF NOTICED LTD,11806,1,"1,923.00",PUBLIC RELATIONS,20/10/14,"4,543.00",COMMS MARKETING
800053513,*GET YOURSELF NOTICED LTD,11806,2,"2,620.00",PUBLIC RELATIONS,20/10/14,,COMMS MARKETING
151014C,VISTA LANDSCAPE MANAGEMENT LTD,120197,1,437.50,GROUNDS MAINTENANCE,20/10/14,437.50,SURBITON FS
151014C,VISTA LANDSCAPE MANAGEMENT LTD,120198,1,250.00,GROUNDS MAINTENANCE,20/10/14,"5,150.00",PREMISES HOLDING A/C STC
151014C,VISTA LANDSCAPE MANAGEMENT LTD,120198,2,250.00,GROUNDS MAINTENANCE,20/10/14,,PREMISES HOLDING A/C STC
151014C,VISTA LANDSCAPE MANAGEMENT LTD,120198,3,337.50,GROUNDS MAINTENANCE,20/10/14,,PREMISES HOLDING A/C STC
151014C,VISTA LANDSCAPE MANAGEMENT LTD,120198,4,50.00,GROUNDS MAINTENANCE,20/10/14,,PREMISES HOLDING A/C STC
151014C,VISTA LANDSCAPE MANAGEMENT LTD,120198,5,250.00,GROUNDS MAINTENANCE,20/10/14,,PREMISES HOLDING A/C STC
151014C,VISTA LANDSCAPE MANAGEMENT LTD,120198,6,337.50,GROUNDS MAINTENANCE,20/10/14,,PREMISES HOLDING A/C STC
151014C,VISTA LANDSCAPE MANAGEMENT LTD,120198,7,187.50,GROUNDS MAINTENANCE,20/10/14,,PREMISES HOLDING A/C STC
151014C,VISTA LANDSCAPE MANAGEMENT LTD,120198,8,187.50,GROUNDS MAINTENANCE,20/10/14,,PREMISES HOLDING A/C STC
151014C,VISTA LANDSCAPE MANAGEMENT LTD,120198,9,250.00,GROUNDS MAINTENANCE,20/10/14,,PREMISES HOLDING A/C STC
151014C,VISTA LANDSCAPE MANAGEMENT LTD,120198,10,375.00,GROUNDS MAINTENANCE,20/10/14,,PREMISES HOLDING A/C STC
151014C,VISTA LANDSCAPE MANAGEMENT LTD,120198,11,375.00,GROUNDS MAINTENANCE,20/10/14,,PREMISES HOLDING A/C STC
151014C,VISTA LANDSCAPE MANAGEMENT LTD,120198,12,250.00,GROUNDS MAINTENANCE,20/10/14,,PREMISES HOLDING A/C STC
151014C,VISTA LANDSCAPE MANAGEMENT LTD,120198,13,500.00,GROUNDS MAINTENANCE,20/10/14,,PREMISES HOLDING A/C STC
151014C,VISTA LANDSCAPE MANAGEMENT LTD,120198,14,62.50,GROUNDS MAINTENANCE,20/10/14,,PREMISES HOLDING A/C STC
151014C,VISTA LANDSCAPE MANAGEMENT LTD,120198,15,125.00,GROUNDS MAINTENANCE,20/10/14,,PREMISES HOLDING A/C STC
151014C,VISTA LANDSCAPE MANAGEMENT LTD,120198,16,625.00,GROUNDS MAINTENANCE,20/10/14,,PREMISES HOLDING A/C STC
151014C,VISTA LANDSCAPE MANAGEMENT LTD,120198,17,187.50,GROUNDS MAINTENANCE,20/10/14,,PREMISES HOLDING A/C STC
151014C,VISTA LANDSCAPE MANAGEMENT LTD,120198,18,187.50,GROUNDS MAINTENANCE,20/10/14,,PREMISES HOLDING A/C STC
151014C,VISTA LANDSCAPE MANAGEMENT LTD,120198,19,62.50,GROUNDS MAINTENANCE,20/10/14,,PREMISES HOLDING A/C STC
151014C,VISTA LANDSCAPE MANAGEMENT LTD,120198,20,50.00,GROUNDS MAINTENANCE,20/10/14,,PREMISES HOLDING A/C STC
151014C,VISTA LANDSCAPE MANAGEMENT LTD,120198,21,250.00,GROUNDS MAINTENANCE,20/10/14,,PREMISES HOLDING A/C STC
151014C,VISTA LANDSCAPE MANAGEMENT LTD,120199,1,437.50,GROUNDS MAINTENANCE,20/10/14,437.50,TWICKENHAM FS
151014C,VISTA LANDSCAPE MANAGEMENT LTD,120200,1,25.00,GROUNDS MAINTENANCE,20/10/14,"1,862.50",SUTTON FS
151014C,VISTA LANDSCAPE MANAGEMENT LTD,120200,2,62.50,GROUNDS MAINTENANCE,20/10/14,,SUTTON FS
151014C,VISTA LANDSCAPE MANAGEMENT LTD,120200,3,62.50,GROUNDS MAINTENANCE,20/10/14,,SUTTON FS
151014C,VISTA LANDSCAPE MANAGEMENT LTD,120200,4,87.50,GROUNDS MAINTENANCE,20/10/14,,SUTTON FS
151014C,VISTA LANDSCAPE MANAGEMENT LTD,120200,5,250.00,GROUNDS MAINTENANCE,20/10/14,,SUTTON FS
151014C,VISTA LANDSCAPE MANAGEMENT LTD,120200,6,937.50,GROUNDS MAINTENANCE,20/10/14,,SUTTON FS
151014C,VISTA LANDSCAPE MANAGEMENT LTD,120200,7,437.50,GROUNDS MAINTENANCE,20/10/14,,SUTTON FS
151014C,VISTA LANDSCAPE MANAGEMENT LTD,120201,1,100.00,GROUNDS MAINTENANCE,20/10/14,662.50,KINGSTON FS
151014C,VISTA LANDSCAPE MANAGEMENT LTD,120201,2,100.00,GROUNDS MAINTENANCE,20/10/14,,KINGSTON FS
151014C,VISTA LANDSCAPE MANAGEMENT LTD,120201,3,275.00,GROUNDS MAINTENANCE,20/10/14,,KINGSTON FS
151014C,VISTA LANDSCAPE MANAGEMENT LTD,120201,4,187.50,GROUNDS MAINTENANCE,20/10/14,,KINGSTON FS
101014G,SILVERSANDS LIMITED===========,121299,1,950.00,PURCHASES-SOFTWARE,20/10/14,"1,900.00",
101014G,SILVERSANDS LIMITED===========,121299,2,950.00,PURCHASES-SOFTWARE,20/10/14,,
131014C,SAFEGUARD PEST CON. & ENV.LTD,128504,1,460.00,PEST CONTROL,20/10/14,460.00,UNION STREET HQ HOLDING A/C
151014C,HOK INTERNATIONAL LTD,13.33034.00-11,1,"1,489.46",PROFESSIONAL SERVICES,20/10/14,"1,489.46",PFI CONSTRUCTION
140834,THAMES WATER UTILITIES LTD====,13752-86795K,1,435.70,WATER & SEWERAGE RATES,20/10/14,435.70,BECKENHAM FS
151014C,GP CONTRACTS==================,14916,1,"1,100.00",TACTICAL DAY TO DAY,20/10/14,"1,100.00",WANDSWORTH FIRE STATION
141014E,UK TAPES LTD==================,152250,1,967.20,GENERAL CONSUMABLES,20/10/14,967.20,
140834,THAMES WATER UTILITIES LTD====,16168-06584J,1,496.25,WATER & SEWERAGE RATES,20/10/14,496.25,HOLLOWAY FIRE STATION
151014C,DRON & WRIGHT=================,17320,1,607.50,PROFESSIONAL SERVICES,20/10/14,607.50,PFI CONSTRUCTION
151014C,DRON & WRIGHT=================,17321,1,"7,557.00",PROFESSIONAL SERVICES,20/10/14,"7,837.00",ENERGY & COMPLIANCE
151014C,DRON & WRIGHT=================,17321,2,280.00,PROF FEES-MISCELLANEOUS,20/10/14,,
081014G,SHARED SERVICE ARCHITECTURE LT,2014/323,1,375.00,PROFESSIONAL DEVELOPMENT,20/10/14,375.00,FN FINANCE ADMINISTRATION
141014E,RAIL INDUSTRY FIRE ASSOCIATION,2319,1,300.00,SUBSCRIPTIONS,20/10/14,300.00,FSR - POLICY
800054089,ADECCO UK LIMITED=============,26926727,1,531.60,FRS STAFF AGENCY,20/10/14,531.60,MOBILISING
800054054,ADECCO UK LIMITED=============,26926728,1,439.60,FRS STAFF AGENCY,20/10/14,439.60,LEASE CARS ADMINISTRATION
800054056,ADECCO UK LIMITED=============,26926730,1,"1,328.35",FRS STAFF AGENCY,20/10/14,"1,328.35",LEGAL SERVICES
800054057,ADECCO UK LIMITED=============,26926731,1,704.90,FRS STAFF AGENCY,20/10/14,704.90,NATL OPERATIONAL GUIDANCE PROJ
800054061,ADECCO UK LIMITED=============,26926735,1,703.92,FRS STAFF AGENCY,20/10/14,703.92,NATL OPERATIONAL GUIDANCE PROJ
800054062,ADECCO UK LIMITED=============,26926736,1,489.72,FRS STAFF AGENCY,20/10/14,489.72,HR EMPLOYMENT RELATIONS
800054064,ADECCO UK LIMITED=============,26926738,1,489.72,FRS STAFF AGENCY,20/10/14,489.72,DIRECTORATE ADMINISTRATION
800054066,ADECCO UK LIMITED=============,26926740,1,527.94,FRS STAFF AGENCY,20/10/14,527.94,PFI CONSTRUCTION
800054067,ADECCO UK LIMITED=============,26926741,1,"1,471.35",FRS STAFF AGENCY,20/10/14,"1,471.35",LEGAL SERVICES
800054068,ADECCO UK LIMITED=============,26926742,1,368.32,FRS STAFF AGENCY,20/10/14,368.32,REVIEW OF PROPERTY SERVICES
800054069,ADECCO UK LIMITED=============,26926743,1,367.08,FRS STAFF AGENCY,20/10/14,367.08,WATER OFFICE
800054070,ADECCO UK LIMITED=============,26926744,1,"1,270.34",FRS STAFF AGENCY,20/10/14,"1,270.34",COMMISSIONERS SECRETARIAT
800054071,ADECCO UK LIMITED=============,26926745,1,439.60,FRS STAFF AGENCY,20/10/14,439.60,HR EMPLOYMENT RELATIONS
800054072,ADECCO UK LIMITED=============,26926746,1,351.68,FRS STAFF AGENCY,20/10/14,351.68,SOUTH WEST AREA TEAM
800054074,ADECCO UK LIMITED=============,26926748,1,612.15,FRS STAFF AGENCY,20/10/14,612.15,SOUTH EAST AREA TEAM
800054075,ADECCO UK LIMITED=============,26926749,1,401.92,FRS STAFF AGENCY,20/10/14,401.92,FSR - POLICY
800054076,ADECCO UK LIMITED=============,26926750,1,351.68,FRS STAFF AGENCY,20/10/14,351.68,NORTH EAST AREA TEAM
800054079,ADECCO UK LIMITED=============,26930569,1,"1,241.25",FRS STAFF AGENCY,20/10/14,"1,241.25",COMMS COMMUNICATION SUPPORT
800054081,ADECCO UK LIMITED=============,26930571,1,"1,131.20",FRS STAFF AGENCY,20/10/14,"1,131.20",TSS MANAGEMENT
800054083,ADECCO UK LIMITED=============,26930573,1,"2,867.35",PROF FEES-SOFTWARE CONSULTANTS,20/10/14,"2,867.35",
800054091,ADECCO UK LIMITED=============,26930576,1,731.28,FRS STAFF AGENCY,20/10/14,731.28,LEGAL SERVICES
800054086,ADECCO UK LIMITED=============,26930577,1,"1,257.00",FRS STAFF AGENCY,20/10/14,"1,257.00",LEGAL SERVICES
800054048,ADECCO UK LIMITED=============,26934342,1,708.80,FRS STAFF AGENCY,20/10/14,708.80,MOBILISING
800054049,ADECCO UK LIMITED=============,26934343,1,531.60,FRS STAFF AGENCY,20/10/14,531.60,MOBILISING
800054024,ADECCO UK LIMITED=============,26934346,1,"1,199.80",FRS STAFF AGENCY,20/10/14,"1,199.80",LEGAL SERVICES
800054025,ADECCO UK LIMITED=============,26934347,1,422.94,FRS STAFF AGENCY,20/10/14,422.94,NATL OPERATIONAL GUIDANCE PROJ
800054027,ADECCO UK LIMITED=============,26934349,1,439.60,FRS STAFF AGENCY,20/10/14,439.60,NORTH WEST AREA TEAM
800054028,ADECCO UK LIMITED=============,26934350,1,279.84,FRS STAFF AGENCY,20/10/14,279.84,FSR - POLICY
800054030,ADECCO UK LIMITED=============,26934352,1,489.72,FRS STAFF AGENCY,20/10/14,489.72,HR EMPLOYMENT RELATIONS
800054031,ADECCO UK LIMITED=============,26934354,1,585.92,FRS STAFF AGENCY,20/10/14,585.92,DIRECTORATE ADMINISTRATION
800054034,ADECCO UK LIMITED=============,26934357,1,612.15,FRS STAFF AGENCY,20/10/14,612.15,CORPORATE PROCUREMENT SERVICES
800054035,ADECCO UK LIMITED=============,26934358,1,628.50,FRS STAFF AGENCY,20/10/14,628.50,PFI CONSTRUCTION
800054036,ADECCO UK LIMITED=============,26934359,1,"1,471.35",FRS STAFF AGENCY,20/10/14,"1,471.35",LEGAL SERVICES
800054037,ADECCO UK LIMITED=============,26934360,1,966.84,FRS STAFF AGENCY,20/10/14,966.84,REVIEW OF PROPERTY SERVICES
800054038,ADECCO UK LIMITED=============,26934361,1,611.80,FRS STAFF AGENCY,20/10/14,611.80,WATER OFFICE
800054039,ADECCO UK LIMITED=============,26934363,1,439.60,FRS STAFF AGENCY,20/10/14,439.60,SOUTH WEST AREA TEAM
800054040,ADECCO UK LIMITED=============,26934364,1,612.15,FRS STAFF AGENCY,20/10/14,612.15,SOUTH EAST AREA TEAM
800054041,ADECCO UK LIMITED=============,26934365,1,879.90,FRS STAFF AGENCY,20/10/14,879.90,VEHICLES / EQUIPMENT PROGRAMME
800054042,ADECCO UK LIMITED=============,26934367,1,439.60,FRS STAFF AGENCY,20/10/14,439.60,NORTH EAST AREA TEAM
800054047,ADECCO UK LIMITED=============,26938068,1,744.75,FRS STAFF AGENCY,20/10/14,744.75,COMMS COMMUNICATION SUPPORT
021014G,SUNDERLAND CITY COUNCIL,2808006571,1,"2,945.36",FIRE AUTHORITIES,20/10/14,"2,945.36",NATL OPERATIONAL GUIDANCE PROJ
071014G,PRECISE MEDIA MONITORING LTD==,295218,1,573.89,PRESS OFFICE,20/10/14,573.89,COMMS MEDIA & INTERNAL COMMS
081014G,FIXATION (UK) LIMITED=========,298567,1,"3,960.35",PUBLIC RELATIONS,20/10/14,"3,960.35",COMMS MARKETING
141014G,SAFEQUIP LTD==================,32790,1,720.00,OPERATIONAL EQUIP-PURCHASE,20/10/14,792.95,PROTECTIVE EQUIPMENT GROUP
141014G,SAFEQUIP LTD==================,32790,2,47.95,OPERATIONAL EQUIP-PURCHASE,20/10/14,,PROTECTIVE EQUIPMENT GROUP
141014G,SAFEQUIP LTD==================,32790,3,25.00,OPERATIONAL EQUIP-PURCHASE,20/10/14,,PROTECTIVE EQUIPMENT GROUP
151014C,MCGRATH BROS (WASTE CONTROL) L,340090,1,292.50,REFUSE COLLECTION,20/10/14,292.50,UNION STREET HQ HOLDING A/C
141014G,CANON (UK) LTD===============,401574704,1,4.17,OFFICE EQUIPMENT,20/10/14,941.33,MOBILISING
141014G,CANON (UK) LTD===============,401574704,2,937.16,OFFICE EQUIPMENT,20/10/14,,MOBILISING
081014G,FLEXIFORM BUSINESS FURNITURE==,410833,1,"1,410.00",PURCHASES-FURNITURE,20/10/14,"1,410.00",
151014C,FOCUS & VISION TECHNOLOGY LTD,42638,1,362.94,MEDICAL EXPENSES CONTRACT,20/10/14,362.94,HR CENTRALLY HELD BUDGETS
151014C,KNIGHTON CLEANING SERVICES LTD,42941,1,944.52,SPECIAL CLEANS,20/10/14,944.52,UNION STREET HQ HOLDING A/C
151014C,FAHEY BUILDERS LTD============,5240,1,"1,967.00",STRATEGIC (NON CYCLICAL),20/10/14,"9,835.00",BARNET FS
151014C,FAHEY BUILDERS LTD============,5240,2,"1,967.00",STRATEGIC (NON CYCLICAL),20/10/14,,CLAPHAM FS
151014C,FAHEY BUILDERS LTD============,5240,3,"1,967.00",STRATEGIC (NON CYCLICAL),20/10/14,,RICHMOND FS
151014C,FAHEY BUILDERS LTD============,5240,4,"1,967.00",STRATEGIC (NON CYCLICAL),20/10/14,,WANDSWORTH FIRE STATION
151014C,FAHEY BUILDERS LTD============,5240,5,"1,967.00",STRATEGIC (NON CYCLICAL),20/10/14,,HAYES FS
151014C,CORE SURVEYSLTD===============,5825,1,540.50,ASBESTOS,20/10/14,710.50,GREENWICH FS
151014C,CORE SURVEYSLTD===============,5825,2,170.00,ASBESTOS,20/10/14,,WIMBLEDON FIRE STATION
091014G,UNIFY,6000864013,1,529.35,TELECOMMUNICATIONS,20/10/14,529.35,I&CT CENTRALLY HELD BUDGETS
140834,ESSEX & SUFFOLK WATER PLC=====,602247870016Q,1,"1,154.54",WATER & SEWERAGE RATES,20/10/14,"1,154.54",ROMFORD FIRE STATION
151014C,SWEETT  UK LTD,7039882,1,892.07,PROF FEES-MISCELLANEOUS,20/10/14,892.07,
081014G,SWEETT  UK LTD,7044045,1,"1,750.00",STRATEGIC (NON CYCLICAL),20/10/14,"1,750.00",ROMFORD FIRE STATION
081014G,SWEETT  UK LTD,7044050,1,875.72,STRATEGIC (NON CYCLICAL),20/10/14,875.72,CHINGFORD FS
141014G,LINCOLNSHIRE COUNTY COUNCIL===,90802031,1,"24,028.63",FIRE AUTHORITIES,20/10/14,"24,028.63",NATL OPERATIONAL GUIDANCE PROJ
140844,DEPARTMENT FOR WORK & PENSIONS,9123*,1,615.00,DWP NHS CHARGES,20/10/14,615.00,CENTRALLY HELD BUDGETS
140834,THAMES WATER UTILITIES LTD====,95240-85193:,1,820.66,WATER & SEWERAGE RATES,20/10/14,820.66,UNION STREET HQ HOLDING A/C
151014C,ASTEC SURVEYS LIMITED=========,ASL-14-299,1,195.00,ASBESTOS,20/10/14,545.00,EDMONTON FIRE STATION
151014C,ASTEC SURVEYS LIMITED=========,ASL-14-299,2,175.00,ASBESTOS,20/10/14,,PARK ROYAL FS
151014C,ASTEC SURVEYS LIMITED=========,ASL-14-299,3,175.00,ASBESTOS,20/10/14,,STOKE NEWINGTON FIRE STATION
151014C,ASTEC SURVEYS LIMITED=========,ASL-14-300,1,895.00,ASBESTOS,20/10/14,895.00,HORNCHURCH FIRE STATION
021014G,LPFA CONTRIBUTIONS ACCOUNT====,BD553,1,"63,947.00",PENSION SERVICES,20/10/14,"63,947.00",FIRE SERVICE PENSION A/C
141014G,THAMES WATER UTILITIES LTD====,CBA1408042,1,477.00,CURRENT HYDRANT COSTS,20/10/14,477.00,WATER OFFICE
061014G,THE GEOINFORMATION GROUP======,D141001,1,"10,000.00",CONSULTANTS,20/10/14,"10,000.00",INFORMATION MNGT & PERFORMANCE
141014G,HALL FUELS,I07050338,1,"2,097.20",FUEL,20/10/14,"2,097.20",FELTHAM FS
140833,DAYS CONTRACT HIRE,INV00054344,1,"1,845.29",LEASE CAR CHARGES,20/10/14,"3,741.84",LEASE CARS ADMINISTRATION
140833,DAYS CONTRACT HIRE,INV00054344,2,"1,896.55",P/PAYMTS-CAR LEASG-RENTAL,20/10/14,,
140833,DAYS CONTRACT HIRE,INV00054344,3,-326.93,VAT CAR LEASING,20/10/14,,
140833,DAYS CONTRACT HIRE,INV00054344,4,326.93,LEASE CAR CHARGES,20/10/14,,LEASE CARS ADMINISTRATION
140833,DAYS CONTRACT HIRE,INV00054345,1,"2,144.57",LEASE CAR CHARGES,20/10/14,"4,300.92",LEASE CARS ADMINISTRATION
140833,DAYS CONTRACT HIRE,INV00054345,2,"2,156.35",P/PAYMTS-CAR LEASG-RENTAL,20/10/14,,
140833,DAYS CONTRACT HIRE,INV00054345,3,-371.60,VAT CAR LEASING,20/10/14,,
140833,DAYS CONTRACT HIRE,INV00054345,4,371.60,LEASE CAR CHARGES,20/10/14,,LEASE CARS ADMINISTRATION
140833,DAYS CONTRACT HIRE,INV00054346,1,"1,975.03",LEASE CAR CHARGES,20/10/14,"4,072.80",LEASE CARS ADMINISTRATION
140833,DAYS CONTRACT HIRE,INV00054346,2,"2,097.77",P/PAYMTS-CAR LEASG-RENTAL,20/10/14,,
140833,DAYS CONTRACT HIRE,INV00054346,3,-365.15,VAT CAR LEASING,20/10/14,,
140833,DAYS CONTRACT HIRE,INV00054346,4,365.15,LEASE CAR CHARGES,20/10/14,,LEASE CARS ADMINISTRATION
140834,DAYS CONTRACT HIRE,INV00054631,1,"2,638.75",LEASE CAR CHARGES,20/10/14,"5,503.68",LEASE CARS ADMINISTRATION
140834,DAYS CONTRACT HIRE,INV00054631,2,"2,864.93",P/PAYMTS-CAR LEASG-RENTAL,20/10/14,,
140834,DAYS CONTRACT HIRE,INV00054631,3,-485.20,VAT CAR LEASING,20/10/14,,
140834,DAYS CONTRACT HIRE,INV00054631,4,485.20,LEASE CAR CHARGES,20/10/14,,LEASE CARS ADMINISTRATION
071014G,SKYGUARD LTD,INV8168,1,"1,701.70",OPERATIONAL EQUIP-PURCHASE,20/10/14,"1,701.70",FSR - POLICY
141014E,SLATE MARKETING LTD,INV_LFB_SA_FFF_2014,1,"3,850.00",CONSULTANTS,20/10/14,"3,850.00",NATL OPERATIONAL GUIDANCE PROJ
141014E,SLATE MARKETING LTD,INV_LFB_SA_FIBE_2014,1,"2,450.00",CONSULTANTS,20/10/14,"2,450.00",NATL OPERATIONAL GUIDANCE PROJ
141014E,SLATE MARKETING LTD,INV_LFB_SA_IOR_2014,1,"1,400.00",CONSULTANTS,20/10/14,"1,400.00",NATL OPERATIONAL GUIDANCE PROJ
141014E,SLATE MARKETING LTD,INV_LFB_SA_PR_2014,1,"3,675.00",CONSULTANTS,20/10/14,"3,675.00",NATL OPERATIONAL GUIDANCE PROJ
131014C,COFELY WORKPLACE LIMITED,M131570,1,"4,564.68",STRATEGIC (NON CYCLICAL),20/10/14,"4,564.68",HAMMERSMITH FS
131014C,COFELY WORKPLACE LIMITED,M131571,1,632.56,STRATEGIC (NON CYCLICAL),20/10/14,632.56,HAMMERSMITH FS
902461,LONDON PENSIONS FUND AUTHORITY,PENSION OCT '14,2,"333,500.00",PENSION PAST SERVICE COSTS,20/10/14,"333,500.00",CENTRALLY HELD BUDGETS
131014C,PULLMAN MOTORS================,PULL247,1,"1,500.00",OPERATIONAL EQUIP-PURCHASE,20/10/14,"1,500.00",LEASE CARS ADMINISTRATION
140834,ARVAL UK LTD,RI0001392156,1,"2,816.60",LEASE CAR CHARGES,20/10/14,"5,711.44",LEASE CARS ADMINISTRATION
140834,ARVAL UK LTD,RI0001392156,2,"2,894.84",P/PAYMTS-CAR LEASG-RENTAL,20/10/14,,
140834,ARVAL UK LTD,RI0001392156,3,-509.20,VAT CAR LEASING,20/10/14,,
140834,ARVAL UK LTD,RI0001392156,4,509.20,LEASE CAR CHARGES,20/10/14,,LEASE CARS ADMINISTRATION
140831,ARVAL UK LTD,RI0001392161,1,418.58,LEASE CAR CHARGES,20/10/14,418.58,LEASE CARS ADMINISTRATION
140831,ARVAL UK LTD,RI0001392161,2,-33.30,VAT CAR LEASING,20/10/14,,
140831,ARVAL UK LTD,RI0001392161,3,33.30,LEASE CAR CHARGES,20/10/14,,LEASE CARS ADMINISTRATION
140831,ARVAL UK LTD,RI0001392162,1,398.20,LEASE CAR CHARGES,20/10/14,398.20,LEASE CARS ADMINISTRATION
140831,ARVAL UK LTD,RI0001392162,2,-34.16,VAT CAR LEASING,20/10/14,,
140831,ARVAL UK LTD,RI0001392162,3,34.16,LEASE CAR CHARGES,20/10/14,,LEASE CARS ADMINISTRATION
140831,ARVAL UK LTD,RI0001392163,1,309.02,LEASE CAR CHARGES,20/10/14,309.02,LEASE CARS ADMINISTRATION
140831,ARVAL UK LTD,RI0001392163,2,-25.01,VAT CAR LEASING,20/10/14,,
140831,ARVAL UK LTD,RI0001392163,3,25.01,LEASE CAR CHARGES,20/10/14,,LEASE CARS ADMINISTRATION
140831,ARVAL UK LTD,RI0001392164,1,389.71,LEASE CAR CHARGES,20/10/14,389.71,LEASE CARS ADMINISTRATION
140831,ARVAL UK LTD,RI0001392164,2,-32.49,VAT CAR LEASING,20/10/14,,
140831,ARVAL UK LTD,RI0001392164,3,32.49,LEASE CAR CHARGES,20/10/14,,LEASE CARS ADMINISTRATION
140834,ARVAL UK LTD,RI0001392165,1,353.05,LEASE CAR CHARGES,20/10/14,353.05,LEASE CARS ADMINISTRATION
140834,ARVAL UK LTD,RI0001392165,2,-27.23,VAT CAR LEASING,20/10/14,,
140834,ARVAL UK LTD,RI0001392165,3,27.23,LEASE CAR CHARGES,20/10/14,,LEASE CARS ADMINISTRATION
140834,ARVAL UK LTD,RI0001392166,1,380.74,LEASE CAR CHARGES,20/10/14,380.74,LEASE CARS ADMINISTRATION
140834,ARVAL UK LTD,RI0001392166,2,-30.18,VAT CAR LEASING,20/10/14,,
140834,ARVAL UK LTD,RI0001392166,3,30.18,LEASE CAR CHARGES,20/10/14,,LEASE CARS ADMINISTRATION
140834,ARVAL UK LTD,RI0001392167,1,312.59,LEASE CAR CHARGES,20/10/14,312.59,LEASE CARS ADMINISTRATION
140834,ARVAL UK LTD,RI0001392167,2,-26.21,VAT CAR LEASING,20/10/14,,
140834,ARVAL UK LTD,RI0001392167,3,26.21,LEASE CAR CHARGES,20/10/14,,LEASE CARS ADMINISTRATION
140834,ARVAL UK LTD,RI0001392168,1,"2,215.82",LEASE CAR CHARGES,20/10/14,"4,348.25",LEASE CARS ADMINISTRATION
140834,ARVAL UK LTD,RI0001392168,2,"2,132.43",P/PAYMTS-CAR LEASG-RENTAL,20/10/14,,
140834,ARVAL UK LTD,RI0001392168,3,-361.48,VAT CAR LEASING,20/10/14,,
140834,ARVAL UK LTD,RI0001392168,4,361.48,LEASE CAR CHARGES,20/10/14,,LEASE CARS ADMINISTRATION
140834,ARVAL UK LTD,RI0001392169,1,"2,811.57",LEASE CAR CHARGES,20/10/14,"5,733.09",LEASE CARS ADMINISTRATION
140834,ARVAL UK LTD,RI0001392169,2,"2,921.52",P/PAYMTS-CAR LEASG-RENTAL,20/10/14,,
140834,ARVAL UK LTD,RI0001392169,3,-485.57,VAT CAR LEASING,20/10/14,,
140834,ARVAL UK LTD,RI0001392169,4,485.57,LEASE CAR CHARGES,20/10/14,,LEASE CARS ADMINISTRATION
140834,ARVAL UK LTD,RI0001392170,1,"2,568.52",LEASE CAR CHARGES,20/10/14,"4,986.75",LEASE CARS ADMINISTRATION
140834,ARVAL UK LTD,RI0001392170,2,"2,418.23",P/PAYMTS-CAR LEASG-RENTAL,20/10/14,,
140834,ARVAL UK LTD,RI0001392170,3,-446.36,VAT CAR LEASING,20/10/14,,
140834,ARVAL UK LTD,RI0001392170,4,446.36,LEASE CAR CHARGES,20/10/14,,LEASE CARS ADMINISTRATION
140834,ARVAL UK LTD,RI0001392171,1,"1,787.02",LEASE CAR CHARGES,20/10/14,"3,488.03",LEASE CARS ADMINISTRATION
140834,ARVAL UK LTD,RI0001392171,2,"1,701.01",P/PAYMTS-CAR LEASG-RENTAL,20/10/14,,
140834,ARVAL UK LTD,RI0001392171,3,-293.41,VAT CAR LEASING,20/10/14,,
140834,ARVAL UK LTD,RI0001392171,4,293.41,LEASE CAR CHARGES,20/10/14,,LEASE CARS ADMINISTRATION
260914C,GROUND CONTROL UMITED,SIN041081,1,13.34,GROUNDS MAINTENANCE,20/10/14,996.10,ACTON FS
260914C,GROUND CONTROL UMITED,SIN041081,2,13.34,GROUNDS MAINTENANCE,20/10/14,,BARNET FS
260914C,GROUND CONTROL UMITED,SIN041081,3,13.34,GROUNDS MAINTENANCE,20/10/14,,CHELSEA FS
260914C,GROUND CONTROL UMITED,SIN041081,4,42.70,GROUNDS MAINTENANCE,20/10/14,,CHISWICK FS
260914C,GROUND CONTROL UMITED,SIN041081,5,42.70,GROUNDS MAINTENANCE,20/10/14,,EALING FS
260914C,GROUND CONTROL UMITED,SIN041081,6,13.34,GROUNDS MAINTENANCE,20/10/14,,EUSTON FS
260914C,GROUND CONTROL UMITED,SIN041081,7,13.34,GROUNDS MAINTENANCE,20/10/14,,FELTHAM FS
260914C,GROUND CONTROL UMITED,SIN041081,8,55.32,GROUNDS MAINTENANCE,20/10/14,,FINCHLEY FS
260914C,GROUND CONTROL UMITED,SIN041081,9,13.34,GROUNDS MAINTENANCE,20/10/14,,FULHAM FS
260914C,GROUND CONTROL UMITED,SIN041081,10,13.34,GROUNDS MAINTENANCE,20/10/14,,KENSINGTON FS
260914C,GROUND CONTROL UMITED,SIN041081,11,62.00,GROUNDS MAINTENANCE,20/10/14,,HARROW FS
260914C,GROUND CONTROL UMITED,SIN041081,12,46.43,GROUNDS MAINTENANCE,20/10/14,,HARROW FS
260914C,GROUND CONTROL UMITED,SIN041081,13,50.44,GROUNDS MAINTENANCE,20/10/14,,HAYES FS
260914C,GROUND CONTROL UMITED,SIN041081,14,13.34,GROUNDS MAINTENANCE,20/10/14,,HEATHROW FS
260914C,GROUND CONTROL UMITED,SIN041081,15,13.34,GROUNDS MAINTENANCE,20/10/14,,HENDON FS
260914C,GROUND CONTROL UMITED,SIN041081,16,13.34,GROUNDS MAINTENANCE,20/10/14,,HESTON FS
260914C,GROUND CONTROL UMITED,SIN041081,17,50.44,GROUNDS MAINTENANCE,20/10/14,,HILLINGDON FS
260914C,GROUND CONTROL UMITED,SIN041081,18,15.90,GROUNDS MAINTENANCE,20/10/14,,PREMISES HOLDING A/C HQ
260914C,GROUND CONTROL UMITED,SIN041081,19,13.34,GROUNDS MAINTENANCE,20/10/14,,KENTISH TOWN FS
260914C,GROUND CONTROL UMITED,SIN041081,20,51.77,GROUNDS MAINTENANCE,20/10/14,,MILL HILL FS
260914C,GROUND CONTROL UMITED,SIN041081,21,13.34,GROUNDS MAINTENANCE,20/10/14,,NORTH KENSINGTON FS
260914C,GROUND CONTROL UMITED,SIN041081,22,13.34,GROUNDS MAINTENANCE,20/10/14,,NORTHOLT FS
260914C,GROUND CONTROL UMITED,SIN041081,23,13.34,GROUNDS MAINTENANCE,20/10/14,,PADDINGTON FS
260914C,GROUND CONTROL UMITED,SIN041081,24,50.44,GROUNDS MAINTENANCE,20/10/14,,PARK ROYAL FS
260914C,GROUND CONTROL UMITED,SIN041081,25,46.43,GROUNDS MAINTENANCE,20/10/14,,RUISLIP FS
260914C,GROUND CONTROL UMITED,SIN041081,26,13.34,GROUNDS MAINTENANCE,20/10/14,,SOHO FS
260914C,GROUND CONTROL UMITED,SIN041081,27,46.43,GROUNDS MAINTENANCE,20/10/14,,SOUTHALL FS
